Body Name,Date Paid,Transaction Number,Amount,Supplier Name,Supplier Type,Expense Area,Cost Centre Description,Expense Type
Cambridgeshire County Council,03-Aug-21,51301616664,"-28,297.69",Oak House Children's Home Ltd,CARE ESTABLISHMENT,LAC Placements,Placements - residential homes,Agency Placements - Out of  County
Cambridgeshire County Council,03-Aug-21,51301616660,"-17,142.86",Oak House Children's Home Ltd,CARE ESTABLISHMENT,LAC Placements,Placements - residential homes,Agency Placements - Out of  County
Cambridgeshire County Council,27-Aug-21,51301616775,"-11,394.49",EUROVIA INFRASTRUCTURE LIMITED,COMPANY,Highways - Carriageway Mtce,Highways - Carriageway Mtce,Highway - Resurfacing
Cambridgeshire County Council,06-Aug-21,51301619454,"-10,570.81",VOYAGE,CARE ESTABLISHMENT,LD - South Locality - Cost of Care,LD - South Cambs - Care,Domiciliary Care
Cambridgeshire County Council,06-Aug-21,51301623287,"-10,378.19",MJ Children�s Services,CARE ESTABLISHMENT,LAC Placements,Placements - residential disability,Agency Placements - In County
Cambridgeshire County Council,16-Aug-21,51301614387,"-10,368.00",WATERMAN ASPEN LTD,TRADE SUPPLIER,Highways Development Management,Highways Development Management,Professional Fees and Hired Services
Cambridgeshire County Council,03-Aug-21,51301616661,"-10,242.00",Oak House Children's Home Ltd,CARE ESTABLISHMENT,LAC Placements,Placements - residential homes,Agency Placements - Out of  County
Cambridgeshire County Council,06-Aug-21,51301619668,"-9,166.89",VOYAGE,CARE ESTABLISHMENT,LD - City Locality - Cost of Care,LD - City - Care,Domiciliary Care
Cambridgeshire County Council,06-Aug-21,51301618902,"-8,890.14",THE CAMBRIDGE NURSING CENTRE,CARE ESTABLISHMENT,OP - City & South Blocks,City and South - Long term blocks,Nursing Care
Cambridgeshire County Council,06-Aug-21,51301618902,"-8,890.14",THE CAMBRIDGE NURSING CENTRE,CARE ESTABLISHMENT,OP - City & South Blocks,City and South - Long term blocks,Nursing Care
Cambridgeshire County Council,06-Aug-21,51301618902,"-8,890.14",THE CAMBRIDGE NURSING CENTRE,CARE ESTABLISHMENT,OP - City & South Blocks,City and South - Long term blocks,Nursing Care
Cambridgeshire County Council,06-Aug-21,51301620216,"-8,385.00",BUCHAN HEALTHCARE LTD,CARE ESTABLISHMENT,OP - City & South Blocks,City and South - Long term blocks,Residential Care
Cambridgeshire County Council,06-Aug-21,51301620216,"-8,385.00",BUCHAN HEALTHCARE LTD,CARE ESTABLISHMENT,OP - City & South Blocks,City and South - Long term blocks,Residential Care
Cambridgeshire County Council,06-Aug-21,51301620216,"-8,385.00",BUCHAN HEALTHCARE LTD,CARE ESTABLISHMENT,OP - City & South Blocks,City and South - Long term blocks,Residential Care
Cambridgeshire County Council,27-Aug-21,51301616771,"-8,377.48",EUROVIA INFRASTRUCTURE LIMITED,COMPANY,Highways - Pothole Grant,Highways - Pothole Grant,Highway - Resurfacing
Cambridgeshire County Council,27-Aug-21,51301616774,"-8,225.45",EUROVIA INFRASTRUCTURE LIMITED,COMPANY,Highways - 90m Mtce,Highways - 90m Mtce,Highway - Resurfacing
Cambridgeshire County Council,13-Aug-21,51301624589,"-6,349.08",VIRGIN MEDIA LTD,COMPANY,CPSN Replacement,CPSN Replacement,IT Hardware
Cambridgeshire County Council,06-Aug-21,51301623284,"-6,270.00",MJ Children�s Services,CARE ESTABLISHMENT,LAC Placements,Placements - residential disability,Agency Placements - In County
Cambridgeshire County Council,17-Aug-21,51301627228,"-6,246.50",NEXUS FOSTERING LTD,CARE ESTABLISHMENT,LAC Placements,Placements - independent fostering,Agency Placements - Out of  County
Cambridgeshire County Council,17-Aug-21,51301627230,"-6,246.50",NEXUS FOSTERING LTD,CARE ESTABLISHMENT,LAC Placements,Placements - independent fostering,Agency Placements - Out of  County
Cambridgeshire County Council,17-Aug-21,51301627234,"-6,246.50",NEXUS FOSTERING LTD,CARE ESTABLISHMENT,LAC Placements,Placements - independent fostering,Agency Placements - Out of  County
Cambridgeshire County Council,17-Aug-21,51301627238,"-6,246.50",NEXUS FOSTERING LTD,CARE ESTABLISHMENT,LAC Placements,Placements - independent fostering,Agency Placements - Out of  County
Cambridgeshire County Council,17-Aug-21,51301627240,"-6,246.50",NEXUS FOSTERING LTD,CARE ESTABLISHMENT,LAC Placements,Placements - independent fostering,Agency Placements - Out of  County
Cambridgeshire County Council,17-Aug-21,51301627244,"-6,246.50",NEXUS FOSTERING LTD,CARE ESTABLISHMENT,LAC Placements,Placements - independent fostering,Agency Placements - Out of  County
Cambridgeshire County Council,17-Aug-21,51301627248,"-6,246.50",NEXUS FOSTERING LTD,CARE ESTABLISHMENT,LAC Placements,Placements - independent fostering,Agency Placements - Out of  County
Cambridgeshire County Council,06-Aug-21,51301620212,"-6,105.00",BROOK HEALTHCARE,CARE ESTABLISHMENT,OP - City & South Blocks,City and South - Long term blocks,Residential Care
Cambridgeshire County Council,06-Aug-21,51301620212,"-6,105.00",BROOK HEALTHCARE,CARE ESTABLISHMENT,OP - City & South Blocks,City and South - Long term blocks,Residential Care
Cambridgeshire County Council,06-Aug-21,51301620212,"-6,105.00",BROOK HEALTHCARE,CARE ESTABLISHMENT,OP - City & South Blocks,City and South - Long term blocks,Residential Care
Cambridgeshire County Council,06-Aug-21,51301620212,"-6,105.00",BROOK HEALTHCARE,CARE ESTABLISHMENT,OP - City & South Blocks,City and South - Long term blocks,Residential Care
Cambridgeshire County Council,17-Aug-21,51301627246,"-6,045.00",NEXUS FOSTERING LTD,CARE ESTABLISHMENT,LAC Placements,Placements - independent fostering,Agency Placements - Out of  County
Cambridgeshire County Council,17-Aug-21,51301627250,"-6,045.00",NEXUS FOSTERING LTD,CARE ESTABLISHMENT,LAC Placements,Placements - independent fostering,Agency Placements - Out of  County
Cambridgeshire County Council,17-Aug-21,51301627236,"-6,045.00",NEXUS FOSTERING LTD,CARE ESTABLISHMENT,LAC Placements,Placements - independent fostering,Agency Placements - Out of  County
Cambridgeshire County Council,17-Aug-21,51301627232,"-6,045.00",NEXUS FOSTERING LTD,CARE ESTABLISHMENT,LAC Placements,Placements - independent fostering,Agency Placements - Out of  County
Cambridgeshire County Council,17-Aug-21,51301627242,"-5,642.00",NEXUS FOSTERING LTD,CARE ESTABLISHMENT,LAC Placements,Placements - independent fostering,Agency Placements - Out of  County
Cambridgeshire County Council,06-Aug-21,51301620244,"-5,459.28",FITZWILLIAM HEALTHCARE LTD,CARE ESTABLISHMENT,OP - City & South Blocks,City and South - Long term blocks,Residential Care
Cambridgeshire County Council,06-Aug-21,51301620244,"-5,459.28",FITZWILLIAM HEALTHCARE LTD,CARE ESTABLISHMENT,OP - City & South Blocks,City and South - Long term blocks,Residential Care
Cambridgeshire County Council,06-Aug-21,51301620244,"-5,459.28",FITZWILLIAM HEALTHCARE LTD,CARE ESTABLISHMENT,OP - City & South Blocks,City and South - Long term blocks,Residential Care
Cambridgeshire County Council,17-Aug-21,51301626690,"-5,357.14",BRIGHTER FUTURES FOSTER CARE,CARE ESTABLISHMENT,LAC Placements,Placements - independent fostering,Agency Placements - Out of  County
Cambridgeshire County Council,17-Aug-21,51301627140,"-4,860.00",Lighthouse Fostering,CARE ESTABLISHMENT,LAC Placements,Placements - independent fostering,Agency Placements - Out of  County
Cambridgeshire County Council,06-Aug-21,51301620280,"-4,798.68",ST GEORGE'S COURT,CARE ESTABLISHMENT,OP - City & South Blocks,City and South - Long term blocks,Nursing Care
Cambridgeshire County Council,06-Aug-21,51301620280,"-4,798.68",ST GEORGE'S COURT,CARE ESTABLISHMENT,OP - City & South Blocks,City and South - Long term blocks,Nursing Care
Cambridgeshire County Council,06-Aug-21,51301620280,"-4,798.68",ST GEORGE'S COURT,CARE ESTABLISHMENT,OP - City & South Blocks,City and South - Long term blocks,Nursing Care
Cambridgeshire County Council,06-Aug-21,51301620216,"-4,791.43",BUCHAN HEALTHCARE LTD,CARE ESTABLISHMENT,OP - City & South Blocks,City and South - Long term blocks,Residential Care
Cambridgeshire County Council,12-Aug-21,51301625134,"-4,333.56",DECOY FARM,CARE ESTABLISHMENT,LD - East Locality - Cost of Care,LD - East Cambs - Care,Residential Care
Cambridgeshire County Council,12-Aug-21,51301625134,"-4,333.56",DECOY FARM,CARE ESTABLISHMENT,LD - East Locality - Cost of Care,LD - East Cambs - Care,Residential Care
Cambridgeshire County Council,12-Aug-21,51301625134,"-4,333.56",DECOY FARM,CARE ESTABLISHMENT,LD - East Locality - Cost of Care,LD - East Cambs - Care,Residential Care
Cambridgeshire County Council,12-Aug-21,51301625134,"-4,333.56",DECOY FARM,CARE ESTABLISHMENT,LD - East Locality - Cost of Care,LD - East Cambs - Care,Residential Care
Cambridgeshire County Council,12-Aug-21,51301625134,"-4,333.56",DECOY FARM,CARE ESTABLISHMENT,LD - East Locality - Cost of Care,LD - East Cambs - Care,Residential Care
Cambridgeshire County Council,12-Aug-21,51301625134,"-4,333.56",DECOY FARM,CARE ESTABLISHMENT,LD - East Locality - Cost of Care,LD - East Cambs - Care,Residential Care
Cambridgeshire County Council,12-Aug-21,51301625134,"-4,333.56",DECOY FARM,CARE ESTABLISHMENT,LD - East Locality - Cost of Care,LD - East Cambs - Care,Residential Care
Cambridgeshire County Council,12-Aug-21,51301625134,"-4,333.56",DECOY FARM,CARE ESTABLISHMENT,LD - East Locality - Cost of Care,LD - East Cambs - Care,Residential Care
Cambridgeshire County Council,12-Aug-21,51301625134,"-4,333.56",DECOY FARM,CARE ESTABLISHMENT,LD - East Locality - Cost of Care,LD - East Cambs - Care,Residential Care
Cambridgeshire County Council,12-Aug-21,51301625134,"-4,333.56",DECOY FARM,CARE ESTABLISHMENT,LD - East Locality - Cost of Care,LD - East Cambs - Care,Residential Care
Cambridgeshire County Council,12-Aug-21,51301625134,"-4,333.56",DECOY FARM,CARE ESTABLISHMENT,LD - East Locality - Cost of Care,LD - East Cambs - Care,Residential Care
Cambridgeshire County Council,12-Aug-21,51301625134,"-4,333.56",DECOY FARM,CARE ESTABLISHMENT,LD - East Locality - Cost of Care,LD - East Cambs - Care,Residential Care
Cambridgeshire County Council,12-Aug-21,51301625134,"-4,333.56",DECOY FARM,CARE ESTABLISHMENT,LD - East Locality - Cost of Care,LD - East Cambs - Care,Residential Care
Cambridgeshire County Council,12-Aug-21,51301625134,"-4,333.56",DECOY FARM,CARE ESTABLISHMENT,LD - East Locality - Cost of Care,LD - East Cambs - Care,Residential Care
Cambridgeshire County Council,12-Aug-21,51301625134,"-4,333.56",DECOY FARM,CARE ESTABLISHMENT,LD - East Locality - Cost of Care,LD - East Cambs - Care,Residential Care
Cambridgeshire County Council,12-Aug-21,51301625134,"-4,333.56",DECOY FARM,CARE ESTABLISHMENT,LD - East Locality - Cost of Care,LD - East Cambs - Care,Residential Care
Cambridgeshire County Council,12-Aug-21,51301625134,"-4,333.56",DECOY FARM,CARE ESTABLISHMENT,LD - East Locality - Cost of Care,LD - East Cambs - Care,Residential Care
Cambridgeshire County Council,12-Aug-21,51301625134,"-4,333.56",DECOY FARM,CARE ESTABLISHMENT,LD - East Locality - Cost of Care,LD - East Cambs - Care,Residential Care
Cambridgeshire County Council,12-Aug-21,51301625134,"-4,333.56",DECOY FARM,CARE ESTABLISHMENT,LD - East Locality - Cost of Care,LD - East Cambs - Care,Residential Care
Cambridgeshire County Council,12-Aug-21,51301625134,"-4,333.56",DECOY FARM,CARE ESTABLISHMENT,LD - East Locality - Cost of Care,LD - East Cambs - Care,Residential Care
Cambridgeshire County Council,12-Aug-21,51301625134,"-4,333.56",DECOY FARM,CARE ESTABLISHMENT,LD - East Locality - Cost of Care,LD - East Cambs - Care,Residential Care
Cambridgeshire County Council,12-Aug-21,51301625134,"-4,333.56",DECOY FARM,CARE ESTABLISHMENT,LD - East Locality - Cost of Care,LD - East Cambs - Care,Residential Care
Cambridgeshire County Council,12-Aug-21,51301625134,"-4,333.56",DECOY FARM,CARE ESTABLISHMENT,LD - East Locality - Cost of Care,LD - East Cambs - Care,Residential Care
Cambridgeshire County Council,12-Aug-21,51301625134,"-4,333.56",DECOY FARM,CARE ESTABLISHMENT,LD - East Locality - Cost of Care,LD - East Cambs - Care,Residential Care
Cambridgeshire County Council,12-Aug-21,51301625134,"-4,333.56",DECOY FARM,CARE ESTABLISHMENT,LD - East Locality - Cost of Care,LD - East Cambs - Care,Residential Care
Cambridgeshire County Council,12-Aug-21,51301625134,"-4,333.56",DECOY FARM,CARE ESTABLISHMENT,LD - East Locality - Cost of Care,LD - East Cambs - Care,Residential Care
Cambridgeshire County Council,12-Aug-21,51301625134,"-4,333.56",DECOY FARM,CARE ESTABLISHMENT,LD - East Locality - Cost of Care,LD - East Cambs - Care,Residential Care
Cambridgeshire County Council,12-Aug-21,51301625134,"-4,333.56",DECOY FARM,CARE ESTABLISHMENT,LD - East Locality - Cost of Care,LD - East Cambs - Care,Residential Care
Cambridgeshire County Council,12-Aug-21,51301625134,"-4,333.56",DECOY FARM,CARE ESTABLISHMENT,LD - East Locality - Cost of Care,LD - East Cambs - Care,Residential Care
Cambridgeshire County Council,12-Aug-21,51301625134,"-4,333.56",DECOY FARM,CARE ESTABLISHMENT,LD - East Locality - Cost of Care,LD - East Cambs - Care,Residential Care
Cambridgeshire County Council,12-Aug-21,51301625134,"-4,333.56",DECOY FARM,CARE ESTABLISHMENT,LD - East Locality - Cost of Care,LD - East Cambs - Care,Residential Care
Cambridgeshire County Council,12-Aug-21,51301625134,"-4,333.56",DECOY FARM,CARE ESTABLISHMENT,LD - East Locality - Cost of Care,LD - East Cambs - Care,Residential Care
Cambridgeshire County Council,12-Aug-21,51301625134,"-4,333.56",DECOY FARM,CARE ESTABLISHMENT,LD - East Locality - Cost of Care,LD - East Cambs - Care,Residential Care
Cambridgeshire County Council,12-Aug-21,51301625134,"-4,333.56",DECOY FARM,CARE ESTABLISHMENT,LD - East Locality - Cost of Care,LD - East Cambs - Care,Residential Care
Cambridgeshire County Council,12-Aug-21,51301625134,"-4,333.56",DECOY FARM,CARE ESTABLISHMENT,LD - East Locality - Cost of Care,LD - East Cambs - Care,Residential Care
Cambridgeshire County Council,12-Aug-21,51301625134,"-4,333.56",DECOY FARM,CARE ESTABLISHMENT,LD - East Locality - Cost of Care,LD - East Cambs - Care,Residential Care
Cambridgeshire County Council,12-Aug-21,51301625134,"-4,333.56",DECOY FARM,CARE ESTABLISHMENT,LD - East Locality - Cost of Care,LD - East Cambs - Care,Residential Care
Cambridgeshire County Council,12-Aug-21,51301625134,"-4,333.56",DECOY FARM,CARE ESTABLISHMENT,LD - East Locality - Cost of Care,LD - East Cambs - Care,Residential Care
Cambridgeshire County Council,12-Aug-21,51301625134,"-4,333.56",DECOY FARM,CARE ESTABLISHMENT,LD - East Locality - Cost of Care,LD - East Cambs - Care,Residential Care
Cambridgeshire County Council,12-Aug-21,51301625134,"-4,333.56",DECOY FARM,CARE ESTABLISHMENT,LD - East Locality - Cost of Care,LD - East Cambs - Care,Residential Care
Cambridgeshire County Council,12-Aug-21,51301625134,"-4,333.56",DECOY FARM,CARE ESTABLISHMENT,LD - East Locality - Cost of Care,LD - East Cambs - Care,Residential Care
Cambridgeshire County Council,12-Aug-21,51301625134,"-4,333.56",DECOY FARM,CARE ESTABLISHMENT,LD - East Locality - Cost of Care,LD - East Cambs - Care,Residential Care
Cambridgeshire County Council,12-Aug-21,51301625134,"-4,333.56",DECOY FARM,CARE ESTABLISHMENT,LD - East Locality - Cost of Care,LD - East Cambs - Care,Residential Care
Cambridgeshire County Council,12-Aug-21,51301625134,"-4,333.56",DECOY FARM,CARE ESTABLISHMENT,LD - East Locality - Cost of Care,LD - East Cambs - Care,Residential Care
Cambridgeshire County Council,12-Aug-21,51301625134,"-4,333.56",DECOY FARM,CARE ESTABLISHMENT,LD - East Locality - Cost of Care,LD - East Cambs - Care,Residential Care
Cambridgeshire County Council,12-Aug-21,51301625134,"-4,333.56",DECOY FARM,CARE ESTABLISHMENT,LD - East Locality - Cost of Care,LD - East Cambs - Care,Residential Care
Cambridgeshire County Council,12-Aug-21,51301625134,"-4,333.56",DECOY FARM,CARE ESTABLISHMENT,LD - East Locality - Cost of Care,LD - East Cambs - Care,Residential Care
Cambridgeshire County Council,06-Aug-21,51301620246,"-4,094.46",BROOK HEALTHCARE,CARE ESTABLISHMENT,OP - City & South Blocks,City and South - Long term blocks,Residential Care
Cambridgeshire County Council,06-Aug-21,51301620246,"-4,094.46",BROOK HEALTHCARE,CARE ESTABLISHMENT,OP - City & South Blocks,City and South - Long term blocks,Residential Care
Cambridgeshire County Council,06-Aug-21,51301620246,"-4,094.46",BROOK HEALTHCARE,CARE ESTABLISHMENT,OP - City & South Blocks,City and South - Long term blocks,Residential Care
Cambridgeshire County Council,06-Aug-21,51301620246,"-4,094.46",BROOK HEALTHCARE,CARE ESTABLISHMENT,OP - City & South Blocks,City and South - Long term blocks,Residential Care
Cambridgeshire County Council,27-Aug-21,51301629791,"-4,035.41",GLENHOLME HEALTHCARE LTD,CARE ESTABLISHMENT,LD - South Locality - Cost of Care,LD - South Cambs - Special Needs,Residential Care
Cambridgeshire County Council,27-Aug-21,51301629791,"-4,035.41",GLENHOLME HEALTHCARE LTD,CARE ESTABLISHMENT,LD - South Locality - Cost of Care,LD - South Cambs - Special Needs,Residential Care
Cambridgeshire County Council,17-Aug-21,51301627143,"-3,992.14",Lighthouse Fostering,CARE ESTABLISHMENT,LAC Placements,Placements - independent fostering,Agency Placements - Out of  County
Cambridgeshire County Council,06-Aug-21,51301606480,"-3,880.45",CONSENSUS (CROMER HOUSE),CARE ESTABLISHMENT,LD - South Locality - Cost of Care,LD - South Cambs - Care,Residential Care
Cambridgeshire County Council,03-Aug-21,51301616705,"-3,808.57",To The Moon and Back Foster Care Limited,CARE ESTABLISHMENT,LAC Placements,Placements - independent fostering,Agency Placements - In County
Cambridgeshire County Council,03-Aug-21,51301616707,"-3,808.57",To The Moon and Back Foster Care Limited,CARE ESTABLISHMENT,LAC Placements,Placements - independent fostering,Agency Placements - In County
Cambridgeshire County Council,03-Aug-21,51301616703,"-3,685.71",To The Moon and Back Foster Care Limited,CARE ESTABLISHMENT,LAC Placements,Placements - independent fostering,Agency Placements - In County
Cambridgeshire County Council,27-Aug-21,51301629791,"-3,500.00",GLENHOLME HEALTHCARE LTD,CARE ESTABLISHMENT,LD - South Locality - Cost of Care,LD - South Cambs - Special Needs,Residential Care
Cambridgeshire County Council,27-Aug-21,51301629791,"-3,500.00",GLENHOLME HEALTHCARE LTD,CARE ESTABLISHMENT,LD - South Locality - Cost of Care,LD - South Cambs - Special Needs,Residential Care
Cambridgeshire County Council,27-Aug-21,51301629791,"-3,500.00",GLENHOLME HEALTHCARE LTD,CARE ESTABLISHMENT,LD - South Locality - Cost of Care,LD - South Cambs - Special Needs,Residential Care
Cambridgeshire County Council,27-Aug-21,51301629791,"-3,500.00",GLENHOLME HEALTHCARE LTD,CARE ESTABLISHMENT,LD - South Locality - Cost of Care,LD - South Cambs - Special Needs,Residential Care
Cambridgeshire County Council,27-Aug-21,51301629791,"-3,500.00",GLENHOLME HEALTHCARE LTD,CARE ESTABLISHMENT,LD - South Locality - Cost of Care,LD - South Cambs - Special Needs,Residential Care
Cambridgeshire County Council,27-Aug-21,51301629791,"-3,500.00",GLENHOLME HEALTHCARE LTD,CARE ESTABLISHMENT,LD - South Locality - Cost of Care,LD - South Cambs - Special Needs,Residential Care
Cambridgeshire County Council,27-Aug-21,51301629791,"-3,500.00",GLENHOLME HEALTHCARE LTD,CARE ESTABLISHMENT,LD - South Locality - Cost of Care,LD - South Cambs - Special Needs,Residential Care
Cambridgeshire County Council,27-Aug-21,51301629791,"-3,500.00",GLENHOLME HEALTHCARE LTD,CARE ESTABLISHMENT,LD - South Locality - Cost of Care,LD - South Cambs - Special Needs,Residential Care
Cambridgeshire County Council,27-Aug-21,51301629791,"-3,500.00",GLENHOLME HEALTHCARE LTD,CARE ESTABLISHMENT,LD - South Locality - Cost of Care,LD - South Cambs - Special Needs,Residential Care
Cambridgeshire County Council,27-Aug-21,51301629791,"-3,500.00",GLENHOLME HEALTHCARE LTD,CARE ESTABLISHMENT,LD - South Locality - Cost of Care,LD - South Cambs - Special Needs,Residential Care
Cambridgeshire County Council,27-Aug-21,51301629791,"-3,500.00",GLENHOLME HEALTHCARE LTD,CARE ESTABLISHMENT,LD - South Locality - Cost of Care,LD - South Cambs - Special Needs,Residential Care
Cambridgeshire County Council,27-Aug-21,51301629791,"-3,500.00",GLENHOLME HEALTHCARE LTD,CARE ESTABLISHMENT,LD - South Locality - Cost of Care,LD - South Cambs - Special Needs,Residential Care
Cambridgeshire County Council,27-Aug-21,51301629791,"-3,500.00",GLENHOLME HEALTHCARE LTD,CARE ESTABLISHMENT,LD - South Locality - Cost of Care,LD - South Cambs - Special Needs,Residential Care
Cambridgeshire County Council,27-Aug-21,51301629791,"-3,500.00",GLENHOLME HEALTHCARE LTD,CARE ESTABLISHMENT,LD - South Locality - Cost of Care,LD - South Cambs - Special Needs,Residential Care
Cambridgeshire County Council,27-Aug-21,51301629791,"-3,500.00",GLENHOLME HEALTHCARE LTD,CARE ESTABLISHMENT,LD - South Locality - Cost of Care,LD - South Cambs - Special Needs,Residential Care
Cambridgeshire County Council,27-Aug-21,51301629791,"-3,500.00",GLENHOLME HEALTHCARE LTD,CARE ESTABLISHMENT,LD - South Locality - Cost of Care,LD - South Cambs - Special Needs,Residential Care
Cambridgeshire County Council,27-Aug-21,51301629791,"-3,500.00",GLENHOLME HEALTHCARE LTD,CARE ESTABLISHMENT,LD - South Locality - Cost of Care,LD - South Cambs - Special Needs,Residential Care
Cambridgeshire County Council,27-Aug-21,51301629791,"-3,500.00",GLENHOLME HEALTHCARE LTD,CARE ESTABLISHMENT,LD - South Locality - Cost of Care,LD - South Cambs - Special Needs,Residential Care
Cambridgeshire County Council,27-Aug-21,51301629791,"-3,500.00",GLENHOLME HEALTHCARE LTD,CARE ESTABLISHMENT,LD - South Locality - Cost of Care,LD - South Cambs - Special Needs,Residential Care
Cambridgeshire County Council,27-Aug-21,51301629791,"-3,500.00",GLENHOLME HEALTHCARE LTD,CARE ESTABLISHMENT,LD - South Locality - Cost of Care,LD - South Cambs - Special Needs,Residential Care
Cambridgeshire County Council,27-Aug-21,51301629791,"-3,500.00",GLENHOLME HEALTHCARE LTD,CARE ESTABLISHMENT,LD - South Locality - Cost of Care,LD - South Cambs - Special Needs,Residential Care
Cambridgeshire County Council,27-Aug-21,51301629791,"-3,500.00",GLENHOLME HEALTHCARE LTD,CARE ESTABLISHMENT,LD - South Locality - Cost of Care,LD - South Cambs - Special Needs,Residential Care
Cambridgeshire County Council,27-Aug-21,51301629791,"-3,500.00",GLENHOLME HEALTHCARE LTD,CARE ESTABLISHMENT,LD - South Locality - Cost of Care,LD - South Cambs - Special Needs,Residential Care
Cambridgeshire County Council,27-Aug-21,51301629791,"-3,500.00",GLENHOLME HEALTHCARE LTD,CARE ESTABLISHMENT,LD - South Locality - Cost of Care,LD - South Cambs - Special Needs,Residential Care
Cambridgeshire County Council,27-Aug-21,51301629791,"-3,500.00",GLENHOLME HEALTHCARE LTD,CARE ESTABLISHMENT,LD - South Locality - Cost of Care,LD - South Cambs - Special Needs,Residential Care
Cambridgeshire County Council,27-Aug-21,51301629791,"-3,500.00",GLENHOLME HEALTHCARE LTD,CARE ESTABLISHMENT,LD - South Locality - Cost of Care,LD - South Cambs - Special Needs,Residential Care
Cambridgeshire County Council,27-Aug-21,51301629791,"-3,500.00",GLENHOLME HEALTHCARE LTD,CARE ESTABLISHMENT,LD - South Locality - Cost of Care,LD - South Cambs - Special Needs,Residential Care
Cambridgeshire County Council,27-Aug-21,51301629791,"-3,500.00",GLENHOLME HEALTHCARE LTD,CARE ESTABLISHMENT,LD - South Locality - Cost of Care,LD - South Cambs - Special Needs,Residential Care
Cambridgeshire County Council,27-Aug-21,51301629791,"-3,500.00",GLENHOLME HEALTHCARE LTD,CARE ESTABLISHMENT,LD - South Locality - Cost of Care,LD - South Cambs - Special Needs,Residential Care
Cambridgeshire County Council,27-Aug-21,51301629791,"-3,500.00",GLENHOLME HEALTHCARE LTD,CARE ESTABLISHMENT,LD - South Locality - Cost of Care,LD - South Cambs - Special Needs,Residential Care
Cambridgeshire County Council,27-Aug-21,51301629791,"-3,500.00",GLENHOLME HEALTHCARE LTD,CARE ESTABLISHMENT,LD - South Locality - Cost of Care,LD - South Cambs - Special Needs,Residential Care
Cambridgeshire County Council,06-Aug-21,51301620212,"-3,488.57",BROOK HEALTHCARE,CARE ESTABLISHMENT,OP - City & South Blocks,City and South - Long term blocks,Residential Care
Cambridgeshire County Council,03-Aug-21,51301616621,"-3,306.00",NEW CHAPTERS FOSTERCARE,CARE ESTABLISHMENT,LAC Placements,Placements - independent fostering,Agency Placements - Out of  County
Cambridgeshire County Council,05-Aug-21,51301602277,"-3,294.80",Redacted Personal Data ,PARENT/GUARDIAN,LD - Hunts Locality - Cost of Care,LD - Huntingdonshire - Care,Direct Payments
Cambridgeshire County Council,05-Aug-21,51301602277,"-3,294.80",Redacted Personal Data ,PARENT/GUARDIAN,LD - Hunts Locality - Cost of Care,LD - Huntingdonshire - Care,Direct Payments
Cambridgeshire County Council,05-Aug-21,51301602277,"-3,294.80",Redacted Personal Data ,PARENT/GUARDIAN,LD - Hunts Locality - Cost of Care,LD - Huntingdonshire - Care,Direct Payments
Cambridgeshire County Council,05-Aug-21,51301602277,"-3,294.80",Redacted Personal Data ,PARENT/GUARDIAN,LD - Hunts Locality - Cost of Care,LD - Huntingdonshire - Care,Direct Payments
Cambridgeshire County Council,05-Aug-21,51301617531,"-3,294.80",Redacted Personal Data ,PARENT/GUARDIAN,LD - Hunts Locality - Cost of Care,LD - Huntingdonshire - Care,Direct Payments
Cambridgeshire County Council,06-Aug-21,51301621199,"-3,275.16",VOYAGE,CARE ESTABLISHMENT,LD - Hunts Locality - Cost of Care,LD - Huntingdonshire - Special Needs,Supported Living
Cambridgeshire County Council,03-Aug-21,51301616629,"-3,214.29",Byrne House Ltd,CARE ESTABLISHMENT,LAC Placements,Placements - supported accommodation,Agency Placements - In County
Cambridgeshire County Council,06-Aug-21,51301620274,"-3,199.12",BUCHAN HEALTHCARE LTD,CARE ESTABLISHMENT,OP - City & South Blocks,City and South - Long term blocks,Nursing Care
Cambridgeshire County Council,06-Aug-21,51301620274,"-3,199.12",BUCHAN HEALTHCARE LTD,CARE ESTABLISHMENT,OP - City & South Blocks,City and South - Long term blocks,Nursing Care
Cambridgeshire County Council,06-Aug-21,51301620274,"-3,199.12",BUCHAN HEALTHCARE LTD,CARE ESTABLISHMENT,OP - City & South Blocks,City and South - Long term blocks,Nursing Care
Cambridgeshire County Council,06-Aug-21,51301620274,"-3,199.12",BUCHAN HEALTHCARE LTD,CARE ESTABLISHMENT,OP - City & South Blocks,City and South - Long term blocks,Nursing Care
Cambridgeshire County Council,06-Aug-21,51301620274,"-3,199.12",BUCHAN HEALTHCARE LTD,CARE ESTABLISHMENT,OP - City & South Blocks,City and South - Long term blocks,Nursing Care
Cambridgeshire County Council,06-Aug-21,51301620274,"-3,199.12",BUCHAN HEALTHCARE LTD,CARE ESTABLISHMENT,OP - City & South Blocks,City and South - Long term blocks,Nursing Care
Cambridgeshire County Council,06-Aug-21,51301620274,"-3,199.12",BUCHAN HEALTHCARE LTD,CARE ESTABLISHMENT,OP - City & South Blocks,City and South - Long term blocks,Nursing Care
Cambridgeshire County Council,06-Aug-21,51301620274,"-3,199.12",BUCHAN HEALTHCARE LTD,CARE ESTABLISHMENT,OP - City & South Blocks,City and South - Long term blocks,Nursing Care
Cambridgeshire County Council,06-Aug-21,51301620244,"-3,119.59",FITZWILLIAM HEALTHCARE LTD,CARE ESTABLISHMENT,OP - City & South Blocks,City and South - Long term blocks,Residential Care
Cambridgeshire County Council,26-Aug-21,51301629122,"-3,056.60",SEMI INDEPENDENT HOUSE,CARE ESTABLISHMENT,Unaccompanied Asylum Seeking Children,Unaccompanied Asylum Seeking Children <18,Asylum Seekers
Cambridgeshire County Council,26-Aug-21,51301629126,"-3,056.60",SEMI INDEPENDENT HOUSE,CARE ESTABLISHMENT,Unaccompanied Asylum Seeking Children,Unaccompanied Asylum Seeking Children <18,Asylum Seekers
Cambridgeshire County Council,26-Aug-21,51301629130,"-3,056.60",SEMI INDEPENDENT HOUSE,CARE ESTABLISHMENT,Unaccompanied Asylum Seeking Children,Unaccompanied Asylum Seeking Children <18,Asylum Seekers
Cambridgeshire County Council,26-Aug-21,51301629132,"-2,958.00",SEMI INDEPENDENT HOUSE,CARE ESTABLISHMENT,Unaccompanied Asylum Seeking Children,Unaccompanied Asylum Seeking Children <18,Asylum Seekers
Cambridgeshire County Council,26-Aug-21,51301629128,"-2,958.00",SEMI INDEPENDENT HOUSE,CARE ESTABLISHMENT,Unaccompanied Asylum Seeking Children,Unaccompanied Asylum Seeking Children <18,Asylum Seekers
Cambridgeshire County Council,03-Aug-21,51301610493,"-2,945.00",Lime Academy Orton - Lime Trust,EDUCATION,Recoupment,Procurement - Out-County Special Schools & ER,Independent School Placements
Cambridgeshire County Council,06-Aug-21,51301620290,"-2,885.00",SPRINGFIELD RESIDENTIAL CARE,CARE ESTABLISHMENT,OP - Fenland Blocks,Fenland - Short term blocks,Rehabilitation And Respite Care
Cambridgeshire County Council,06-Aug-21,51301620290,"-2,885.00",SPRINGFIELD RESIDENTIAL CARE,CARE ESTABLISHMENT,OP - Fenland Blocks,Fenland - Short term blocks,Rehabilitation And Respite Care
Cambridgeshire County Council,06-Aug-21,51301620290,"-2,885.00",SPRINGFIELD RESIDENTIAL CARE,CARE ESTABLISHMENT,OP - Fenland Blocks,Fenland - Short term blocks,Rehabilitation And Respite Care
Cambridgeshire County Council,06-Aug-21,51301620290,"-2,885.00",SPRINGFIELD RESIDENTIAL CARE,CARE ESTABLISHMENT,OP - Fenland Blocks,Fenland - Short term blocks,Rehabilitation And Respite Care
Cambridgeshire County Council,06-Aug-21,51301620217,"-2,775.00",FITZWILLIAM HEALTHCARE LTD,CARE ESTABLISHMENT,OP - City & South Blocks,City and South - Long term blocks,Residential Care
Cambridgeshire County Council,06-Aug-21,51301620217,"-2,775.00",FITZWILLIAM HEALTHCARE LTD,CARE ESTABLISHMENT,OP - City & South Blocks,City and South - Long term blocks,Residential Care
Cambridgeshire County Council,06-Aug-21,51301620217,"-2,775.00",FITZWILLIAM HEALTHCARE LTD,CARE ESTABLISHMENT,OP - City & South Blocks,City and South - Long term blocks,Residential Care
Cambridgeshire County Council,26-Aug-21,51301629124,"-2,760.80",SEMI INDEPENDENT HOUSE,CARE ESTABLISHMENT,Unaccompanied Asylum Seeking Children,Unaccompanied Asylum Seeking Children <18,Asylum Seekers
Cambridgeshire County Council,26-Aug-21,51301629120,"-2,760.80",SEMI INDEPENDENT HOUSE,CARE ESTABLISHMENT,Unaccompanied Asylum Seeking Children,Unaccompanied Asylum Seeking Children <18,Asylum Seekers
Cambridgeshire County Council,25-Aug-21,51301628703,"-2,748.57",Compass Fostering South East Limited,CARE ESTABLISHMENT,LAC Placements,Placements - independent fostering,Agency Placements - Out of  County
Cambridgeshire County Council,06-Aug-21,51301620280,"-2,742.10",ST GEORGE'S COURT,CARE ESTABLISHMENT,OP - City & South Blocks,City and South - Long term blocks,Nursing Care
Cambridgeshire County Council,06-Aug-21,51301606480,"-2,701.80",CONSENSUS (CROMER HOUSE),CARE ESTABLISHMENT,LD - South Locality - Cost of Care,LD - South Cambs - Care,Residential Care
Cambridgeshire County Council,06-Aug-21,51301623442,"-2,618.92",THERA EAST ANGLIA,CARE ESTABLISHMENT,LD - South Locality - Cost of Care,LD - South Cambs - Care,Domiciliary Care
Cambridgeshire County Council,06-Aug-21,51301623442,"-2,618.92",THERA EAST ANGLIA,CARE ESTABLISHMENT,LD - South Locality - Cost of Care,LD - South Cambs - Care,Domiciliary Care
Cambridgeshire County Council,06-Aug-21,51301623442,"-2,618.92",THERA EAST ANGLIA,CARE ESTABLISHMENT,LD - South Locality - Cost of Care,LD - South Cambs - Care,Domiciliary Care
Cambridgeshire County Council,06-Aug-21,51301623442,"-2,618.92",THERA EAST ANGLIA,CARE ESTABLISHMENT,LD - South Locality - Cost of Care,LD - South Cambs - Care,Domiciliary Care
Cambridgeshire County Council,06-Aug-21,51301623442,"-2,618.92",THERA EAST ANGLIA,CARE ESTABLISHMENT,LD - South Locality - Cost of Care,LD - South Cambs - Care,Domiciliary Care
Cambridgeshire County Council,06-Aug-21,51301623442,"-2,618.92",THERA EAST ANGLIA,CARE ESTABLISHMENT,LD - South Locality - Cost of Care,LD - South Cambs - Care,Domiciliary Care
Cambridgeshire County Council,06-Aug-21,51301623442,"-2,618.92",THERA EAST ANGLIA,CARE ESTABLISHMENT,LD - South Locality - Cost of Care,LD - South Cambs - Care,Domiciliary Care
Cambridgeshire County Council,06-Aug-21,51301623442,"-2,618.92",THERA EAST ANGLIA,CARE ESTABLISHMENT,LD - South Locality - Cost of Care,LD - South Cambs - Care,Domiciliary Care
Cambridgeshire County Council,06-Aug-21,51301623442,"-2,618.92",THERA EAST ANGLIA,CARE ESTABLISHMENT,LD - South Locality - Cost of Care,LD - South Cambs - Care,Domiciliary Care
Cambridgeshire County Council,06-Aug-21,51301623442,"-2,618.92",THERA EAST ANGLIA,CARE ESTABLISHMENT,LD - South Locality - Cost of Care,LD - South Cambs - Care,Domiciliary Care
Cambridgeshire County Council,06-Aug-21,51301623442,"-2,618.92",THERA EAST ANGLIA,CARE ESTABLISHMENT,LD - South Locality - Cost of Care,LD - South Cambs - Care,Domiciliary Care
Cambridgeshire County Council,06-Aug-21,51301623442,"-2,618.92",THERA EAST ANGLIA,CARE ESTABLISHMENT,LD - South Locality - Cost of Care,LD - South Cambs - Care,Domiciliary Care
Cambridgeshire County Council,06-Aug-21,51301623442,"-2,618.92",THERA EAST ANGLIA,CARE ESTABLISHMENT,LD - South Locality - Cost of Care,LD - South Cambs - Care,Domiciliary Care
Cambridgeshire County Council,06-Aug-21,51301623442,"-2,618.92",THERA EAST ANGLIA,CARE ESTABLISHMENT,LD - South Locality - Cost of Care,LD - South Cambs - Care,Domiciliary Care
Cambridgeshire County Council,06-Aug-21,51301623442,"-2,618.92",THERA EAST ANGLIA,CARE ESTABLISHMENT,LD - South Locality - Cost of Care,LD - South Cambs - Care,Domiciliary Care
Cambridgeshire County Council,06-Aug-21,51301623442,"-2,618.92",THERA EAST ANGLIA,CARE ESTABLISHMENT,LD - South Locality - Cost of Care,LD - South Cambs - Care,Domiciliary Care
Cambridgeshire County Council,06-Aug-21,51301623442,"-2,618.92",THERA EAST ANGLIA,CARE ESTABLISHMENT,LD - South Locality - Cost of Care,LD - South Cambs - Care,Domiciliary Care
Cambridgeshire County Council,06-Aug-21,51301623442,"-2,618.92",THERA EAST ANGLIA,CARE ESTABLISHMENT,LD - South Locality - Cost of Care,LD - South Cambs - Care,Domiciliary Care
Cambridgeshire County Council,06-Aug-21,51301623442,"-2,618.92",THERA EAST ANGLIA,CARE ESTABLISHMENT,LD - South Locality - Cost of Care,LD - South Cambs - Care,Domiciliary Care
Cambridgeshire County Council,06-Aug-21,51301623442,"-2,618.92",THERA EAST ANGLIA,CARE ESTABLISHMENT,LD - South Locality - Cost of Care,LD - South Cambs - Care,Domiciliary Care
Cambridgeshire County Council,06-Aug-21,51301623442,"-2,618.92",THERA EAST ANGLIA,CARE ESTABLISHMENT,LD - South Locality - Cost of Care,LD - South Cambs - Care,Domiciliary Care
Cambridgeshire County Council,06-Aug-21,51301623442,"-2,618.92",THERA EAST ANGLIA,CARE ESTABLISHMENT,LD - South Locality - Cost of Care,LD - South Cambs - Care,Domiciliary Care
Cambridgeshire County Council,06-Aug-21,51301623442,"-2,618.92",THERA EAST ANGLIA,CARE ESTABLISHMENT,LD - South Locality - Cost of Care,LD - South Cambs - Care,Domiciliary Care
Cambridgeshire County Council,06-Aug-21,51301623442,"-2,618.92",THERA EAST ANGLIA,CARE ESTABLISHMENT,LD - South Locality - Cost of Care,LD - South Cambs - Care,Domiciliary Care
Cambridgeshire County Council,06-Aug-21,51301623442,"-2,618.92",THERA EAST ANGLIA,CARE ESTABLISHMENT,LD - South Locality - Cost of Care,LD - South Cambs - Care,Domiciliary Care
Cambridgeshire County Council,06-Aug-21,51301623442,"-2,618.92",THERA EAST ANGLIA,CARE ESTABLISHMENT,LD - South Locality - Cost of Care,LD - South Cambs - Care,Domiciliary Care
Cambridgeshire County Council,06-Aug-21,51301623442,"-2,618.92",THERA EAST ANGLIA,CARE ESTABLISHMENT,LD - South Locality - Cost of Care,LD - South Cambs - Care,Domiciliary Care
Cambridgeshire County Council,06-Aug-21,51301623442,"-2,618.92",THERA EAST ANGLIA,CARE ESTABLISHMENT,LD - South Locality - Cost of Care,LD - South Cambs - Care,Domiciliary Care
Cambridgeshire County Council,06-Aug-21,51301623442,"-2,618.92",THERA EAST ANGLIA,CARE ESTABLISHMENT,LD - South Locality - Cost of Care,LD - South Cambs - Care,Domiciliary Care
Cambridgeshire County Council,06-Aug-21,51301623442,"-2,618.92",THERA EAST ANGLIA,CARE ESTABLISHMENT,LD - South Locality - Cost of Care,LD - South Cambs - Care,Domiciliary Care
Cambridgeshire County Council,06-Aug-21,51301623442,"-2,618.92",THERA EAST ANGLIA,CARE ESTABLISHMENT,LD - South Locality - Cost of Care,LD - South Cambs - Care,Domiciliary Care
Cambridgeshire County Council,06-Aug-21,51301623442,"-2,618.92",THERA EAST ANGLIA,CARE ESTABLISHMENT,LD - South Locality - Cost of Care,LD - South Cambs - Care,Domiciliary Care
Cambridgeshire County Council,06-Aug-21,51301623442,"-2,618.92",THERA EAST ANGLIA,CARE ESTABLISHMENT,LD - South Locality - Cost of Care,LD - South Cambs - Care,Domiciliary Care
Cambridgeshire County Council,06-Aug-21,51301623442,"-2,618.92",THERA EAST ANGLIA,CARE ESTABLISHMENT,LD - South Locality - Cost of Care,LD - South Cambs - Care,Domiciliary Care
Cambridgeshire County Council,06-Aug-21,51301623442,"-2,618.92",THERA EAST ANGLIA,CARE ESTABLISHMENT,LD - South Locality - Cost of Care,LD - South Cambs - Care,Domiciliary Care
Cambridgeshire County Council,06-Aug-21,51301623442,"-2,618.92",THERA EAST ANGLIA,CARE ESTABLISHMENT,LD - South Locality - Cost of Care,LD - South Cambs - Care,Domiciliary Care
Cambridgeshire County Council,06-Aug-21,51301623442,"-2,618.92",THERA EAST ANGLIA,CARE ESTABLISHMENT,LD - South Locality - Cost of Care,LD - South Cambs - Care,Domiciliary Care
Cambridgeshire County Council,06-Aug-21,51301623442,"-2,618.92",THERA EAST ANGLIA,CARE ESTABLISHMENT,LD - South Locality - Cost of Care,LD - South Cambs - Care,Domiciliary Care
Cambridgeshire County Council,06-Aug-21,51301623442,"-2,618.92",THERA EAST ANGLIA,CARE ESTABLISHMENT,LD - South Locality - Cost of Care,LD - South Cambs - Care,Domiciliary Care
Cambridgeshire County Council,06-Aug-21,51301623442,"-2,618.92",THERA EAST ANGLIA,CARE ESTABLISHMENT,LD - South Locality - Cost of Care,LD - South Cambs - Care,Domiciliary Care
Cambridgeshire County Council,06-Aug-21,51301623442,"-2,618.92",THERA EAST ANGLIA,CARE ESTABLISHMENT,LD - South Locality - Cost of Care,LD - South Cambs - Care,Domiciliary Care
Cambridgeshire County Council,06-Aug-21,51301623442,"-2,618.92",THERA EAST ANGLIA,CARE ESTABLISHMENT,LD - South Locality - Cost of Care,LD - South Cambs - Care,Domiciliary Care
Cambridgeshire County Council,06-Aug-21,51301623442,"-2,618.92",THERA EAST ANGLIA,CARE ESTABLISHMENT,LD - South Locality - Cost of Care,LD - South Cambs - Care,Domiciliary Care
Cambridgeshire County Council,06-Aug-21,51301623442,"-2,618.92",THERA EAST ANGLIA,CARE ESTABLISHMENT,LD - South Locality - Cost of Care,LD - South Cambs - Care,Domiciliary Care
Cambridgeshire County Council,06-Aug-21,51301623442,"-2,618.92",THERA EAST ANGLIA,CARE ESTABLISHMENT,LD - South Locality - Cost of Care,LD - South Cambs - Care,Domiciliary Care
Cambridgeshire County Council,06-Aug-21,51301623442,"-2,618.92",THERA EAST ANGLIA,CARE ESTABLISHMENT,LD - South Locality - Cost of Care,LD - South Cambs - Care,Domiciliary Care
Cambridgeshire County Council,06-Aug-21,51301623442,"-2,618.92",THERA EAST ANGLIA,CARE ESTABLISHMENT,LD - South Locality - Cost of Care,LD - South Cambs - Care,Domiciliary Care
Cambridgeshire County Council,06-Aug-21,51301623442,"-2,618.92",THERA EAST ANGLIA,CARE ESTABLISHMENT,LD - South Locality - Cost of Care,LD - South Cambs - Care,Domiciliary Care
Cambridgeshire County Council,06-Aug-21,51301623442,"-2,618.92",THERA EAST ANGLIA,CARE ESTABLISHMENT,LD - South Locality - Cost of Care,LD - South Cambs - Care,Domiciliary Care
Cambridgeshire County Council,06-Aug-21,51301623442,"-2,618.92",THERA EAST ANGLIA,CARE ESTABLISHMENT,LD - South Locality - Cost of Care,LD - South Cambs - Care,Domiciliary Care
Cambridgeshire County Council,06-Aug-21,51301623442,"-2,618.92",THERA EAST ANGLIA,CARE ESTABLISHMENT,LD - South Locality - Cost of Care,LD - South Cambs - Care,Domiciliary Care
Cambridgeshire County Council,06-Aug-21,51301623442,"-2,618.92",THERA EAST ANGLIA,CARE ESTABLISHMENT,LD - South Locality - Cost of Care,LD - South Cambs - Care,Domiciliary Care
Cambridgeshire County Council,06-Aug-21,51301623442,"-2,618.92",THERA EAST ANGLIA,CARE ESTABLISHMENT,LD - South Locality - Cost of Care,LD - South Cambs - Care,Domiciliary Care
Cambridgeshire County Council,06-Aug-21,51301623442,"-2,618.92",THERA EAST ANGLIA,CARE ESTABLISHMENT,LD - South Locality - Cost of Care,LD - South Cambs - Care,Domiciliary Care
Cambridgeshire County Council,06-Aug-21,51301620274,"-2,486.88",BUCHAN HEALTHCARE LTD,CARE ESTABLISHMENT,OP - City & South Blocks,City and South - Long term blocks,Nursing Care
Cambridgeshire County Council,06-Aug-21,51301620274,"-2,486.88",BUCHAN HEALTHCARE LTD,CARE ESTABLISHMENT,OP - City & South Blocks,City and South - Long term blocks,Nursing Care
Cambridgeshire County Council,06-Aug-21,51301620274,"-2,486.88",BUCHAN HEALTHCARE LTD,CARE ESTABLISHMENT,OP - City & South Blocks,City and South - Long term blocks,Nursing Care
Cambridgeshire County Council,17-Aug-21,51301627368,"-2,398.80",TRANSITION CARE PETERBOROUGH LTD,CARE ESTABLISHMENT,LAC Placements,Placements - supported accommodation,Agency Placements - In County
Cambridgeshire County Council,17-Aug-21,51301627370,"-2,398.80",TRANSITION CARE PETERBOROUGH LTD,CARE ESTABLISHMENT,LAC Placements,Placements - supported accommodation,Agency Placements - In County
Cambridgeshire County Council,17-Aug-21,51301627373,"-2,398.80",TRANSITION CARE PETERBOROUGH LTD,CARE ESTABLISHMENT,LAC Placements,Placements - supported accommodation,Agency Placements - In County
Cambridgeshire County Council,06-Aug-21,51301623482,"-2,368.08",THERA EAST ANGLIA,CARE ESTABLISHMENT,LD - East Locality - Cost of Care,LD - East Cambs - Care,Domiciliary Care
Cambridgeshire County Council,06-Aug-21,51301623482,"-2,368.08",THERA EAST ANGLIA,CARE ESTABLISHMENT,LD - East Locality - Cost of Care,LD - East Cambs - Care,Domiciliary Care
Cambridgeshire County Council,06-Aug-21,51301623482,"-2,368.08",THERA EAST ANGLIA,CARE ESTABLISHMENT,LD - East Locality - Cost of Care,LD - East Cambs - Care,Domiciliary Care
Cambridgeshire County Council,06-Aug-21,51301623482,"-2,368.08",THERA EAST ANGLIA,CARE ESTABLISHMENT,LD - East Locality - Cost of Care,LD - East Cambs - Care,Domiciliary Care
Cambridgeshire County Council,06-Aug-21,51301623482,"-2,368.08",THERA EAST ANGLIA,CARE ESTABLISHMENT,LD - East Locality - Cost of Care,LD - East Cambs - Care,Domiciliary Care
Cambridgeshire County Council,06-Aug-21,51301623482,"-2,368.08",THERA EAST ANGLIA,CARE ESTABLISHMENT,LD - East Locality - Cost of Care,LD - East Cambs - Care,Domiciliary Care
Cambridgeshire County Council,06-Aug-21,51301623482,"-2,368.08",THERA EAST ANGLIA,CARE ESTABLISHMENT,LD - East Locality - Cost of Care,LD - East Cambs - Care,Domiciliary Care
Cambridgeshire County Council,06-Aug-21,51301623482,"-2,368.08",THERA EAST ANGLIA,CARE ESTABLISHMENT,LD - East Locality - Cost of Care,LD - East Cambs - Care,Domiciliary Care
Cambridgeshire County Council,06-Aug-21,51301623482,"-2,368.08",THERA EAST ANGLIA,CARE ESTABLISHMENT,LD - East Locality - Cost of Care,LD - East Cambs - Care,Domiciliary Care
Cambridgeshire County Council,06-Aug-21,51301623482,"-2,368.08",THERA EAST ANGLIA,CARE ESTABLISHMENT,LD - East Locality - Cost of Care,LD - East Cambs - Care,Domiciliary Care
Cambridgeshire County Council,06-Aug-21,51301623482,"-2,368.08",THERA EAST ANGLIA,CARE ESTABLISHMENT,LD - East Locality - Cost of Care,LD - East Cambs - Care,Domiciliary Care
Cambridgeshire County Council,06-Aug-21,51301623482,"-2,368.08",THERA EAST ANGLIA,CARE ESTABLISHMENT,LD - East Locality - Cost of Care,LD - East Cambs - Care,Domiciliary Care
Cambridgeshire County Council,06-Aug-21,51301623482,"-2,368.08",THERA EAST ANGLIA,CARE ESTABLISHMENT,LD - East Locality - Cost of Care,LD - East Cambs - Care,Domiciliary Care
Cambridgeshire County Council,06-Aug-21,51301623482,"-2,368.08",THERA EAST ANGLIA,CARE ESTABLISHMENT,LD - East Locality - Cost of Care,LD - East Cambs - Care,Domiciliary Care
Cambridgeshire County Council,06-Aug-21,51301623482,"-2,368.08",THERA EAST ANGLIA,CARE ESTABLISHMENT,LD - East Locality - Cost of Care,LD - East Cambs - Care,Domiciliary Care
Cambridgeshire County Council,06-Aug-21,51301623482,"-2,368.08",THERA EAST ANGLIA,CARE ESTABLISHMENT,LD - East Locality - Cost of Care,LD - East Cambs - Care,Domiciliary Care
Cambridgeshire County Council,06-Aug-21,51301623482,"-2,368.08",THERA EAST ANGLIA,CARE ESTABLISHMENT,LD - East Locality - Cost of Care,LD - East Cambs - Care,Domiciliary Care
Cambridgeshire County Council,06-Aug-21,51301623482,"-2,368.08",THERA EAST ANGLIA,CARE ESTABLISHMENT,LD - East Locality - Cost of Care,LD - East Cambs - Care,Domiciliary Care
Cambridgeshire County Council,06-Aug-21,51301623482,"-2,368.08",THERA EAST ANGLIA,CARE ESTABLISHMENT,LD - East Locality - Cost of Care,LD - East Cambs - Care,Domiciliary Care
Cambridgeshire County Council,06-Aug-21,51301623482,"-2,368.08",THERA EAST ANGLIA,CARE ESTABLISHMENT,LD - East Locality - Cost of Care,LD - East Cambs - Care,Domiciliary Care
Cambridgeshire County Council,06-Aug-21,51301623482,"-2,368.08",THERA EAST ANGLIA,CARE ESTABLISHMENT,LD - East Locality - Cost of Care,LD - East Cambs - Care,Domiciliary Care
Cambridgeshire County Council,06-Aug-21,51301623482,"-2,368.08",THERA EAST ANGLIA,CARE ESTABLISHMENT,LD - East Locality - Cost of Care,LD - East Cambs - Care,Domiciliary Care
Cambridgeshire County Council,06-Aug-21,51301623482,"-2,368.08",THERA EAST ANGLIA,CARE ESTABLISHMENT,LD - East Locality - Cost of Care,LD - East Cambs - Care,Domiciliary Care
Cambridgeshire County Council,06-Aug-21,51301623482,"-2,368.08",THERA EAST ANGLIA,CARE ESTABLISHMENT,LD - East Locality - Cost of Care,LD - East Cambs - Care,Domiciliary Care
Cambridgeshire County Council,06-Aug-21,51301623482,"-2,368.08",THERA EAST ANGLIA,CARE ESTABLISHMENT,LD - East Locality - Cost of Care,LD - East Cambs - Care,Domiciliary Care
Cambridgeshire County Council,06-Aug-21,51301623482,"-2,368.08",THERA EAST ANGLIA,CARE ESTABLISHMENT,LD - East Locality - Cost of Care,LD - East Cambs - Care,Domiciliary Care
Cambridgeshire County Council,06-Aug-21,51301623482,"-2,368.08",THERA EAST ANGLIA,CARE ESTABLISHMENT,LD - East Locality - Cost of Care,LD - East Cambs - Care,Domiciliary Care
Cambridgeshire County Council,06-Aug-21,51301623482,"-2,368.08",THERA EAST ANGLIA,CARE ESTABLISHMENT,LD - East Locality - Cost of Care,LD - East Cambs - Care,Domiciliary Care
Cambridgeshire County Council,06-Aug-21,51301623482,"-2,368.08",THERA EAST ANGLIA,CARE ESTABLISHMENT,LD - East Locality - Cost of Care,LD - East Cambs - Care,Domiciliary Care
Cambridgeshire County Council,06-Aug-21,51301623482,"-2,368.08",THERA EAST ANGLIA,CARE ESTABLISHMENT,LD - East Locality - Cost of Care,LD - East Cambs - Care,Domiciliary Care
Cambridgeshire County Council,06-Aug-21,51301623482,"-2,368.08",THERA EAST ANGLIA,CARE ESTABLISHMENT,LD - East Locality - Cost of Care,LD - East Cambs - Care,Domiciliary Care
Cambridgeshire County Council,06-Aug-21,51301623482,"-2,368.08",THERA EAST ANGLIA,CARE ESTABLISHMENT,LD - East Locality - Cost of Care,LD - East Cambs - Care,Domiciliary Care
Cambridgeshire County Council,06-Aug-21,51301623482,"-2,368.08",THERA EAST ANGLIA,CARE ESTABLISHMENT,LD - East Locality - Cost of Care,LD - East Cambs - Care,Domiciliary Care
Cambridgeshire County Council,06-Aug-21,51301623482,"-2,368.08",THERA EAST ANGLIA,CARE ESTABLISHMENT,LD - East Locality - Cost of Care,LD - East Cambs - Care,Domiciliary Care
Cambridgeshire County Council,06-Aug-21,51301623482,"-2,368.08",THERA EAST ANGLIA,CARE ESTABLISHMENT,LD - East Locality - Cost of Care,LD - East Cambs - Care,Domiciliary Care
Cambridgeshire County Council,06-Aug-21,51301623482,"-2,368.08",THERA EAST ANGLIA,CARE ESTABLISHMENT,LD - East Locality - Cost of Care,LD - East Cambs - Care,Domiciliary Care
Cambridgeshire County Council,06-Aug-21,51301623482,"-2,368.08",THERA EAST ANGLIA,CARE ESTABLISHMENT,LD - East Locality - Cost of Care,LD - East Cambs - Care,Domiciliary Care
Cambridgeshire County Council,06-Aug-21,51301623482,"-2,368.08",THERA EAST ANGLIA,CARE ESTABLISHMENT,LD - East Locality - Cost of Care,LD - East Cambs - Care,Domiciliary Care
Cambridgeshire County Council,06-Aug-21,51301623482,"-2,368.08",THERA EAST ANGLIA,CARE ESTABLISHMENT,LD - East Locality - Cost of Care,LD - East Cambs - Care,Domiciliary Care
Cambridgeshire County Council,06-Aug-21,51301623482,"-2,368.08",THERA EAST ANGLIA,CARE ESTABLISHMENT,LD - East Locality - Cost of Care,LD - East Cambs - Care,Domiciliary Care
Cambridgeshire County Council,06-Aug-21,51301623482,"-2,368.08",THERA EAST ANGLIA,CARE ESTABLISHMENT,LD - East Locality - Cost of Care,LD - East Cambs - Care,Domiciliary Care
Cambridgeshire County Council,06-Aug-21,51301623482,"-2,368.08",THERA EAST ANGLIA,CARE ESTABLISHMENT,LD - East Locality - Cost of Care,LD - East Cambs - Care,Domiciliary Care
Cambridgeshire County Council,06-Aug-21,51301623482,"-2,368.08",THERA EAST ANGLIA,CARE ESTABLISHMENT,LD - East Locality - Cost of Care,LD - East Cambs - Care,Domiciliary Care
Cambridgeshire County Council,06-Aug-21,51301623482,"-2,368.08",THERA EAST ANGLIA,CARE ESTABLISHMENT,LD - East Locality - Cost of Care,LD - East Cambs - Care,Domiciliary Care
Cambridgeshire County Council,06-Aug-21,51301623482,"-2,368.08",THERA EAST ANGLIA,CARE ESTABLISHMENT,LD - East Locality - Cost of Care,LD - East Cambs - Care,Domiciliary Care
Cambridgeshire County Council,06-Aug-21,51301623482,"-2,368.08",THERA EAST ANGLIA,CARE ESTABLISHMENT,LD - East Locality - Cost of Care,LD - East Cambs - Care,Domiciliary Care
Cambridgeshire County Council,06-Aug-21,51301623482,"-2,368.08",THERA EAST ANGLIA,CARE ESTABLISHMENT,LD - East Locality - Cost of Care,LD - East Cambs - Care,Domiciliary Care
Cambridgeshire County Council,06-Aug-21,51301623482,"-2,368.08",THERA EAST ANGLIA,CARE ESTABLISHMENT,LD - East Locality - Cost of Care,LD - East Cambs - Care,Domiciliary Care
Cambridgeshire County Council,06-Aug-21,51301623482,"-2,368.08",THERA EAST ANGLIA,CARE ESTABLISHMENT,LD - East Locality - Cost of Care,LD - East Cambs - Care,Domiciliary Care
Cambridgeshire County Council,06-Aug-21,51301623482,"-2,368.08",THERA EAST ANGLIA,CARE ESTABLISHMENT,LD - East Locality - Cost of Care,LD - East Cambs - Care,Domiciliary Care
Cambridgeshire County Council,06-Aug-21,51301623482,"-2,368.08",THERA EAST ANGLIA,CARE ESTABLISHMENT,LD - East Locality - Cost of Care,LD - East Cambs - Care,Domiciliary Care
Cambridgeshire County Council,06-Aug-21,51301623482,"-2,368.08",THERA EAST ANGLIA,CARE ESTABLISHMENT,LD - East Locality - Cost of Care,LD - East Cambs - Care,Domiciliary Care
Cambridgeshire County Council,06-Aug-21,51301623482,"-2,368.08",THERA EAST ANGLIA,CARE ESTABLISHMENT,LD - East Locality - Cost of Care,LD - East Cambs - Care,Domiciliary Care
Cambridgeshire County Council,06-Aug-21,51301623482,"-2,368.08",THERA EAST ANGLIA,CARE ESTABLISHMENT,LD - East Locality - Cost of Care,LD - East Cambs - Care,Domiciliary Care
Cambridgeshire County Council,06-Aug-21,51301620246,"-2,339.69",BROOK HEALTHCARE,CARE ESTABLISHMENT,OP - City & South Blocks,City and South - Long term blocks,Residential Care
Cambridgeshire County Council,06-Aug-21,51301623448,"-2,328.15",THERA EAST ANGLIA,CARE ESTABLISHMENT,LD - Fenland Locality - Cost of Care,LD - Fenland  - Special Needs,Domiciliary Care
Cambridgeshire County Council,06-Aug-21,51301623448,"-2,328.15",THERA EAST ANGLIA,CARE ESTABLISHMENT,LD - Fenland Locality - Cost of Care,LD - Fenland  - Special Needs,Domiciliary Care
Cambridgeshire County Council,06-Aug-21,51301623448,"-2,328.15",THERA EAST ANGLIA,CARE ESTABLISHMENT,LD - Fenland Locality - Cost of Care,LD - Fenland  - Special Needs,Domiciliary Care
Cambridgeshire County Council,06-Aug-21,51301623448,"-2,328.15",THERA EAST ANGLIA,CARE ESTABLISHMENT,LD - Fenland Locality - Cost of Care,LD - Fenland  - Special Needs,Domiciliary Care
Cambridgeshire County Council,06-Aug-21,51301623448,"-2,328.15",THERA EAST ANGLIA,CARE ESTABLISHMENT,LD - Fenland Locality - Cost of Care,LD - Fenland  - Special Needs,Domiciliary Care
Cambridgeshire County Council,06-Aug-21,51301623448,"-2,328.15",THERA EAST ANGLIA,CARE ESTABLISHMENT,LD - Fenland Locality - Cost of Care,LD - Fenland  - Special Needs,Domiciliary Care
Cambridgeshire County Council,06-Aug-21,51301623448,"-2,328.15",THERA EAST ANGLIA,CARE ESTABLISHMENT,LD - Fenland Locality - Cost of Care,LD - Fenland  - Special Needs,Domiciliary Care
Cambridgeshire County Council,06-Aug-21,51301623448,"-2,328.15",THERA EAST ANGLIA,CARE ESTABLISHMENT,LD - Fenland Locality - Cost of Care,LD - Fenland  - Special Needs,Domiciliary Care
Cambridgeshire County Council,06-Aug-21,51301623448,"-2,328.15",THERA EAST ANGLIA,CARE ESTABLISHMENT,LD - Fenland Locality - Cost of Care,LD - Fenland  - Special Needs,Domiciliary Care
Cambridgeshire County Council,06-Aug-21,51301623448,"-2,328.15",THERA EAST ANGLIA,CARE ESTABLISHMENT,LD - Fenland Locality - Cost of Care,LD - Fenland  - Special Needs,Domiciliary Care
Cambridgeshire County Council,06-Aug-21,51301623448,"-2,328.15",THERA EAST ANGLIA,CARE ESTABLISHMENT,LD - Fenland Locality - Cost of Care,LD - Fenland  - Special Needs,Domiciliary Care
Cambridgeshire County Council,06-Aug-21,51301623448,"-2,328.15",THERA EAST ANGLIA,CARE ESTABLISHMENT,LD - Fenland Locality - Cost of Care,LD - Fenland  - Special Needs,Domiciliary Care
Cambridgeshire County Council,06-Aug-21,51301623448,"-2,328.15",THERA EAST ANGLIA,CARE ESTABLISHMENT,LD - Fenland Locality - Cost of Care,LD - Fenland  - Special Needs,Domiciliary Care
Cambridgeshire County Council,06-Aug-21,51301623448,"-2,328.15",THERA EAST ANGLIA,CARE ESTABLISHMENT,LD - Fenland Locality - Cost of Care,LD - Fenland  - Special Needs,Domiciliary Care
Cambridgeshire County Council,06-Aug-21,51301623448,"-2,328.15",THERA EAST ANGLIA,CARE ESTABLISHMENT,LD - Fenland Locality - Cost of Care,LD - Fenland  - Special Needs,Domiciliary Care
Cambridgeshire County Council,06-Aug-21,51301623448,"-2,328.15",THERA EAST ANGLIA,CARE ESTABLISHMENT,LD - Fenland Locality - Cost of Care,LD - Fenland  - Special Needs,Domiciliary Care
Cambridgeshire County Council,06-Aug-21,51301623448,"-2,328.15",THERA EAST ANGLIA,CARE ESTABLISHMENT,LD - Fenland Locality - Cost of Care,LD - Fenland  - Special Needs,Domiciliary Care
Cambridgeshire County Council,06-Aug-21,51301623448,"-2,328.15",THERA EAST ANGLIA,CARE ESTABLISHMENT,LD - Fenland Locality - Cost of Care,LD - Fenland  - Special Needs,Domiciliary Care
Cambridgeshire County Council,06-Aug-21,51301623448,"-2,328.15",THERA EAST ANGLIA,CARE ESTABLISHMENT,LD - Fenland Locality - Cost of Care,LD - Fenland  - Special Needs,Domiciliary Care
Cambridgeshire County Council,06-Aug-21,51301623448,"-2,328.15",THERA EAST ANGLIA,CARE ESTABLISHMENT,LD - Fenland Locality - Cost of Care,LD - Fenland  - Special Needs,Domiciliary Care
Cambridgeshire County Council,06-Aug-21,51301623448,"-2,328.15",THERA EAST ANGLIA,CARE ESTABLISHMENT,LD - Fenland Locality - Cost of Care,LD - Fenland  - Special Needs,Domiciliary Care
Cambridgeshire County Council,06-Aug-21,51301623448,"-2,328.15",THERA EAST ANGLIA,CARE ESTABLISHMENT,LD - Fenland Locality - Cost of Care,LD - Fenland  - Special Needs,Domiciliary Care
Cambridgeshire County Council,06-Aug-21,51301623448,"-2,328.15",THERA EAST ANGLIA,CARE ESTABLISHMENT,LD - Fenland Locality - Cost of Care,LD - Fenland  - Special Needs,Domiciliary Care
Cambridgeshire County Council,06-Aug-21,51301623448,"-2,328.15",THERA EAST ANGLIA,CARE ESTABLISHMENT,LD - Fenland Locality - Cost of Care,LD - Fenland  - Special Needs,Domiciliary Care
Cambridgeshire County Council,06-Aug-21,51301623448,"-2,328.15",THERA EAST ANGLIA,CARE ESTABLISHMENT,LD - Fenland Locality - Cost of Care,LD - Fenland  - Special Needs,Domiciliary Care
Cambridgeshire County Council,06-Aug-21,51301623448,"-2,328.15",THERA EAST ANGLIA,CARE ESTABLISHMENT,LD - Fenland Locality - Cost of Care,LD - Fenland  - Special Needs,Domiciliary Care
Cambridgeshire County Council,06-Aug-21,51301623448,"-2,328.15",THERA EAST ANGLIA,CARE ESTABLISHMENT,LD - Fenland Locality - Cost of Care,LD - Fenland  - Special Needs,Domiciliary Care
Cambridgeshire County Council,06-Aug-21,51301623448,"-2,328.15",THERA EAST ANGLIA,CARE ESTABLISHMENT,LD - Fenland Locality - Cost of Care,LD - Fenland  - Special Needs,Domiciliary Care
Cambridgeshire County Council,06-Aug-21,51301623448,"-2,328.15",THERA EAST ANGLIA,CARE ESTABLISHMENT,LD - Fenland Locality - Cost of Care,LD - Fenland  - Special Needs,Domiciliary Care
Cambridgeshire County Council,06-Aug-21,51301623448,"-2,328.15",THERA EAST ANGLIA,CARE ESTABLISHMENT,LD - Fenland Locality - Cost of Care,LD - Fenland  - Special Needs,Domiciliary Care
Cambridgeshire County Council,06-Aug-21,51301623448,"-2,328.15",THERA EAST ANGLIA,CARE ESTABLISHMENT,LD - Fenland Locality - Cost of Care,LD - Fenland  - Special Needs,Domiciliary Care
Cambridgeshire County Council,06-Aug-21,51301623448,"-2,328.15",THERA EAST ANGLIA,CARE ESTABLISHMENT,LD - Fenland Locality - Cost of Care,LD - Fenland  - Special Needs,Domiciliary Care
Cambridgeshire County Council,06-Aug-21,51301623448,"-2,328.15",THERA EAST ANGLIA,CARE ESTABLISHMENT,LD - Fenland Locality - Cost of Care,LD - Fenland  - Special Needs,Domiciliary Care
Cambridgeshire County Council,06-Aug-21,51301623448,"-2,328.15",THERA EAST ANGLIA,CARE ESTABLISHMENT,LD - Fenland Locality - Cost of Care,LD - Fenland  - Special Needs,Domiciliary Care
Cambridgeshire County Council,06-Aug-21,51301623448,"-2,328.15",THERA EAST ANGLIA,CARE ESTABLISHMENT,LD - Fenland Locality - Cost of Care,LD - Fenland  - Special Needs,Domiciliary Care
Cambridgeshire County Council,06-Aug-21,51301623448,"-2,328.15",THERA EAST ANGLIA,CARE ESTABLISHMENT,LD - Fenland Locality - Cost of Care,LD - Fenland  - Special Needs,Domiciliary Care
Cambridgeshire County Council,06-Aug-21,51301623448,"-2,328.15",THERA EAST ANGLIA,CARE ESTABLISHMENT,LD - Fenland Locality - Cost of Care,LD - Fenland  - Special Needs,Domiciliary Care
Cambridgeshire County Council,06-Aug-21,51301623448,"-2,328.15",THERA EAST ANGLIA,CARE ESTABLISHMENT,LD - Fenland Locality - Cost of Care,LD - Fenland  - Special Needs,Domiciliary Care
Cambridgeshire County Council,06-Aug-21,51301623448,"-2,328.15",THERA EAST ANGLIA,CARE ESTABLISHMENT,LD - Fenland Locality - Cost of Care,LD - Fenland  - Special Needs,Domiciliary Care
Cambridgeshire County Council,06-Aug-21,51301623448,"-2,328.15",THERA EAST ANGLIA,CARE ESTABLISHMENT,LD - Fenland Locality - Cost of Care,LD - Fenland  - Special Needs,Domiciliary Care
Cambridgeshire County Council,06-Aug-21,51301623448,"-2,328.15",THERA EAST ANGLIA,CARE ESTABLISHMENT,LD - Fenland Locality - Cost of Care,LD - Fenland  - Special Needs,Domiciliary Care
Cambridgeshire County Council,06-Aug-21,51301623448,"-2,328.15",THERA EAST ANGLIA,CARE ESTABLISHMENT,LD - Fenland Locality - Cost of Care,LD - Fenland  - Special Needs,Domiciliary Care
Cambridgeshire County Council,06-Aug-21,51301623448,"-2,328.15",THERA EAST ANGLIA,CARE ESTABLISHMENT,LD - Fenland Locality - Cost of Care,LD - Fenland  - Special Needs,Domiciliary Care
Cambridgeshire County Council,06-Aug-21,51301623448,"-2,328.15",THERA EAST ANGLIA,CARE ESTABLISHMENT,LD - Fenland Locality - Cost of Care,LD - Fenland  - Special Needs,Domiciliary Care
Cambridgeshire County Council,06-Aug-21,51301623448,"-2,328.15",THERA EAST ANGLIA,CARE ESTABLISHMENT,LD - Fenland Locality - Cost of Care,LD - Fenland  - Special Needs,Domiciliary Care
Cambridgeshire County Council,06-Aug-21,51301623448,"-2,328.15",THERA EAST ANGLIA,CARE ESTABLISHMENT,LD - Fenland Locality - Cost of Care,LD - Fenland  - Special Needs,Domiciliary Care
Cambridgeshire County Council,06-Aug-21,51301623448,"-2,328.15",THERA EAST ANGLIA,CARE ESTABLISHMENT,LD - Fenland Locality - Cost of Care,LD - Fenland  - Special Needs,Domiciliary Care
Cambridgeshire County Council,06-Aug-21,51301623448,"-2,328.15",THERA EAST ANGLIA,CARE ESTABLISHMENT,LD - Fenland Locality - Cost of Care,LD - Fenland  - Special Needs,Domiciliary Care
Cambridgeshire County Council,06-Aug-21,51301623448,"-2,328.15",THERA EAST ANGLIA,CARE ESTABLISHMENT,LD - Fenland Locality - Cost of Care,LD - Fenland  - Special Needs,Domiciliary Care
Cambridgeshire County Council,06-Aug-21,51301623448,"-2,328.15",THERA EAST ANGLIA,CARE ESTABLISHMENT,LD - Fenland Locality - Cost of Care,LD - Fenland  - Special Needs,Domiciliary Care
Cambridgeshire County Council,06-Aug-21,51301623448,"-2,328.15",THERA EAST ANGLIA,CARE ESTABLISHMENT,LD - Fenland Locality - Cost of Care,LD - Fenland  - Special Needs,Domiciliary Care
Cambridgeshire County Council,06-Aug-21,51301623448,"-2,328.15",THERA EAST ANGLIA,CARE ESTABLISHMENT,LD - Fenland Locality - Cost of Care,LD - Fenland  - Special Needs,Domiciliary Care
Cambridgeshire County Council,06-Aug-21,51301623448,"-2,328.15",THERA EAST ANGLIA,CARE ESTABLISHMENT,LD - Fenland Locality - Cost of Care,LD - Fenland  - Special Needs,Domiciliary Care
Cambridgeshire County Council,06-Aug-21,51301623448,"-2,328.15",THERA EAST ANGLIA,CARE ESTABLISHMENT,LD - Fenland Locality - Cost of Care,LD - Fenland  - Special Needs,Domiciliary Care
Cambridgeshire County Council,27-Aug-21,51301629791,"-2,305.95",GLENHOLME HEALTHCARE LTD,CARE ESTABLISHMENT,LD - South Locality - Cost of Care,LD - South Cambs - Special Needs,Residential Care
Cambridgeshire County Council,06-Aug-21,51301620283,"-2,220.00",THE CAMBRIDGE NURSING CENTRE,CARE ESTABLISHMENT,OP - City & South Blocks,City and South - Short term blocks,Nursing Care
Cambridgeshire County Council,06-Aug-21,51301620283,"-2,220.00",THE CAMBRIDGE NURSING CENTRE,CARE ESTABLISHMENT,OP - City & South Blocks,City and South - Short term blocks,Nursing Care
Cambridgeshire County Council,06-Aug-21,51301620283,"-2,220.00",THE CAMBRIDGE NURSING CENTRE,CARE ESTABLISHMENT,OP - City & South Blocks,City and South - Short term blocks,Nursing Care
Cambridgeshire County Council,06-Aug-21,51301620283,"-2,220.00",THE CAMBRIDGE NURSING CENTRE,CARE ESTABLISHMENT,OP - City & South Blocks,City and South - Short term blocks,Nursing Care
Cambridgeshire County Council,06-Aug-21,51301606480,"-2,199.83",CONSENSUS (CROMER HOUSE),CARE ESTABLISHMENT,LD - South Locality - Cost of Care,LD - South Cambs - Care,Residential Care
Cambridgeshire County Council,06-Aug-21,51301606480,"-2,199.83",CONSENSUS (CROMER HOUSE),CARE ESTABLISHMENT,LD - South Locality - Cost of Care,LD - South Cambs - Care,Residential Care
Cambridgeshire County Council,06-Aug-21,51301606480,"-2,199.83",CONSENSUS (CROMER HOUSE),CARE ESTABLISHMENT,LD - South Locality - Cost of Care,LD - South Cambs - Care,Residential Care
Cambridgeshire County Council,06-Aug-21,51301606480,"-2,199.83",CONSENSUS (CROMER HOUSE),CARE ESTABLISHMENT,LD - South Locality - Cost of Care,LD - South Cambs - Care,Residential Care
Cambridgeshire County Council,06-Aug-21,51301606480,"-2,199.83",CONSENSUS (CROMER HOUSE),CARE ESTABLISHMENT,LD - South Locality - Cost of Care,LD - South Cambs - Care,Residential Care
Cambridgeshire County Council,06-Aug-21,51301606480,"-2,199.83",CONSENSUS (CROMER HOUSE),CARE ESTABLISHMENT,LD - South Locality - Cost of Care,LD - South Cambs - Care,Residential Care
Cambridgeshire County Council,06-Aug-21,51301606480,"-2,199.83",CONSENSUS (CROMER HOUSE),CARE ESTABLISHMENT,LD - South Locality - Cost of Care,LD - South Cambs - Care,Residential Care
Cambridgeshire County Council,06-Aug-21,51301606480,"-2,199.83",CONSENSUS (CROMER HOUSE),CARE ESTABLISHMENT,LD - South Locality - Cost of Care,LD - South Cambs - Care,Residential Care
Cambridgeshire County Council,06-Aug-21,51301606480,"-2,199.83",CONSENSUS (CROMER HOUSE),CARE ESTABLISHMENT,LD - South Locality - Cost of Care,LD - South Cambs - Care,Residential Care
Cambridgeshire County Council,06-Aug-21,51301606480,"-2,199.83",CONSENSUS (CROMER HOUSE),CARE ESTABLISHMENT,LD - South Locality - Cost of Care,LD - South Cambs - Care,Residential Care
Cambridgeshire County Council,06-Aug-21,51301606480,"-2,199.83",CONSENSUS (CROMER HOUSE),CARE ESTABLISHMENT,LD - South Locality - Cost of Care,LD - South Cambs - Care,Residential Care
Cambridgeshire County Council,06-Aug-21,51301606480,"-2,199.83",CONSENSUS (CROMER HOUSE),CARE ESTABLISHMENT,LD - South Locality - Cost of Care,LD - South Cambs - Care,Residential Care
Cambridgeshire County Council,06-Aug-21,51301606480,"-2,199.83",CONSENSUS (CROMER HOUSE),CARE ESTABLISHMENT,LD - South Locality - Cost of Care,LD - South Cambs - Care,Residential Care
Cambridgeshire County Council,06-Aug-21,51301606480,"-2,199.83",CONSENSUS (CROMER HOUSE),CARE ESTABLISHMENT,LD - South Locality - Cost of Care,LD - South Cambs - Care,Residential Care
Cambridgeshire County Council,06-Aug-21,51301606480,"-2,199.83",CONSENSUS (CROMER HOUSE),CARE ESTABLISHMENT,LD - South Locality - Cost of Care,LD - South Cambs - Care,Residential Care
Cambridgeshire County Council,06-Aug-21,51301606480,"-2,199.83",CONSENSUS (CROMER HOUSE),CARE ESTABLISHMENT,LD - South Locality - Cost of Care,LD - South Cambs - Care,Residential Care
Cambridgeshire County Council,06-Aug-21,51301606480,"-2,199.83",CONSENSUS (CROMER HOUSE),CARE ESTABLISHMENT,LD - South Locality - Cost of Care,LD - South Cambs - Care,Residential Care
Cambridgeshire County Council,06-Aug-21,51301606480,"-2,199.83",CONSENSUS (CROMER HOUSE),CARE ESTABLISHMENT,LD - South Locality - Cost of Care,LD - South Cambs - Care,Residential Care
Cambridgeshire County Council,06-Aug-21,51301606480,"-2,199.83",CONSENSUS (CROMER HOUSE),CARE ESTABLISHMENT,LD - South Locality - Cost of Care,LD - South Cambs - Care,Residential Care
Cambridgeshire County Council,06-Aug-21,51301606480,"-2,199.83",CONSENSUS (CROMER HOUSE),CARE ESTABLISHMENT,LD - South Locality - Cost of Care,LD - South Cambs - Care,Residential Care
Cambridgeshire County Council,06-Aug-21,51301606480,"-2,199.83",CONSENSUS (CROMER HOUSE),CARE ESTABLISHMENT,LD - South Locality - Cost of Care,LD - South Cambs - Care,Residential Care
Cambridgeshire County Council,06-Aug-21,51301606480,"-2,199.83",CONSENSUS (CROMER HOUSE),CARE ESTABLISHMENT,LD - South Locality - Cost of Care,LD - South Cambs - Care,Residential Care
Cambridgeshire County Council,06-Aug-21,51301606480,"-2,199.83",CONSENSUS (CROMER HOUSE),CARE ESTABLISHMENT,LD - South Locality - Cost of Care,LD - South Cambs - Care,Residential Care
Cambridgeshire County Council,06-Aug-21,51301606480,"-2,199.83",CONSENSUS (CROMER HOUSE),CARE ESTABLISHMENT,LD - South Locality - Cost of Care,LD - South Cambs - Care,Residential Care
Cambridgeshire County Council,06-Aug-21,51301606480,"-2,199.83",CONSENSUS (CROMER HOUSE),CARE ESTABLISHMENT,LD - South Locality - Cost of Care,LD - South Cambs - Care,Residential Care
Cambridgeshire County Council,06-Aug-21,51301606480,"-2,199.83",CONSENSUS (CROMER HOUSE),CARE ESTABLISHMENT,LD - South Locality - Cost of Care,LD - South Cambs - Care,Residential Care
Cambridgeshire County Council,06-Aug-21,51301606480,"-2,199.83",CONSENSUS (CROMER HOUSE),CARE ESTABLISHMENT,LD - South Locality - Cost of Care,LD - South Cambs - Care,Residential Care
Cambridgeshire County Council,06-Aug-21,51301606480,"-2,199.83",CONSENSUS (CROMER HOUSE),CARE ESTABLISHMENT,LD - South Locality - Cost of Care,LD - South Cambs - Care,Residential Care
Cambridgeshire County Council,06-Aug-21,51301606480,"-2,199.83",CONSENSUS (CROMER HOUSE),CARE ESTABLISHMENT,LD - South Locality - Cost of Care,LD - South Cambs - Care,Residential Care
Cambridgeshire County Council,06-Aug-21,51301606480,"-2,199.83",CONSENSUS (CROMER HOUSE),CARE ESTABLISHMENT,LD - South Locality - Cost of Care,LD - South Cambs - Care,Residential Care
Cambridgeshire County Council,06-Aug-21,51301606480,"-2,199.83",CONSENSUS (CROMER HOUSE),CARE ESTABLISHMENT,LD - South Locality - Cost of Care,LD - South Cambs - Care,Residential Care
Cambridgeshire County Council,06-Aug-21,51301606480,"-2,199.83",CONSENSUS (CROMER HOUSE),CARE ESTABLISHMENT,LD - South Locality - Cost of Care,LD - South Cambs - Care,Residential Care
Cambridgeshire County Council,06-Aug-21,51301606480,"-2,199.83",CONSENSUS (CROMER HOUSE),CARE ESTABLISHMENT,LD - South Locality - Cost of Care,LD - South Cambs - Care,Residential Care
Cambridgeshire County Council,06-Aug-21,51301606480,"-2,199.83",CONSENSUS (CROMER HOUSE),CARE ESTABLISHMENT,LD - South Locality - Cost of Care,LD - South Cambs - Care,Residential Care
Cambridgeshire County Council,06-Aug-21,51301606480,"-2,199.83",CONSENSUS (CROMER HOUSE),CARE ESTABLISHMENT,LD - South Locality - Cost of Care,LD - South Cambs - Care,Residential Care
Cambridgeshire County Council,06-Aug-21,51301606480,"-2,199.83",CONSENSUS (CROMER HOUSE),CARE ESTABLISHMENT,LD - South Locality - Cost of Care,LD - South Cambs - Care,Residential Care
Cambridgeshire County Council,06-Aug-21,51301606480,"-2,199.83",CONSENSUS (CROMER HOUSE),CARE ESTABLISHMENT,LD - South Locality - Cost of Care,LD - South Cambs - Care,Residential Care
Cambridgeshire County Council,06-Aug-21,51301606480,"-2,199.83",CONSENSUS (CROMER HOUSE),CARE ESTABLISHMENT,LD - South Locality - Cost of Care,LD - South Cambs - Care,Residential Care
Cambridgeshire County Council,06-Aug-21,51301606480,"-2,199.83",CONSENSUS (CROMER HOUSE),CARE ESTABLISHMENT,LD - South Locality - Cost of Care,LD - South Cambs - Care,Residential Care
Cambridgeshire County Council,06-Aug-21,51301606480,"-2,199.83",CONSENSUS (CROMER HOUSE),CARE ESTABLISHMENT,LD - South Locality - Cost of Care,LD - South Cambs - Care,Residential Care
Cambridgeshire County Council,06-Aug-21,51301606480,"-2,199.83",CONSENSUS (CROMER HOUSE),CARE ESTABLISHMENT,LD - South Locality - Cost of Care,LD - South Cambs - Care,Residential Care
Cambridgeshire County Council,06-Aug-21,51301606480,"-2,199.83",CONSENSUS (CROMER HOUSE),CARE ESTABLISHMENT,LD - South Locality - Cost of Care,LD - South Cambs - Care,Residential Care
Cambridgeshire County Council,06-Aug-21,51301606480,"-2,199.83",CONSENSUS (CROMER HOUSE),CARE ESTABLISHMENT,LD - South Locality - Cost of Care,LD - South Cambs - Care,Residential Care
Cambridgeshire County Council,06-Aug-21,51301606480,"-2,199.83",CONSENSUS (CROMER HOUSE),CARE ESTABLISHMENT,LD - South Locality - Cost of Care,LD - South Cambs - Care,Residential Care
Cambridgeshire County Council,06-Aug-21,51301606480,"-2,199.83",CONSENSUS (CROMER HOUSE),CARE ESTABLISHMENT,LD - South Locality - Cost of Care,LD - South Cambs - Care,Residential Care
Cambridgeshire County Council,06-Aug-21,51301606480,"-2,199.83",CONSENSUS (CROMER HOUSE),CARE ESTABLISHMENT,LD - South Locality - Cost of Care,LD - South Cambs - Care,Residential Care
Cambridgeshire County Council,06-Aug-21,51301606480,"-2,199.83",CONSENSUS (CROMER HOUSE),CARE ESTABLISHMENT,LD - South Locality - Cost of Care,LD - South Cambs - Care,Residential Care
Cambridgeshire County Council,06-Aug-21,51301606480,"-2,199.83",CONSENSUS (CROMER HOUSE),CARE ESTABLISHMENT,LD - South Locality - Cost of Care,LD - South Cambs - Care,Residential Care
Cambridgeshire County Council,06-Aug-21,51301606480,"-2,199.83",CONSENSUS (CROMER HOUSE),CARE ESTABLISHMENT,LD - South Locality - Cost of Care,LD - South Cambs - Care,Residential Care
Cambridgeshire County Council,06-Aug-21,51301606480,"-2,199.83",CONSENSUS (CROMER HOUSE),CARE ESTABLISHMENT,LD - South Locality - Cost of Care,LD - South Cambs - Care,Residential Care
Cambridgeshire County Council,06-Aug-21,51301606480,"-2,199.83",CONSENSUS (CROMER HOUSE),CARE ESTABLISHMENT,LD - South Locality - Cost of Care,LD - South Cambs - Care,Residential Care
Cambridgeshire County Council,06-Aug-21,51301606480,"-2,199.83",CONSENSUS (CROMER HOUSE),CARE ESTABLISHMENT,LD - South Locality - Cost of Care,LD - South Cambs - Care,Residential Care
Cambridgeshire County Council,06-Aug-21,51301606480,"-2,199.83",CONSENSUS (CROMER HOUSE),CARE ESTABLISHMENT,LD - South Locality - Cost of Care,LD - South Cambs - Care,Residential Care
Cambridgeshire County Council,06-Aug-21,51301606480,"-2,199.83",CONSENSUS (CROMER HOUSE),CARE ESTABLISHMENT,LD - South Locality - Cost of Care,LD - South Cambs - Care,Residential Care
Cambridgeshire County Council,06-Aug-21,51301606480,"-2,199.83",CONSENSUS (CROMER HOUSE),CARE ESTABLISHMENT,LD - South Locality - Cost of Care,LD - South Cambs - Care,Residential Care
Cambridgeshire County Council,06-Aug-21,51301606480,"-2,199.83",CONSENSUS (CROMER HOUSE),CARE ESTABLISHMENT,LD - South Locality - Cost of Care,LD - South Cambs - Care,Residential Care
Cambridgeshire County Council,06-Aug-21,51301606480,"-2,199.83",CONSENSUS (CROMER HOUSE),CARE ESTABLISHMENT,LD - South Locality - Cost of Care,LD - South Cambs - Care,Residential Care
Cambridgeshire County Council,06-Aug-21,51301606480,"-2,199.83",CONSENSUS (CROMER HOUSE),CARE ESTABLISHMENT,LD - South Locality - Cost of Care,LD - South Cambs - Care,Residential Care
Cambridgeshire County Council,06-Aug-21,51301606480,"-2,199.83",CONSENSUS (CROMER HOUSE),CARE ESTABLISHMENT,LD - South Locality - Cost of Care,LD - South Cambs - Care,Residential Care
Cambridgeshire County Council,06-Aug-21,51301606480,"-2,199.83",CONSENSUS (CROMER HOUSE),CARE ESTABLISHMENT,LD - South Locality - Cost of Care,LD - South Cambs - Care,Residential Care
Cambridgeshire County Council,06-Aug-21,51301606480,"-2,199.83",CONSENSUS (CROMER HOUSE),CARE ESTABLISHMENT,LD - South Locality - Cost of Care,LD - South Cambs - Care,Residential Care
Cambridgeshire County Council,06-Aug-21,51301606480,"-2,199.83",CONSENSUS (CROMER HOUSE),CARE ESTABLISHMENT,LD - South Locality - Cost of Care,LD - South Cambs - Care,Residential Care
Cambridgeshire County Council,06-Aug-21,51301606480,"-2,199.83",CONSENSUS (CROMER HOUSE),CARE ESTABLISHMENT,LD - South Locality - Cost of Care,LD - South Cambs - Care,Residential Care
Cambridgeshire County Council,06-Aug-21,51301606480,"-2,199.83",CONSENSUS (CROMER HOUSE),CARE ESTABLISHMENT,LD - South Locality - Cost of Care,LD - South Cambs - Care,Residential Care
Cambridgeshire County Council,06-Aug-21,51301606480,"-2,199.83",CONSENSUS (CROMER HOUSE),CARE ESTABLISHMENT,LD - South Locality - Cost of Care,LD - South Cambs - Care,Residential Care
Cambridgeshire County Council,06-Aug-21,51301606480,"-2,199.83",CONSENSUS (CROMER HOUSE),CARE ESTABLISHMENT,LD - South Locality - Cost of Care,LD - South Cambs - Care,Residential Care
Cambridgeshire County Council,06-Aug-21,51301606480,"-2,199.83",CONSENSUS (CROMER HOUSE),CARE ESTABLISHMENT,LD - South Locality - Cost of Care,LD - South Cambs - Care,Residential Care
Cambridgeshire County Council,06-Aug-21,51301606480,"-2,199.83",CONSENSUS (CROMER HOUSE),CARE ESTABLISHMENT,LD - South Locality - Cost of Care,LD - South Cambs - Care,Residential Care
Cambridgeshire County Council,06-Aug-21,51301606480,"-2,199.83",CONSENSUS (CROMER HOUSE),CARE ESTABLISHMENT,LD - South Locality - Cost of Care,LD - South Cambs - Care,Residential Care
Cambridgeshire County Council,06-Aug-21,51301606480,"-2,199.83",CONSENSUS (CROMER HOUSE),CARE ESTABLISHMENT,LD - South Locality - Cost of Care,LD - South Cambs - Care,Residential Care
Cambridgeshire County Council,06-Aug-21,51301606480,"-2,199.83",CONSENSUS (CROMER HOUSE),CARE ESTABLISHMENT,LD - South Locality - Cost of Care,LD - South Cambs - Care,Residential Care
Cambridgeshire County Council,06-Aug-21,51301606480,"-2,199.83",CONSENSUS (CROMER HOUSE),CARE ESTABLISHMENT,LD - South Locality - Cost of Care,LD - South Cambs - Care,Residential Care
Cambridgeshire County Council,06-Aug-21,51301606480,"-2,199.83",CONSENSUS (CROMER HOUSE),CARE ESTABLISHMENT,LD - South Locality - Cost of Care,LD - South Cambs - Care,Residential Care
Cambridgeshire County Council,06-Aug-21,51301606480,"-2,199.83",CONSENSUS (CROMER HOUSE),CARE ESTABLISHMENT,LD - South Locality - Cost of Care,LD - South Cambs - Care,Residential Care
Cambridgeshire County Council,06-Aug-21,51301606480,"-2,199.83",CONSENSUS (CROMER HOUSE),CARE ESTABLISHMENT,LD - South Locality - Cost of Care,LD - South Cambs - Care,Residential Care
Cambridgeshire County Council,06-Aug-21,51301606480,"-2,199.83",CONSENSUS (CROMER HOUSE),CARE ESTABLISHMENT,LD - South Locality - Cost of Care,LD - South Cambs - Care,Residential Care
Cambridgeshire County Council,06-Aug-21,51301606480,"-2,199.83",CONSENSUS (CROMER HOUSE),CARE ESTABLISHMENT,LD - South Locality - Cost of Care,LD - South Cambs - Care,Residential Care
Cambridgeshire County Council,06-Aug-21,51301606480,"-2,199.83",CONSENSUS (CROMER HOUSE),CARE ESTABLISHMENT,LD - South Locality - Cost of Care,LD - South Cambs - Care,Residential Care
Cambridgeshire County Council,06-Aug-21,51301606480,"-2,199.83",CONSENSUS (CROMER HOUSE),CARE ESTABLISHMENT,LD - South Locality - Cost of Care,LD - South Cambs - Care,Residential Care
Cambridgeshire County Council,06-Aug-21,51301606480,"-2,199.83",CONSENSUS (CROMER HOUSE),CARE ESTABLISHMENT,LD - South Locality - Cost of Care,LD - South Cambs - Care,Residential Care
Cambridgeshire County Council,06-Aug-21,51301606480,"-2,199.83",CONSENSUS (CROMER HOUSE),CARE ESTABLISHMENT,LD - South Locality - Cost of Care,LD - South Cambs - Care,Residential Care
Cambridgeshire County Council,06-Aug-21,51301606480,"-2,199.83",CONSENSUS (CROMER HOUSE),CARE ESTABLISHMENT,LD - South Locality - Cost of Care,LD - South Cambs - Care,Residential Care
Cambridgeshire County Council,06-Aug-21,51301606480,"-2,199.83",CONSENSUS (CROMER HOUSE),CARE ESTABLISHMENT,LD - South Locality - Cost of Care,LD - South Cambs - Care,Residential Care
Cambridgeshire County Council,06-Aug-21,51301606480,"-2,199.83",CONSENSUS (CROMER HOUSE),CARE ESTABLISHMENT,LD - South Locality - Cost of Care,LD - South Cambs - Care,Residential Care
Cambridgeshire County Council,06-Aug-21,51301606480,"-2,199.83",CONSENSUS (CROMER HOUSE),CARE ESTABLISHMENT,LD - South Locality - Cost of Care,LD - South Cambs - Care,Residential Care
Cambridgeshire County Council,06-Aug-21,51301606480,"-2,199.83",CONSENSUS (CROMER HOUSE),CARE ESTABLISHMENT,LD - South Locality - Cost of Care,LD - South Cambs - Care,Residential Care
Cambridgeshire County Council,06-Aug-21,51301606480,"-2,199.83",CONSENSUS (CROMER HOUSE),CARE ESTABLISHMENT,LD - South Locality - Cost of Care,LD - South Cambs - Care,Residential Care
Cambridgeshire County Council,06-Aug-21,51301606480,"-2,199.83",CONSENSUS (CROMER HOUSE),CARE ESTABLISHMENT,LD - South Locality - Cost of Care,LD - South Cambs - Care,Residential Care
Cambridgeshire County Council,06-Aug-21,51301606480,"-2,199.83",CONSENSUS (CROMER HOUSE),CARE ESTABLISHMENT,LD - South Locality - Cost of Care,LD - South Cambs - Care,Residential Care
Cambridgeshire County Council,06-Aug-21,51301606480,"-2,199.83",CONSENSUS (CROMER HOUSE),CARE ESTABLISHMENT,LD - South Locality - Cost of Care,LD - South Cambs - Care,Residential Care
Cambridgeshire County Council,06-Aug-21,51301606480,"-2,199.83",CONSENSUS (CROMER HOUSE),CARE ESTABLISHMENT,LD - South Locality - Cost of Care,LD - South Cambs - Care,Residential Care
Cambridgeshire County Council,06-Aug-21,51301606480,"-2,199.83",CONSENSUS (CROMER HOUSE),CARE ESTABLISHMENT,LD - South Locality - Cost of Care,LD - South Cambs - Care,Residential Care
Cambridgeshire County Council,06-Aug-21,51301606480,"-2,199.83",CONSENSUS (CROMER HOUSE),CARE ESTABLISHMENT,LD - South Locality - Cost of Care,LD - South Cambs - Care,Residential Care
Cambridgeshire County Council,06-Aug-21,51301606480,"-2,199.83",CONSENSUS (CROMER HOUSE),CARE ESTABLISHMENT,LD - South Locality - Cost of Care,LD - South Cambs - Care,Residential Care
Cambridgeshire County Council,06-Aug-21,51301606480,"-2,199.83",CONSENSUS (CROMER HOUSE),CARE ESTABLISHMENT,LD - South Locality - Cost of Care,LD - South Cambs - Care,Residential Care
Cambridgeshire County Council,06-Aug-21,51301606480,"-2,199.83",CONSENSUS (CROMER HOUSE),CARE ESTABLISHMENT,LD - South Locality - Cost of Care,LD - South Cambs - Care,Residential Care
Cambridgeshire County Council,06-Aug-21,51301606480,"-2,199.83",CONSENSUS (CROMER HOUSE),CARE ESTABLISHMENT,LD - South Locality - Cost of Care,LD - South Cambs - Care,Residential Care
Cambridgeshire County Council,06-Aug-21,51301606480,"-2,199.83",CONSENSUS (CROMER HOUSE),CARE ESTABLISHMENT,LD - South Locality - Cost of Care,LD - South Cambs - Care,Residential Care
Cambridgeshire County Council,06-Aug-21,51301606480,"-2,199.83",CONSENSUS (CROMER HOUSE),CARE ESTABLISHMENT,LD - South Locality - Cost of Care,LD - South Cambs - Care,Residential Care
Cambridgeshire County Council,06-Aug-21,51301606480,"-2,199.83",CONSENSUS (CROMER HOUSE),CARE ESTABLISHMENT,LD - South Locality - Cost of Care,LD - South Cambs - Care,Residential Care
Cambridgeshire County Council,06-Aug-21,51301606480,"-2,199.83",CONSENSUS (CROMER HOUSE),CARE ESTABLISHMENT,LD - South Locality - Cost of Care,LD - South Cambs - Care,Residential Care
Cambridgeshire County Council,06-Aug-21,51301606480,"-2,199.83",CONSENSUS (CROMER HOUSE),CARE ESTABLISHMENT,LD - South Locality - Cost of Care,LD - South Cambs - Care,Residential Care
Cambridgeshire County Council,06-Aug-21,51301606480,"-2,199.83",CONSENSUS (CROMER HOUSE),CARE ESTABLISHMENT,LD - South Locality - Cost of Care,LD - South Cambs - Care,Residential Care
Cambridgeshire County Council,06-Aug-21,51301606480,"-2,199.83",CONSENSUS (CROMER HOUSE),CARE ESTABLISHMENT,LD - South Locality - Cost of Care,LD - South Cambs - Care,Residential Care
Cambridgeshire County Council,06-Aug-21,51301606480,"-2,199.83",CONSENSUS (CROMER HOUSE),CARE ESTABLISHMENT,LD - South Locality - Cost of Care,LD - South Cambs - Care,Residential Care
Cambridgeshire County Council,06-Aug-21,51301606480,"-2,199.83",CONSENSUS (CROMER HOUSE),CARE ESTABLISHMENT,LD - South Locality - Cost of Care,LD - South Cambs - Care,Residential Care
Cambridgeshire County Council,06-Aug-21,51301606480,"-2,199.83",CONSENSUS (CROMER HOUSE),CARE ESTABLISHMENT,LD - South Locality - Cost of Care,LD - South Cambs - Care,Residential Care
Cambridgeshire County Council,06-Aug-21,51301606480,"-2,199.83",CONSENSUS (CROMER HOUSE),CARE ESTABLISHMENT,LD - South Locality - Cost of Care,LD - South Cambs - Care,Residential Care
Cambridgeshire County Council,06-Aug-21,51301606480,"-2,199.83",CONSENSUS (CROMER HOUSE),CARE ESTABLISHMENT,LD - South Locality - Cost of Care,LD - South Cambs - Care,Residential Care
Cambridgeshire County Council,06-Aug-21,51301606480,"-2,199.83",CONSENSUS (CROMER HOUSE),CARE ESTABLISHMENT,LD - South Locality - Cost of Care,LD - South Cambs - Care,Residential Care
Cambridgeshire County Council,06-Aug-21,51301606480,"-2,199.83",CONSENSUS (CROMER HOUSE),CARE ESTABLISHMENT,LD - South Locality - Cost of Care,LD - South Cambs - Care,Residential Care
Cambridgeshire County Council,06-Aug-21,51301606480,"-2,199.83",CONSENSUS (CROMER HOUSE),CARE ESTABLISHMENT,LD - South Locality - Cost of Care,LD - South Cambs - Care,Residential Care
Cambridgeshire County Council,06-Aug-21,51301606480,"-2,199.83",CONSENSUS (CROMER HOUSE),CARE ESTABLISHMENT,LD - South Locality - Cost of Care,LD - South Cambs - Care,Residential Care
Cambridgeshire County Council,06-Aug-21,51301606480,"-2,199.83",CONSENSUS (CROMER HOUSE),CARE ESTABLISHMENT,LD - South Locality - Cost of Care,LD - South Cambs - Care,Residential Care
Cambridgeshire County Council,06-Aug-21,51301606480,"-2,199.83",CONSENSUS (CROMER HOUSE),CARE ESTABLISHMENT,LD - South Locality - Cost of Care,LD - South Cambs - Care,Residential Care
Cambridgeshire County Council,06-Aug-21,51301606480,"-2,199.83",CONSENSUS (CROMER HOUSE),CARE ESTABLISHMENT,LD - South Locality - Cost of Care,LD - South Cambs - Care,Residential Care
Cambridgeshire County Council,06-Aug-21,51301606480,"-2,199.83",CONSENSUS (CROMER HOUSE),CARE ESTABLISHMENT,LD - South Locality - Cost of Care,LD - South Cambs - Care,Residential Care
Cambridgeshire County Council,06-Aug-21,51301606480,"-2,199.83",CONSENSUS (CROMER HOUSE),CARE ESTABLISHMENT,LD - South Locality - Cost of Care,LD - South Cambs - Care,Residential Care
Cambridgeshire County Council,06-Aug-21,51301606480,"-2,199.83",CONSENSUS (CROMER HOUSE),CARE ESTABLISHMENT,LD - South Locality - Cost of Care,LD - South Cambs - Care,Residential Care
Cambridgeshire County Council,06-Aug-21,51301606480,"-2,156.70",CONSENSUS (CROMER HOUSE),CARE ESTABLISHMENT,LD - South Locality - Cost of Care,LD - South Cambs - Care,Residential Care
Cambridgeshire County Council,06-Aug-21,51301606480,"-2,156.70",CONSENSUS (CROMER HOUSE),CARE ESTABLISHMENT,LD - South Locality - Cost of Care,LD - South Cambs - Care,Residential Care
Cambridgeshire County Council,06-Aug-21,51301606480,"-2,156.70",CONSENSUS (CROMER HOUSE),CARE ESTABLISHMENT,LD - South Locality - Cost of Care,LD - South Cambs - Care,Residential Care
Cambridgeshire County Council,06-Aug-21,51301606480,"-2,156.70",CONSENSUS (CROMER HOUSE),CARE ESTABLISHMENT,LD - South Locality - Cost of Care,LD - South Cambs - Care,Residential Care
Cambridgeshire County Council,06-Aug-21,51301606480,"-2,156.70",CONSENSUS (CROMER HOUSE),CARE ESTABLISHMENT,LD - South Locality - Cost of Care,LD - South Cambs - Care,Residential Care
Cambridgeshire County Council,06-Aug-21,51301606480,"-2,156.70",CONSENSUS (CROMER HOUSE),CARE ESTABLISHMENT,LD - South Locality - Cost of Care,LD - South Cambs - Care,Residential Care
Cambridgeshire County Council,06-Aug-21,51301606480,"-2,156.70",CONSENSUS (CROMER HOUSE),CARE ESTABLISHMENT,LD - South Locality - Cost of Care,LD - South Cambs - Care,Residential Care
Cambridgeshire County Council,06-Aug-21,51301606480,"-2,156.70",CONSENSUS (CROMER HOUSE),CARE ESTABLISHMENT,LD - South Locality - Cost of Care,LD - South Cambs - Care,Residential Care
Cambridgeshire County Council,06-Aug-21,51301606480,"-2,156.70",CONSENSUS (CROMER HOUSE),CARE ESTABLISHMENT,LD - South Locality - Cost of Care,LD - South Cambs - Care,Residential Care
Cambridgeshire County Council,06-Aug-21,51301606480,"-2,156.70",CONSENSUS (CROMER HOUSE),CARE ESTABLISHMENT,LD - South Locality - Cost of Care,LD - South Cambs - Care,Residential Care
Cambridgeshire County Council,06-Aug-21,51301606480,"-2,156.70",CONSENSUS (CROMER HOUSE),CARE ESTABLISHMENT,LD - South Locality - Cost of Care,LD - South Cambs - Care,Residential Care
Cambridgeshire County Council,06-Aug-21,51301606480,"-2,156.70",CONSENSUS (CROMER HOUSE),CARE ESTABLISHMENT,LD - South Locality - Cost of Care,LD - South Cambs - Care,Residential Care
Cambridgeshire County Council,06-Aug-21,51301606480,"-2,156.70",CONSENSUS (CROMER HOUSE),CARE ESTABLISHMENT,LD - South Locality - Cost of Care,LD - South Cambs - Care,Residential Care
Cambridgeshire County Council,06-Aug-21,51301606480,"-2,156.70",CONSENSUS (CROMER HOUSE),CARE ESTABLISHMENT,LD - South Locality - Cost of Care,LD - South Cambs - Care,Residential Care
Cambridgeshire County Council,06-Aug-21,51301606480,"-2,156.70",CONSENSUS (CROMER HOUSE),CARE ESTABLISHMENT,LD - South Locality - Cost of Care,LD - South Cambs - Care,Residential Care
Cambridgeshire County Council,06-Aug-21,51301606480,"-2,156.70",CONSENSUS (CROMER HOUSE),CARE ESTABLISHMENT,LD - South Locality - Cost of Care,LD - South Cambs - Care,Residential Care
Cambridgeshire County Council,06-Aug-21,51301606480,"-2,156.70",CONSENSUS (CROMER HOUSE),CARE ESTABLISHMENT,LD - South Locality - Cost of Care,LD - South Cambs - Care,Residential Care
Cambridgeshire County Council,06-Aug-21,51301606480,"-2,156.70",CONSENSUS (CROMER HOUSE),CARE ESTABLISHMENT,LD - South Locality - Cost of Care,LD - South Cambs - Care,Residential Care
Cambridgeshire County Council,06-Aug-21,51301606480,"-2,156.70",CONSENSUS (CROMER HOUSE),CARE ESTABLISHMENT,LD - South Locality - Cost of Care,LD - South Cambs - Care,Residential Care
Cambridgeshire County Council,06-Aug-21,51301606480,"-2,156.70",CONSENSUS (CROMER HOUSE),CARE ESTABLISHMENT,LD - South Locality - Cost of Care,LD - South Cambs - Care,Residential Care
Cambridgeshire County Council,06-Aug-21,51301606480,"-2,156.70",CONSENSUS (CROMER HOUSE),CARE ESTABLISHMENT,LD - South Locality - Cost of Care,LD - South Cambs - Care,Residential Care
Cambridgeshire County Council,06-Aug-21,51301606480,"-2,156.70",CONSENSUS (CROMER HOUSE),CARE ESTABLISHMENT,LD - South Locality - Cost of Care,LD - South Cambs - Care,Residential Care
Cambridgeshire County Council,06-Aug-21,51301606480,"-2,156.70",CONSENSUS (CROMER HOUSE),CARE ESTABLISHMENT,LD - South Locality - Cost of Care,LD - South Cambs - Care,Residential Care
Cambridgeshire County Council,06-Aug-21,51301606480,"-2,156.70",CONSENSUS (CROMER HOUSE),CARE ESTABLISHMENT,LD - South Locality - Cost of Care,LD - South Cambs - Care,Residential Care
Cambridgeshire County Council,06-Aug-21,51301606480,"-2,156.70",CONSENSUS (CROMER HOUSE),CARE ESTABLISHMENT,LD - South Locality - Cost of Care,LD - South Cambs - Care,Residential Care
Cambridgeshire County Council,06-Aug-21,51301606480,"-2,156.70",CONSENSUS (CROMER HOUSE),CARE ESTABLISHMENT,LD - South Locality - Cost of Care,LD - South Cambs - Care,Residential Care
Cambridgeshire County Council,06-Aug-21,51301606480,"-2,156.70",CONSENSUS (CROMER HOUSE),CARE ESTABLISHMENT,LD - South Locality - Cost of Care,LD - South Cambs - Care,Residential Care
Cambridgeshire County Council,06-Aug-21,51301606480,"-2,156.70",CONSENSUS (CROMER HOUSE),CARE ESTABLISHMENT,LD - South Locality - Cost of Care,LD - South Cambs - Care,Residential Care
Cambridgeshire County Council,06-Aug-21,51301606480,"-2,156.70",CONSENSUS (CROMER HOUSE),CARE ESTABLISHMENT,LD - South Locality - Cost of Care,LD - South Cambs - Care,Residential Care
Cambridgeshire County Council,06-Aug-21,51301606480,"-2,156.70",CONSENSUS (CROMER HOUSE),CARE ESTABLISHMENT,LD - South Locality - Cost of Care,LD - South Cambs - Care,Residential Care
Cambridgeshire County Council,06-Aug-21,51301606480,"-2,156.70",CONSENSUS (CROMER HOUSE),CARE ESTABLISHMENT,LD - South Locality - Cost of Care,LD - South Cambs - Care,Residential Care
Cambridgeshire County Council,06-Aug-21,51301606480,"-2,156.70",CONSENSUS (CROMER HOUSE),CARE ESTABLISHMENT,LD - South Locality - Cost of Care,LD - South Cambs - Care,Residential Care
Cambridgeshire County Council,06-Aug-21,51301606480,"-2,156.70",CONSENSUS (CROMER HOUSE),CARE ESTABLISHMENT,LD - South Locality - Cost of Care,LD - South Cambs - Care,Residential Care
Cambridgeshire County Council,06-Aug-21,51301606480,"-2,156.70",CONSENSUS (CROMER HOUSE),CARE ESTABLISHMENT,LD - South Locality - Cost of Care,LD - South Cambs - Care,Residential Care
Cambridgeshire County Council,06-Aug-21,51301606480,"-2,156.70",CONSENSUS (CROMER HOUSE),CARE ESTABLISHMENT,LD - South Locality - Cost of Care,LD - South Cambs - Care,Residential Care
Cambridgeshire County Council,06-Aug-21,51301606480,"-2,156.70",CONSENSUS (CROMER HOUSE),CARE ESTABLISHMENT,LD - South Locality - Cost of Care,LD - South Cambs - Care,Residential Care
Cambridgeshire County Council,06-Aug-21,51301606480,"-2,156.70",CONSENSUS (CROMER HOUSE),CARE ESTABLISHMENT,LD - South Locality - Cost of Care,LD - South Cambs - Care,Residential Care
Cambridgeshire County Council,06-Aug-21,51301606480,"-2,156.70",CONSENSUS (CROMER HOUSE),CARE ESTABLISHMENT,LD - South Locality - Cost of Care,LD - South Cambs - Care,Residential Care
Cambridgeshire County Council,24-Aug-21,51301628512,"-2,101.88",SOCIAL CARE SOLUTIONS LTD,CARE ESTABLISHMENT,LD - Hunts Locality - Cost of Care,LD - Huntingdonshire - Care,Supported Living
Cambridgeshire County Council,06-Aug-21,51301620290,"-2,060.71",SPRINGFIELD RESIDENTIAL CARE,CARE ESTABLISHMENT,OP - Fenland Blocks,Fenland - Short term blocks,Rehabilitation And Respite Care
Cambridgeshire County Council,06-Aug-21,51301618902,"-2,034.18",THE CAMBRIDGE NURSING CENTRE,CARE ESTABLISHMENT,OP - City & South Blocks,City and South - Long term blocks,Nursing Care
Cambridgeshire County Council,06-Aug-21,51301618902,"-2,034.18",THE CAMBRIDGE NURSING CENTRE,CARE ESTABLISHMENT,OP - City & South Blocks,City and South - Long term blocks,Nursing Care
Cambridgeshire County Council,06-Aug-21,51301618902,"-2,034.18",THE CAMBRIDGE NURSING CENTRE,CARE ESTABLISHMENT,OP - City & South Blocks,City and South - Long term blocks,Nursing Care
Cambridgeshire County Council,06-Aug-21,51301621117,"-2,020.36",CAERUS CARE LTD,CARE ESTABLISHMENT,LD - Young Adults Team,LD - Young Adults - Care,Supported Living
Cambridgeshire County Council,06-Aug-21,51301621117,"-2,020.36",CAERUS CARE LTD,CARE ESTABLISHMENT,LD - Young Adults Team,LD - Young Adults - Care,Supported Living
Cambridgeshire County Council,06-Aug-21,51301621117,"-2,020.36",CAERUS CARE LTD,CARE ESTABLISHMENT,LD - Young Adults Team,LD - Young Adults - Care,Supported Living
Cambridgeshire County Council,06-Aug-21,51301621117,"-2,020.36",CAERUS CARE LTD,CARE ESTABLISHMENT,LD - Young Adults Team,LD - Young Adults - Care,Supported Living
Cambridgeshire County Council,06-Aug-21,51301621117,"-2,020.36",CAERUS CARE LTD,CARE ESTABLISHMENT,LD - Young Adults Team,LD - Young Adults - Care,Supported Living
Cambridgeshire County Council,06-Aug-21,51301621117,"-2,020.36",CAERUS CARE LTD,CARE ESTABLISHMENT,LD - Young Adults Team,LD - Young Adults - Care,Supported Living
Cambridgeshire County Council,06-Aug-21,51301621117,"-2,020.36",CAERUS CARE LTD,CARE ESTABLISHMENT,LD - Young Adults Team,LD - Young Adults - Care,Supported Living
Cambridgeshire County Council,06-Aug-21,51301621117,"-2,020.36",CAERUS CARE LTD,CARE ESTABLISHMENT,LD - Young Adults Team,LD - Young Adults - Care,Supported Living
Cambridgeshire County Council,06-Aug-21,51301621117,"-2,020.36",CAERUS CARE LTD,CARE ESTABLISHMENT,LD - Young Adults Team,LD - Young Adults - Care,Supported Living
Cambridgeshire County Council,06-Aug-21,51301621117,"-2,020.36",CAERUS CARE LTD,CARE ESTABLISHMENT,LD - Young Adults Team,LD - Young Adults - Care,Supported Living
Cambridgeshire County Council,06-Aug-21,51301621117,"-2,020.36",CAERUS CARE LTD,CARE ESTABLISHMENT,LD - Young Adults Team,LD - Young Adults - Care,Supported Living
Cambridgeshire County Council,06-Aug-21,51301621117,"-2,020.36",CAERUS CARE LTD,CARE ESTABLISHMENT,LD - Young Adults Team,LD - Young Adults - Care,Supported Living
Cambridgeshire County Council,06-Aug-21,51301621117,"-2,020.36",CAERUS CARE LTD,CARE ESTABLISHMENT,LD - Young Adults Team,LD - Young Adults - Care,Supported Living
Cambridgeshire County Council,06-Aug-21,51301621117,"-2,020.36",CAERUS CARE LTD,CARE ESTABLISHMENT,LD - Young Adults Team,LD - Young Adults - Care,Supported Living
Cambridgeshire County Council,06-Aug-21,51301621117,"-2,020.36",CAERUS CARE LTD,CARE ESTABLISHMENT,LD - Young Adults Team,LD - Young Adults - Care,Supported Living
Cambridgeshire County Council,06-Aug-21,51301621117,"-2,020.36",CAERUS CARE LTD,CARE ESTABLISHMENT,LD - Young Adults Team,LD - Young Adults - Care,Supported Living
Cambridgeshire County Council,06-Aug-21,51301621117,"-2,020.36",CAERUS CARE LTD,CARE ESTABLISHMENT,LD - Young Adults Team,LD - Young Adults - Care,Supported Living
Cambridgeshire County Council,06-Aug-21,51301621117,"-2,020.36",CAERUS CARE LTD,CARE ESTABLISHMENT,LD - Young Adults Team,LD - Young Adults - Care,Supported Living
Cambridgeshire County Council,06-Aug-21,51301621117,"-2,020.36",CAERUS CARE LTD,CARE ESTABLISHMENT,LD - Young Adults Team,LD - Young Adults - Care,Supported Living
Cambridgeshire County Council,06-Aug-21,51301621117,"-2,020.36",CAERUS CARE LTD,CARE ESTABLISHMENT,LD - Young Adults Team,LD - Young Adults - Care,Supported Living
Cambridgeshire County Council,06-Aug-21,51301621117,"-2,020.36",CAERUS CARE LTD,CARE ESTABLISHMENT,LD - Young Adults Team,LD - Young Adults - Care,Supported Living
Cambridgeshire County Council,06-Aug-21,51301621117,"-2,020.36",CAERUS CARE LTD,CARE ESTABLISHMENT,LD - Young Adults Team,LD - Young Adults - Care,Supported Living
Cambridgeshire County Council,06-Aug-21,51301621117,"-2,020.36",CAERUS CARE LTD,CARE ESTABLISHMENT,LD - Young Adults Team,LD - Young Adults - Care,Supported Living
Cambridgeshire County Council,06-Aug-21,51301621117,"-2,020.36",CAERUS CARE LTD,CARE ESTABLISHMENT,LD - Young Adults Team,LD - Young Adults - Care,Supported Living
Cambridgeshire County Council,06-Aug-21,51301621117,"-2,020.36",CAERUS CARE LTD,CARE ESTABLISHMENT,LD - Young Adults Team,LD - Young Adults - Care,Supported Living
Cambridgeshire County Council,06-Aug-21,51301621117,"-2,020.36",CAERUS CARE LTD,CARE ESTABLISHMENT,LD - Young Adults Team,LD - Young Adults - Care,Supported Living
Cambridgeshire County Council,06-Aug-21,51301621117,"-2,020.36",CAERUS CARE LTD,CARE ESTABLISHMENT,LD - Young Adults Team,LD - Young Adults - Care,Supported Living
Cambridgeshire County Council,06-Aug-21,51301621117,"-2,020.36",CAERUS CARE LTD,CARE ESTABLISHMENT,LD - Young Adults Team,LD - Young Adults - Care,Supported Living
Cambridgeshire County Council,06-Aug-21,51301621117,"-2,020.36",CAERUS CARE LTD,CARE ESTABLISHMENT,LD - Young Adults Team,LD - Young Adults - Care,Supported Living
Cambridgeshire County Council,06-Aug-21,51301621117,"-2,020.36",CAERUS CARE LTD,CARE ESTABLISHMENT,LD - Young Adults Team,LD - Young Adults - Care,Supported Living
Cambridgeshire County Council,06-Aug-21,51301621117,"-2,020.36",CAERUS CARE LTD,CARE ESTABLISHMENT,LD - Young Adults Team,LD - Young Adults - Care,Supported Living
Cambridgeshire County Council,06-Aug-21,51301621117,"-2,020.36",CAERUS CARE LTD,CARE ESTABLISHMENT,LD - Young Adults Team,LD - Young Adults - Care,Supported Living
Cambridgeshire County Council,06-Aug-21,51301621117,"-2,020.36",CAERUS CARE LTD,CARE ESTABLISHMENT,LD - Young Adults Team,LD - Young Adults - Care,Supported Living
Cambridgeshire County Council,06-Aug-21,51301621117,"-2,020.36",CAERUS CARE LTD,CARE ESTABLISHMENT,LD - Young Adults Team,LD - Young Adults - Care,Supported Living
Cambridgeshire County Council,06-Aug-21,51301621117,"-2,020.36",CAERUS CARE LTD,CARE ESTABLISHMENT,LD - Young Adults Team,LD - Young Adults - Care,Supported Living
Cambridgeshire County Council,06-Aug-21,51301621117,"-2,020.36",CAERUS CARE LTD,CARE ESTABLISHMENT,LD - Young Adults Team,LD - Young Adults - Care,Supported Living
Cambridgeshire County Council,06-Aug-21,51301621117,"-2,020.36",CAERUS CARE LTD,CARE ESTABLISHMENT,LD - Young Adults Team,LD - Young Adults - Care,Supported Living
Cambridgeshire County Council,06-Aug-21,51301621117,"-2,020.36",CAERUS CARE LTD,CARE ESTABLISHMENT,LD - Young Adults Team,LD - Young Adults - Care,Supported Living
Cambridgeshire County Council,06-Aug-21,51301621117,"-2,020.36",CAERUS CARE LTD,CARE ESTABLISHMENT,LD - Young Adults Team,LD - Young Adults - Care,Supported Living
Cambridgeshire County Council,06-Aug-21,51301621117,"-2,020.36",CAERUS CARE LTD,CARE ESTABLISHMENT,LD - Young Adults Team,LD - Young Adults - Care,Supported Living
Cambridgeshire County Council,06-Aug-21,51301621117,"-2,020.36",CAERUS CARE LTD,CARE ESTABLISHMENT,LD - Young Adults Team,LD - Young Adults - Care,Supported Living
Cambridgeshire County Council,06-Aug-21,51301621117,"-2,020.36",CAERUS CARE LTD,CARE ESTABLISHMENT,LD - Young Adults Team,LD - Young Adults - Care,Supported Living
Cambridgeshire County Council,06-Aug-21,51301621117,"-2,020.36",CAERUS CARE LTD,CARE ESTABLISHMENT,LD - Young Adults Team,LD - Young Adults - Care,Supported Living
Cambridgeshire County Council,06-Aug-21,51301621117,"-2,020.36",CAERUS CARE LTD,CARE ESTABLISHMENT,LD - Young Adults Team,LD - Young Adults - Care,Supported Living
Cambridgeshire County Council,06-Aug-21,51301621117,"-2,020.36",CAERUS CARE LTD,CARE ESTABLISHMENT,LD - Young Adults Team,LD - Young Adults - Care,Supported Living
Cambridgeshire County Council,06-Aug-21,51301621117,"-2,020.36",CAERUS CARE LTD,CARE ESTABLISHMENT,LD - Young Adults Team,LD - Young Adults - Care,Supported Living
Cambridgeshire County Council,06-Aug-21,51301621117,"-2,020.36",CAERUS CARE LTD,CARE ESTABLISHMENT,LD - Young Adults Team,LD - Young Adults - Care,Supported Living
Cambridgeshire County Council,06-Aug-21,51301621117,"-2,020.36",CAERUS CARE LTD,CARE ESTABLISHMENT,LD - Young Adults Team,LD - Young Adults - Care,Supported Living
Cambridgeshire County Council,06-Aug-21,51301621117,"-2,020.36",CAERUS CARE LTD,CARE ESTABLISHMENT,LD - Young Adults Team,LD - Young Adults - Care,Supported Living
Cambridgeshire County Council,06-Aug-21,51301621117,"-2,020.36",CAERUS CARE LTD,CARE ESTABLISHMENT,LD - Young Adults Team,LD - Young Adults - Care,Supported Living
Cambridgeshire County Council,06-Aug-21,51301621117,"-2,020.36",CAERUS CARE LTD,CARE ESTABLISHMENT,LD - Young Adults Team,LD - Young Adults - Care,Supported Living
Cambridgeshire County Council,06-Aug-21,51301621117,"-2,020.36",CAERUS CARE LTD,CARE ESTABLISHMENT,LD - Young Adults Team,LD - Young Adults - Care,Supported Living
Cambridgeshire County Council,06-Aug-21,51301621117,"-2,020.36",CAERUS CARE LTD,CARE ESTABLISHMENT,LD - Young Adults Team,LD - Young Adults - Care,Supported Living
Cambridgeshire County Council,06-Aug-21,51301621117,"-2,020.36",CAERUS CARE LTD,CARE ESTABLISHMENT,LD - Young Adults Team,LD - Young Adults - Care,Supported Living
Cambridgeshire County Council,27-Aug-21,51301629791,"-2,000.00",GLENHOLME HEALTHCARE LTD,CARE ESTABLISHMENT,LD - South Locality - Cost of Care,LD - South Cambs - Special Needs,Residential Care
Cambridgeshire County Council,27-Aug-21,51301629791,"-2,000.00",GLENHOLME HEALTHCARE LTD,CARE ESTABLISHMENT,LD - South Locality - Cost of Care,LD - South Cambs - Special Needs,Residential Care
Cambridgeshire County Council,06-Aug-21,51301620217,"-1,982.14",FITZWILLIAM HEALTHCARE LTD,CARE ESTABLISHMENT,OP - City & South Blocks,City and South - Long term blocks,Residential Care
Cambridgeshire County Council,16-Aug-21,51301614389,"-1,920.00",WATERMAN ASPEN LTD,TRADE SUPPLIER,Highways Development Management,Highways Development Management,Professional Fees and Hired Services
Cambridgeshire County Council,16-Aug-21,51301614391,"-1,920.00",WATERMAN ASPEN LTD,TRADE SUPPLIER,Highways Development Management,Highways Development Management,Professional Fees and Hired Services
Cambridgeshire County Council,06-Aug-21,51301606480,"-1,885.57",CONSENSUS (CROMER HOUSE),CARE ESTABLISHMENT,LD - South Locality - Cost of Care,LD - South Cambs - Care,Residential Care
Cambridgeshire County Council,12-Aug-21,51301625136,"-1,859.49",DECOY FARM,CARE ESTABLISHMENT,LD - Hunts Locality - Cost of Care,LD - Huntingdonshire - Care,Nursing Care
Cambridgeshire County Council,12-Aug-21,51301625136,"-1,859.49",DECOY FARM,CARE ESTABLISHMENT,LD - Hunts Locality - Cost of Care,LD - Huntingdonshire - Care,Nursing Care
Cambridgeshire County Council,12-Aug-21,51301625136,"-1,859.49",DECOY FARM,CARE ESTABLISHMENT,LD - Hunts Locality - Cost of Care,LD - Huntingdonshire - Care,Nursing Care
Cambridgeshire County Council,12-Aug-21,51301625136,"-1,859.49",DECOY FARM,CARE ESTABLISHMENT,LD - Hunts Locality - Cost of Care,LD - Huntingdonshire - Care,Nursing Care
Cambridgeshire County Council,12-Aug-21,51301625136,"-1,859.49",DECOY FARM,CARE ESTABLISHMENT,LD - Hunts Locality - Cost of Care,LD - Huntingdonshire - Care,Nursing Care
Cambridgeshire County Council,12-Aug-21,51301625136,"-1,859.49",DECOY FARM,CARE ESTABLISHMENT,LD - Hunts Locality - Cost of Care,LD - Huntingdonshire - Care,Nursing Care
Cambridgeshire County Council,12-Aug-21,51301625136,"-1,859.49",DECOY FARM,CARE ESTABLISHMENT,LD - Hunts Locality - Cost of Care,LD - Huntingdonshire - Care,Nursing Care
Cambridgeshire County Council,12-Aug-21,51301625136,"-1,859.49",DECOY FARM,CARE ESTABLISHMENT,LD - Hunts Locality - Cost of Care,LD - Huntingdonshire - Care,Nursing Care
Cambridgeshire County Council,12-Aug-21,51301625136,"-1,859.49",DECOY FARM,CARE ESTABLISHMENT,LD - Hunts Locality - Cost of Care,LD - Huntingdonshire - Care,Nursing Care
Cambridgeshire County Council,12-Aug-21,51301625136,"-1,859.49",DECOY FARM,CARE ESTABLISHMENT,LD - Hunts Locality - Cost of Care,LD - Huntingdonshire - Care,Nursing Care
Cambridgeshire County Council,12-Aug-21,51301625136,"-1,859.49",DECOY FARM,CARE ESTABLISHMENT,LD - Hunts Locality - Cost of Care,LD - Huntingdonshire - Care,Nursing Care
Cambridgeshire County Council,12-Aug-21,51301625136,"-1,859.49",DECOY FARM,CARE ESTABLISHMENT,LD - Hunts Locality - Cost of Care,LD - Huntingdonshire - Care,Nursing Care
Cambridgeshire County Council,12-Aug-21,51301625136,"-1,859.49",DECOY FARM,CARE ESTABLISHMENT,LD - Hunts Locality - Cost of Care,LD - Huntingdonshire - Care,Nursing Care
Cambridgeshire County Council,12-Aug-21,51301625136,"-1,859.49",DECOY FARM,CARE ESTABLISHMENT,LD - Hunts Locality - Cost of Care,LD - Huntingdonshire - Care,Nursing Care
Cambridgeshire County Council,12-Aug-21,51301625136,"-1,859.49",DECOY FARM,CARE ESTABLISHMENT,LD - Hunts Locality - Cost of Care,LD - Huntingdonshire - Care,Nursing Care
Cambridgeshire County Council,12-Aug-21,51301625136,"-1,859.49",DECOY FARM,CARE ESTABLISHMENT,LD - Hunts Locality - Cost of Care,LD - Huntingdonshire - Care,Nursing Care
Cambridgeshire County Council,12-Aug-21,51301625136,"-1,859.49",DECOY FARM,CARE ESTABLISHMENT,LD - Hunts Locality - Cost of Care,LD - Huntingdonshire - Care,Nursing Care
Cambridgeshire County Council,12-Aug-21,51301625136,"-1,859.49",DECOY FARM,CARE ESTABLISHMENT,LD - Hunts Locality - Cost of Care,LD - Huntingdonshire - Care,Nursing Care
Cambridgeshire County Council,12-Aug-21,51301625136,"-1,859.49",DECOY FARM,CARE ESTABLISHMENT,LD - Hunts Locality - Cost of Care,LD - Huntingdonshire - Care,Nursing Care
Cambridgeshire County Council,12-Aug-21,51301625136,"-1,859.49",DECOY FARM,CARE ESTABLISHMENT,LD - Hunts Locality - Cost of Care,LD - Huntingdonshire - Care,Nursing Care
Cambridgeshire County Council,12-Aug-21,51301625136,"-1,859.49",DECOY FARM,CARE ESTABLISHMENT,LD - Hunts Locality - Cost of Care,LD - Huntingdonshire - Care,Nursing Care
Cambridgeshire County Council,12-Aug-21,51301625136,"-1,859.49",DECOY FARM,CARE ESTABLISHMENT,LD - Hunts Locality - Cost of Care,LD - Huntingdonshire - Care,Nursing Care
Cambridgeshire County Council,12-Aug-21,51301625136,"-1,859.49",DECOY FARM,CARE ESTABLISHMENT,LD - Hunts Locality - Cost of Care,LD - Huntingdonshire - Care,Nursing Care
Cambridgeshire County Council,12-Aug-21,51301625136,"-1,859.49",DECOY FARM,CARE ESTABLISHMENT,LD - Hunts Locality - Cost of Care,LD - Huntingdonshire - Care,Nursing Care
Cambridgeshire County Council,12-Aug-21,51301625136,"-1,859.49",DECOY FARM,CARE ESTABLISHMENT,LD - Hunts Locality - Cost of Care,LD - Huntingdonshire - Care,Nursing Care
Cambridgeshire County Council,12-Aug-21,51301625136,"-1,859.49",DECOY FARM,CARE ESTABLISHMENT,LD - Hunts Locality - Cost of Care,LD - Huntingdonshire - Care,Nursing Care
Cambridgeshire County Council,12-Aug-21,51301625136,"-1,859.49",DECOY FARM,CARE ESTABLISHMENT,LD - Hunts Locality - Cost of Care,LD - Huntingdonshire - Care,Nursing Care
Cambridgeshire County Council,12-Aug-21,51301625136,"-1,859.49",DECOY FARM,CARE ESTABLISHMENT,LD - Hunts Locality - Cost of Care,LD - Huntingdonshire - Care,Nursing Care
Cambridgeshire County Council,12-Aug-21,51301625136,"-1,859.49",DECOY FARM,CARE ESTABLISHMENT,LD - Hunts Locality - Cost of Care,LD - Huntingdonshire - Care,Nursing Care
Cambridgeshire County Council,12-Aug-21,51301625136,"-1,859.49",DECOY FARM,CARE ESTABLISHMENT,LD - Hunts Locality - Cost of Care,LD - Huntingdonshire - Care,Nursing Care
Cambridgeshire County Council,12-Aug-21,51301625136,"-1,859.49",DECOY FARM,CARE ESTABLISHMENT,LD - Hunts Locality - Cost of Care,LD - Huntingdonshire - Care,Nursing Care
Cambridgeshire County Council,12-Aug-21,51301625136,"-1,859.49",DECOY FARM,CARE ESTABLISHMENT,LD - Hunts Locality - Cost of Care,LD - Huntingdonshire - Care,Nursing Care
Cambridgeshire County Council,12-Aug-21,51301625136,"-1,859.49",DECOY FARM,CARE ESTABLISHMENT,LD - Hunts Locality - Cost of Care,LD - Huntingdonshire - Care,Nursing Care
Cambridgeshire County Council,12-Aug-21,51301625136,"-1,859.49",DECOY FARM,CARE ESTABLISHMENT,LD - Hunts Locality - Cost of Care,LD - Huntingdonshire - Care,Nursing Care
Cambridgeshire County Council,12-Aug-21,51301625136,"-1,859.49",DECOY FARM,CARE ESTABLISHMENT,LD - Hunts Locality - Cost of Care,LD - Huntingdonshire - Care,Nursing Care
Cambridgeshire County Council,12-Aug-21,51301625136,"-1,859.49",DECOY FARM,CARE ESTABLISHMENT,LD - Hunts Locality - Cost of Care,LD - Huntingdonshire - Care,Nursing Care
Cambridgeshire County Council,12-Aug-21,51301625136,"-1,859.49",DECOY FARM,CARE ESTABLISHMENT,LD - Hunts Locality - Cost of Care,LD - Huntingdonshire - Care,Nursing Care
Cambridgeshire County Council,12-Aug-21,51301625136,"-1,859.49",DECOY FARM,CARE ESTABLISHMENT,LD - Hunts Locality - Cost of Care,LD - Huntingdonshire - Care,Nursing Care
Cambridgeshire County Council,12-Aug-21,51301625136,"-1,859.49",DECOY FARM,CARE ESTABLISHMENT,LD - Hunts Locality - Cost of Care,LD - Huntingdonshire - Care,Nursing Care
Cambridgeshire County Council,12-Aug-21,51301625136,"-1,859.49",DECOY FARM,CARE ESTABLISHMENT,LD - Hunts Locality - Cost of Care,LD - Huntingdonshire - Care,Nursing Care
Cambridgeshire County Council,12-Aug-21,51301625136,"-1,859.49",DECOY FARM,CARE ESTABLISHMENT,LD - Hunts Locality - Cost of Care,LD - Huntingdonshire - Care,Nursing Care
Cambridgeshire County Council,12-Aug-21,51301625136,"-1,859.49",DECOY FARM,CARE ESTABLISHMENT,LD - Hunts Locality - Cost of Care,LD - Huntingdonshire - Care,Nursing Care
Cambridgeshire County Council,12-Aug-21,51301625136,"-1,859.49",DECOY FARM,CARE ESTABLISHMENT,LD - Hunts Locality - Cost of Care,LD - Huntingdonshire - Care,Nursing Care
Cambridgeshire County Council,12-Aug-21,51301625136,"-1,859.49",DECOY FARM,CARE ESTABLISHMENT,LD - Hunts Locality - Cost of Care,LD - Huntingdonshire - Care,Nursing Care
Cambridgeshire County Council,12-Aug-21,51301625136,"-1,859.49",DECOY FARM,CARE ESTABLISHMENT,LD - Hunts Locality - Cost of Care,LD - Huntingdonshire - Care,Nursing Care
Cambridgeshire County Council,12-Aug-21,51301625136,"-1,859.49",DECOY FARM,CARE ESTABLISHMENT,LD - Hunts Locality - Cost of Care,LD - Huntingdonshire - Care,Nursing Care
Cambridgeshire County Council,12-Aug-21,51301625136,"-1,859.49",DECOY FARM,CARE ESTABLISHMENT,LD - Hunts Locality - Cost of Care,LD - Huntingdonshire - Care,Nursing Care
Cambridgeshire County Council,02-Aug-21,51301615135,"-1,846.63",Redacted Personal Data ,SERVICE USER,LD - South Locality - Cost of Care,LD - South Cambs - Care,Direct Payments
Cambridgeshire County Council,02-Aug-21,51301615135,"-1,846.63",Redacted Personal Data ,SERVICE USER,LD - South Locality - Cost of Care,LD - South Cambs - Care,Direct Payments
Cambridgeshire County Council,02-Aug-21,51301615135,"-1,846.63",Redacted Personal Data ,SERVICE USER,LD - South Locality - Cost of Care,LD - South Cambs - Care,Direct Payments
Cambridgeshire County Council,02-Aug-21,51301615135,"-1,846.63",Redacted Personal Data ,SERVICE USER,LD - South Locality - Cost of Care,LD - South Cambs - Care,Direct Payments
Cambridgeshire County Council,02-Aug-21,51301615135,"-1,846.63",Redacted Personal Data ,SERVICE USER,LD - South Locality - Cost of Care,LD - South Cambs - Care,Direct Payments
Cambridgeshire County Council,06-Aug-21,51301620274,"-1,828.07",BUCHAN HEALTHCARE LTD,CARE ESTABLISHMENT,OP - City & South Blocks,City and South - Long term blocks,Nursing Care
Cambridgeshire County Council,06-Aug-21,51301618900,"-1,807.59",THE CAMBRIDGE NURSING CENTRE,CARE ESTABLISHMENT,OP - City & South Blocks,City and South - Long term blocks,Residential Care
Cambridgeshire County Council,06-Aug-21,51301618900,"-1,807.59",THE CAMBRIDGE NURSING CENTRE,CARE ESTABLISHMENT,OP - City & South Blocks,City and South - Long term blocks,Residential Care
Cambridgeshire County Council,06-Aug-21,51301618900,"-1,807.59",THE CAMBRIDGE NURSING CENTRE,CARE ESTABLISHMENT,OP - City & South Blocks,City and South - Long term blocks,Residential Care
Cambridgeshire County Council,06-Aug-21,51301623429,"-1,785.70",THERA EAST ANGLIA,CARE ESTABLISHMENT,LD - East Locality - Cost of Care,LD - East Cambs - Care,Domiciliary Care
Cambridgeshire County Council,06-Aug-21,51301623429,"-1,785.70",THERA EAST ANGLIA,CARE ESTABLISHMENT,LD - East Locality - Cost of Care,LD - East Cambs - Care,Domiciliary Care
Cambridgeshire County Council,06-Aug-21,51301623429,"-1,785.70",THERA EAST ANGLIA,CARE ESTABLISHMENT,LD - East Locality - Cost of Care,LD - East Cambs - Care,Domiciliary Care
Cambridgeshire County Council,06-Aug-21,51301623429,"-1,785.70",THERA EAST ANGLIA,CARE ESTABLISHMENT,LD - East Locality - Cost of Care,LD - East Cambs - Care,Domiciliary Care
Cambridgeshire County Council,06-Aug-21,51301623429,"-1,785.70",THERA EAST ANGLIA,CARE ESTABLISHMENT,LD - East Locality - Cost of Care,LD - East Cambs - Care,Domiciliary Care
Cambridgeshire County Council,06-Aug-21,51301623429,"-1,785.70",THERA EAST ANGLIA,CARE ESTABLISHMENT,LD - East Locality - Cost of Care,LD - East Cambs - Care,Domiciliary Care
Cambridgeshire County Council,06-Aug-21,51301623429,"-1,785.70",THERA EAST ANGLIA,CARE ESTABLISHMENT,LD - East Locality - Cost of Care,LD - East Cambs - Care,Domiciliary Care
Cambridgeshire County Council,06-Aug-21,51301623429,"-1,785.70",THERA EAST ANGLIA,CARE ESTABLISHMENT,LD - East Locality - Cost of Care,LD - East Cambs - Care,Domiciliary Care
Cambridgeshire County Council,06-Aug-21,51301623429,"-1,785.70",THERA EAST ANGLIA,CARE ESTABLISHMENT,LD - East Locality - Cost of Care,LD - East Cambs - Care,Domiciliary Care
Cambridgeshire County Council,06-Aug-21,51301623429,"-1,785.70",THERA EAST ANGLIA,CARE ESTABLISHMENT,LD - East Locality - Cost of Care,LD - East Cambs - Care,Domiciliary Care
Cambridgeshire County Council,06-Aug-21,51301623429,"-1,785.70",THERA EAST ANGLIA,CARE ESTABLISHMENT,LD - East Locality - Cost of Care,LD - East Cambs - Care,Domiciliary Care
Cambridgeshire County Council,06-Aug-21,51301623429,"-1,785.70",THERA EAST ANGLIA,CARE ESTABLISHMENT,LD - East Locality - Cost of Care,LD - East Cambs - Care,Domiciliary Care
Cambridgeshire County Council,06-Aug-21,51301623429,"-1,785.70",THERA EAST ANGLIA,CARE ESTABLISHMENT,LD - East Locality - Cost of Care,LD - East Cambs - Care,Domiciliary Care
Cambridgeshire County Council,06-Aug-21,51301623429,"-1,785.70",THERA EAST ANGLIA,CARE ESTABLISHMENT,LD - East Locality - Cost of Care,LD - East Cambs - Care,Domiciliary Care
Cambridgeshire County Council,06-Aug-21,51301623429,"-1,785.70",THERA EAST ANGLIA,CARE ESTABLISHMENT,LD - East Locality - Cost of Care,LD - East Cambs - Care,Domiciliary Care
Cambridgeshire County Council,06-Aug-21,51301623429,"-1,785.70",THERA EAST ANGLIA,CARE ESTABLISHMENT,LD - East Locality - Cost of Care,LD - East Cambs - Care,Domiciliary Care
Cambridgeshire County Council,06-Aug-21,51301623429,"-1,785.70",THERA EAST ANGLIA,CARE ESTABLISHMENT,LD - East Locality - Cost of Care,LD - East Cambs - Care,Domiciliary Care
Cambridgeshire County Council,06-Aug-21,51301623429,"-1,785.70",THERA EAST ANGLIA,CARE ESTABLISHMENT,LD - East Locality - Cost of Care,LD - East Cambs - Care,Domiciliary Care
Cambridgeshire County Council,06-Aug-21,51301623429,"-1,785.70",THERA EAST ANGLIA,CARE ESTABLISHMENT,LD - East Locality - Cost of Care,LD - East Cambs - Care,Domiciliary Care
Cambridgeshire County Council,06-Aug-21,51301623429,"-1,785.70",THERA EAST ANGLIA,CARE ESTABLISHMENT,LD - East Locality - Cost of Care,LD - East Cambs - Care,Domiciliary Care
Cambridgeshire County Council,06-Aug-21,51301623429,"-1,785.70",THERA EAST ANGLIA,CARE ESTABLISHMENT,LD - East Locality - Cost of Care,LD - East Cambs - Care,Domiciliary Care
Cambridgeshire County Council,06-Aug-21,51301623429,"-1,785.70",THERA EAST ANGLIA,CARE ESTABLISHMENT,LD - East Locality - Cost of Care,LD - East Cambs - Care,Domiciliary Care
Cambridgeshire County Council,06-Aug-21,51301623429,"-1,785.70",THERA EAST ANGLIA,CARE ESTABLISHMENT,LD - East Locality - Cost of Care,LD - East Cambs - Care,Domiciliary Care
Cambridgeshire County Council,06-Aug-21,51301623429,"-1,785.70",THERA EAST ANGLIA,CARE ESTABLISHMENT,LD - East Locality - Cost of Care,LD - East Cambs - Care,Domiciliary Care
Cambridgeshire County Council,06-Aug-21,51301623429,"-1,785.70",THERA EAST ANGLIA,CARE ESTABLISHMENT,LD - East Locality - Cost of Care,LD - East Cambs - Care,Domiciliary Care
Cambridgeshire County Council,06-Aug-21,51301623429,"-1,785.70",THERA EAST ANGLIA,CARE ESTABLISHMENT,LD - East Locality - Cost of Care,LD - East Cambs - Care,Domiciliary Care
Cambridgeshire County Council,06-Aug-21,51301623429,"-1,785.70",THERA EAST ANGLIA,CARE ESTABLISHMENT,LD - East Locality - Cost of Care,LD - East Cambs - Care,Domiciliary Care
Cambridgeshire County Council,06-Aug-21,51301623429,"-1,785.70",THERA EAST ANGLIA,CARE ESTABLISHMENT,LD - East Locality - Cost of Care,LD - East Cambs - Care,Domiciliary Care
Cambridgeshire County Council,06-Aug-21,51301623429,"-1,785.70",THERA EAST ANGLIA,CARE ESTABLISHMENT,LD - East Locality - Cost of Care,LD - East Cambs - Care,Domiciliary Care
Cambridgeshire County Council,06-Aug-21,51301623429,"-1,785.70",THERA EAST ANGLIA,CARE ESTABLISHMENT,LD - East Locality - Cost of Care,LD - East Cambs - Care,Domiciliary Care
Cambridgeshire County Council,06-Aug-21,51301623429,"-1,785.70",THERA EAST ANGLIA,CARE ESTABLISHMENT,LD - East Locality - Cost of Care,LD - East Cambs - Care,Domiciliary Care
Cambridgeshire County Council,06-Aug-21,51301623429,"-1,785.70",THERA EAST ANGLIA,CARE ESTABLISHMENT,LD - East Locality - Cost of Care,LD - East Cambs - Care,Domiciliary Care
Cambridgeshire County Council,06-Aug-21,51301623429,"-1,785.70",THERA EAST ANGLIA,CARE ESTABLISHMENT,LD - East Locality - Cost of Care,LD - East Cambs - Care,Domiciliary Care
Cambridgeshire County Council,06-Aug-21,51301623429,"-1,785.70",THERA EAST ANGLIA,CARE ESTABLISHMENT,LD - East Locality - Cost of Care,LD - East Cambs - Care,Domiciliary Care
Cambridgeshire County Council,06-Aug-21,51301623429,"-1,785.70",THERA EAST ANGLIA,CARE ESTABLISHMENT,LD - East Locality - Cost of Care,LD - East Cambs - Care,Domiciliary Care
Cambridgeshire County Council,06-Aug-21,51301623429,"-1,785.70",THERA EAST ANGLIA,CARE ESTABLISHMENT,LD - East Locality - Cost of Care,LD - East Cambs - Care,Domiciliary Care
Cambridgeshire County Council,06-Aug-21,51301623429,"-1,785.70",THERA EAST ANGLIA,CARE ESTABLISHMENT,LD - East Locality - Cost of Care,LD - East Cambs - Care,Domiciliary Care
Cambridgeshire County Council,06-Aug-21,51301623429,"-1,785.70",THERA EAST ANGLIA,CARE ESTABLISHMENT,LD - East Locality - Cost of Care,LD - East Cambs - Care,Domiciliary Care
Cambridgeshire County Council,06-Aug-21,51301623429,"-1,785.70",THERA EAST ANGLIA,CARE ESTABLISHMENT,LD - East Locality - Cost of Care,LD - East Cambs - Care,Domiciliary Care
Cambridgeshire County Council,06-Aug-21,51301623429,"-1,785.70",THERA EAST ANGLIA,CARE ESTABLISHMENT,LD - East Locality - Cost of Care,LD - East Cambs - Care,Domiciliary Care
Cambridgeshire County Council,06-Aug-21,51301623429,"-1,785.70",THERA EAST ANGLIA,CARE ESTABLISHMENT,LD - East Locality - Cost of Care,LD - East Cambs - Care,Domiciliary Care
Cambridgeshire County Council,06-Aug-21,51301623429,"-1,785.70",THERA EAST ANGLIA,CARE ESTABLISHMENT,LD - East Locality - Cost of Care,LD - East Cambs - Care,Domiciliary Care
Cambridgeshire County Council,06-Aug-21,51301623429,"-1,785.70",THERA EAST ANGLIA,CARE ESTABLISHMENT,LD - East Locality - Cost of Care,LD - East Cambs - Care,Domiciliary Care
Cambridgeshire County Council,06-Aug-21,51301623429,"-1,785.70",THERA EAST ANGLIA,CARE ESTABLISHMENT,LD - East Locality - Cost of Care,LD - East Cambs - Care,Domiciliary Care
Cambridgeshire County Council,06-Aug-21,51301623429,"-1,785.70",THERA EAST ANGLIA,CARE ESTABLISHMENT,LD - East Locality - Cost of Care,LD - East Cambs - Care,Domiciliary Care
Cambridgeshire County Council,06-Aug-21,51301623429,"-1,785.70",THERA EAST ANGLIA,CARE ESTABLISHMENT,LD - East Locality - Cost of Care,LD - East Cambs - Care,Domiciliary Care
Cambridgeshire County Council,06-Aug-21,51301623429,"-1,785.70",THERA EAST ANGLIA,CARE ESTABLISHMENT,LD - East Locality - Cost of Care,LD - East Cambs - Care,Domiciliary Care
Cambridgeshire County Council,06-Aug-21,51301623429,"-1,785.70",THERA EAST ANGLIA,CARE ESTABLISHMENT,LD - East Locality - Cost of Care,LD - East Cambs - Care,Domiciliary Care
Cambridgeshire County Council,06-Aug-21,51301623429,"-1,785.70",THERA EAST ANGLIA,CARE ESTABLISHMENT,LD - East Locality - Cost of Care,LD - East Cambs - Care,Domiciliary Care
Cambridgeshire County Council,06-Aug-21,51301623429,"-1,785.70",THERA EAST ANGLIA,CARE ESTABLISHMENT,LD - East Locality - Cost of Care,LD - East Cambs - Care,Domiciliary Care
Cambridgeshire County Council,06-Aug-21,51301623429,"-1,785.70",THERA EAST ANGLIA,CARE ESTABLISHMENT,LD - East Locality - Cost of Care,LD - East Cambs - Care,Domiciliary Care
Cambridgeshire County Council,06-Aug-21,51301623429,"-1,785.70",THERA EAST ANGLIA,CARE ESTABLISHMENT,LD - East Locality - Cost of Care,LD - East Cambs - Care,Domiciliary Care
Cambridgeshire County Council,06-Aug-21,51301623429,"-1,785.70",THERA EAST ANGLIA,CARE ESTABLISHMENT,LD - East Locality - Cost of Care,LD - East Cambs - Care,Domiciliary Care
Cambridgeshire County Council,06-Aug-21,51301623429,"-1,785.70",THERA EAST ANGLIA,CARE ESTABLISHMENT,LD - East Locality - Cost of Care,LD - East Cambs - Care,Domiciliary Care
Cambridgeshire County Council,06-Aug-21,51301623435,"-1,769.48",THERA EAST ANGLIA,CARE ESTABLISHMENT,LD - South Locality - Cost of Care,LD - South Cambs - Care,Domiciliary Care
Cambridgeshire County Council,06-Aug-21,51301623435,"-1,769.48",THERA EAST ANGLIA,CARE ESTABLISHMENT,LD - South Locality - Cost of Care,LD - South Cambs - Care,Domiciliary Care
Cambridgeshire County Council,06-Aug-21,51301623435,"-1,769.48",THERA EAST ANGLIA,CARE ESTABLISHMENT,LD - South Locality - Cost of Care,LD - South Cambs - Care,Domiciliary Care
Cambridgeshire County Council,06-Aug-21,51301623435,"-1,769.48",THERA EAST ANGLIA,CARE ESTABLISHMENT,LD - South Locality - Cost of Care,LD - South Cambs - Care,Domiciliary Care
Cambridgeshire County Council,06-Aug-21,51301623435,"-1,769.48",THERA EAST ANGLIA,CARE ESTABLISHMENT,LD - South Locality - Cost of Care,LD - South Cambs - Care,Domiciliary Care
Cambridgeshire County Council,06-Aug-21,51301623435,"-1,769.48",THERA EAST ANGLIA,CARE ESTABLISHMENT,LD - South Locality - Cost of Care,LD - South Cambs - Care,Domiciliary Care
Cambridgeshire County Council,06-Aug-21,51301623435,"-1,769.48",THERA EAST ANGLIA,CARE ESTABLISHMENT,LD - South Locality - Cost of Care,LD - South Cambs - Care,Domiciliary Care
Cambridgeshire County Council,06-Aug-21,51301623435,"-1,769.48",THERA EAST ANGLIA,CARE ESTABLISHMENT,LD - South Locality - Cost of Care,LD - South Cambs - Care,Domiciliary Care
Cambridgeshire County Council,06-Aug-21,51301623435,"-1,769.48",THERA EAST ANGLIA,CARE ESTABLISHMENT,LD - South Locality - Cost of Care,LD - South Cambs - Care,Domiciliary Care
Cambridgeshire County Council,06-Aug-21,51301623435,"-1,769.48",THERA EAST ANGLIA,CARE ESTABLISHMENT,LD - South Locality - Cost of Care,LD - South Cambs - Care,Domiciliary Care
Cambridgeshire County Council,06-Aug-21,51301623435,"-1,769.48",THERA EAST ANGLIA,CARE ESTABLISHMENT,LD - South Locality - Cost of Care,LD - South Cambs - Care,Domiciliary Care
Cambridgeshire County Council,06-Aug-21,51301623435,"-1,769.48",THERA EAST ANGLIA,CARE ESTABLISHMENT,LD - South Locality - Cost of Care,LD - South Cambs - Care,Domiciliary Care
Cambridgeshire County Council,06-Aug-21,51301623435,"-1,769.48",THERA EAST ANGLIA,CARE ESTABLISHMENT,LD - South Locality - Cost of Care,LD - South Cambs - Care,Domiciliary Care
Cambridgeshire County Council,06-Aug-21,51301623435,"-1,769.48",THERA EAST ANGLIA,CARE ESTABLISHMENT,LD - South Locality - Cost of Care,LD - South Cambs - Care,Domiciliary Care
Cambridgeshire County Council,06-Aug-21,51301623435,"-1,769.48",THERA EAST ANGLIA,CARE ESTABLISHMENT,LD - South Locality - Cost of Care,LD - South Cambs - Care,Domiciliary Care
Cambridgeshire County Council,06-Aug-21,51301623435,"-1,769.48",THERA EAST ANGLIA,CARE ESTABLISHMENT,LD - South Locality - Cost of Care,LD - South Cambs - Care,Domiciliary Care
Cambridgeshire County Council,06-Aug-21,51301623435,"-1,769.48",THERA EAST ANGLIA,CARE ESTABLISHMENT,LD - South Locality - Cost of Care,LD - South Cambs - Care,Domiciliary Care
Cambridgeshire County Council,06-Aug-21,51301623435,"-1,769.48",THERA EAST ANGLIA,CARE ESTABLISHMENT,LD - South Locality - Cost of Care,LD - South Cambs - Care,Domiciliary Care
Cambridgeshire County Council,06-Aug-21,51301623435,"-1,769.48",THERA EAST ANGLIA,CARE ESTABLISHMENT,LD - South Locality - Cost of Care,LD - South Cambs - Care,Domiciliary Care
Cambridgeshire County Council,06-Aug-21,51301623435,"-1,769.48",THERA EAST ANGLIA,CARE ESTABLISHMENT,LD - South Locality - Cost of Care,LD - South Cambs - Care,Domiciliary Care
Cambridgeshire County Council,06-Aug-21,51301623435,"-1,769.48",THERA EAST ANGLIA,CARE ESTABLISHMENT,LD - South Locality - Cost of Care,LD - South Cambs - Care,Domiciliary Care
Cambridgeshire County Council,06-Aug-21,51301623435,"-1,769.48",THERA EAST ANGLIA,CARE ESTABLISHMENT,LD - South Locality - Cost of Care,LD - South Cambs - Care,Domiciliary Care
Cambridgeshire County Council,06-Aug-21,51301623435,"-1,769.48",THERA EAST ANGLIA,CARE ESTABLISHMENT,LD - South Locality - Cost of Care,LD - South Cambs - Care,Domiciliary Care
Cambridgeshire County Council,06-Aug-21,51301623435,"-1,769.48",THERA EAST ANGLIA,CARE ESTABLISHMENT,LD - South Locality - Cost of Care,LD - South Cambs - Care,Domiciliary Care
Cambridgeshire County Council,06-Aug-21,51301623435,"-1,769.48",THERA EAST ANGLIA,CARE ESTABLISHMENT,LD - South Locality - Cost of Care,LD - South Cambs - Care,Domiciliary Care
Cambridgeshire County Council,06-Aug-21,51301623435,"-1,769.48",THERA EAST ANGLIA,CARE ESTABLISHMENT,LD - South Locality - Cost of Care,LD - South Cambs - Care,Domiciliary Care
Cambridgeshire County Council,06-Aug-21,51301623435,"-1,769.48",THERA EAST ANGLIA,CARE ESTABLISHMENT,LD - South Locality - Cost of Care,LD - South Cambs - Care,Domiciliary Care
Cambridgeshire County Council,06-Aug-21,51301623435,"-1,769.48",THERA EAST ANGLIA,CARE ESTABLISHMENT,LD - South Locality - Cost of Care,LD - South Cambs - Care,Domiciliary Care
Cambridgeshire County Council,06-Aug-21,51301623435,"-1,769.48",THERA EAST ANGLIA,CARE ESTABLISHMENT,LD - South Locality - Cost of Care,LD - South Cambs - Care,Domiciliary Care
Cambridgeshire County Council,06-Aug-21,51301623435,"-1,769.48",THERA EAST ANGLIA,CARE ESTABLISHMENT,LD - South Locality - Cost of Care,LD - South Cambs - Care,Domiciliary Care
Cambridgeshire County Council,06-Aug-21,51301623435,"-1,769.48",THERA EAST ANGLIA,CARE ESTABLISHMENT,LD - South Locality - Cost of Care,LD - South Cambs - Care,Domiciliary Care
Cambridgeshire County Council,06-Aug-21,51301623435,"-1,769.48",THERA EAST ANGLIA,CARE ESTABLISHMENT,LD - South Locality - Cost of Care,LD - South Cambs - Care,Domiciliary Care
Cambridgeshire County Council,06-Aug-21,51301623435,"-1,769.48",THERA EAST ANGLIA,CARE ESTABLISHMENT,LD - South Locality - Cost of Care,LD - South Cambs - Care,Domiciliary Care
Cambridgeshire County Council,06-Aug-21,51301623435,"-1,769.48",THERA EAST ANGLIA,CARE ESTABLISHMENT,LD - South Locality - Cost of Care,LD - South Cambs - Care,Domiciliary Care
Cambridgeshire County Council,06-Aug-21,51301623435,"-1,769.48",THERA EAST ANGLIA,CARE ESTABLISHMENT,LD - South Locality - Cost of Care,LD - South Cambs - Care,Domiciliary Care
Cambridgeshire County Council,27-Aug-21,51301629791,"-1,729.46",GLENHOLME HEALTHCARE LTD,CARE ESTABLISHMENT,LD - South Locality - Cost of Care,LD - South Cambs - Special Needs,Residential Care
Cambridgeshire County Council,06-Aug-21,51301622271,"-1,667.24",CARETECH COMMUNITY SERVICES,CARE ESTABLISHMENT,LD - Fenland Locality - Cost of Care,LD - Fenland  - Care,Supported Living
Cambridgeshire County Council,06-Aug-21,51301622903,"-1,631.21",AUGUSTA CARE LTD,CARE ESTABLISHMENT,LD - Fenland Locality - Cost of Care,LD - Fenland  - Special Needs,Supported Living
Cambridgeshire County Council,06-Aug-21,51301622903,"-1,631.21",AUGUSTA CARE LTD,CARE ESTABLISHMENT,LD - Fenland Locality - Cost of Care,LD - Fenland  - Special Needs,Supported Living
Cambridgeshire County Council,06-Aug-21,51301622903,"-1,631.21",AUGUSTA CARE LTD,CARE ESTABLISHMENT,LD - Fenland Locality - Cost of Care,LD - Fenland  - Special Needs,Supported Living
Cambridgeshire County Council,06-Aug-21,51301622903,"-1,631.21",AUGUSTA CARE LTD,CARE ESTABLISHMENT,LD - Fenland Locality - Cost of Care,LD - Fenland  - Special Needs,Supported Living
Cambridgeshire County Council,06-Aug-21,51301622903,"-1,631.21",AUGUSTA CARE LTD,CARE ESTABLISHMENT,LD - Fenland Locality - Cost of Care,LD - Fenland  - Special Needs,Supported Living
Cambridgeshire County Council,06-Aug-21,51301622903,"-1,631.21",AUGUSTA CARE LTD,CARE ESTABLISHMENT,LD - Fenland Locality - Cost of Care,LD - Fenland  - Special Needs,Supported Living
Cambridgeshire County Council,06-Aug-21,51301622903,"-1,631.21",AUGUSTA CARE LTD,CARE ESTABLISHMENT,LD - Fenland Locality - Cost of Care,LD - Fenland  - Special Needs,Supported Living
Cambridgeshire County Council,06-Aug-21,51301622903,"-1,631.21",AUGUSTA CARE LTD,CARE ESTABLISHMENT,LD - Fenland Locality - Cost of Care,LD - Fenland  - Special Needs,Supported Living
Cambridgeshire County Council,06-Aug-21,51301622903,"-1,631.21",AUGUSTA CARE LTD,CARE ESTABLISHMENT,LD - Fenland Locality - Cost of Care,LD - Fenland  - Special Needs,Supported Living
Cambridgeshire County Council,06-Aug-21,51301622903,"-1,631.21",AUGUSTA CARE LTD,CARE ESTABLISHMENT,LD - Fenland Locality - Cost of Care,LD - Fenland  - Special Needs,Supported Living
Cambridgeshire County Council,06-Aug-21,51301622903,"-1,631.21",AUGUSTA CARE LTD,CARE ESTABLISHMENT,LD - Fenland Locality - Cost of Care,LD - Fenland  - Special Needs,Supported Living
Cambridgeshire County Council,06-Aug-21,51301622903,"-1,631.21",AUGUSTA CARE LTD,CARE ESTABLISHMENT,LD - Fenland Locality - Cost of Care,LD - Fenland  - Special Needs,Supported Living
Cambridgeshire County Council,06-Aug-21,51301622903,"-1,631.21",AUGUSTA CARE LTD,CARE ESTABLISHMENT,LD - Fenland Locality - Cost of Care,LD - Fenland  - Special Needs,Supported Living
Cambridgeshire County Council,06-Aug-21,51301622903,"-1,631.21",AUGUSTA CARE LTD,CARE ESTABLISHMENT,LD - Fenland Locality - Cost of Care,LD - Fenland  - Special Needs,Supported Living
Cambridgeshire County Council,06-Aug-21,51301622903,"-1,631.21",AUGUSTA CARE LTD,CARE ESTABLISHMENT,LD - Fenland Locality - Cost of Care,LD - Fenland  - Special Needs,Supported Living
Cambridgeshire County Council,06-Aug-21,51301622903,"-1,631.21",AUGUSTA CARE LTD,CARE ESTABLISHMENT,LD - Fenland Locality - Cost of Care,LD - Fenland  - Special Needs,Supported Living
Cambridgeshire County Council,06-Aug-21,51301622903,"-1,631.21",AUGUSTA CARE LTD,CARE ESTABLISHMENT,LD - Fenland Locality - Cost of Care,LD - Fenland  - Special Needs,Supported Living
Cambridgeshire County Council,06-Aug-21,51301622903,"-1,631.21",AUGUSTA CARE LTD,CARE ESTABLISHMENT,LD - Fenland Locality - Cost of Care,LD - Fenland  - Special Needs,Supported Living
Cambridgeshire County Council,06-Aug-21,51301623439,"-1,600.45",THERA EAST ANGLIA,CARE ESTABLISHMENT,LD - South Locality - Cost of Care,LD - South Cambs - Care,Domiciliary Care
Cambridgeshire County Council,06-Aug-21,51301623439,"-1,600.45",THERA EAST ANGLIA,CARE ESTABLISHMENT,LD - South Locality - Cost of Care,LD - South Cambs - Care,Domiciliary Care
Cambridgeshire County Council,06-Aug-21,51301623439,"-1,600.45",THERA EAST ANGLIA,CARE ESTABLISHMENT,LD - South Locality - Cost of Care,LD - South Cambs - Care,Domiciliary Care
Cambridgeshire County Council,06-Aug-21,51301623439,"-1,600.45",THERA EAST ANGLIA,CARE ESTABLISHMENT,LD - South Locality - Cost of Care,LD - South Cambs - Care,Domiciliary Care
Cambridgeshire County Council,06-Aug-21,51301623439,"-1,600.45",THERA EAST ANGLIA,CARE ESTABLISHMENT,LD - South Locality - Cost of Care,LD - South Cambs - Care,Domiciliary Care
Cambridgeshire County Council,06-Aug-21,51301623439,"-1,600.45",THERA EAST ANGLIA,CARE ESTABLISHMENT,LD - South Locality - Cost of Care,LD - South Cambs - Care,Domiciliary Care
Cambridgeshire County Council,06-Aug-21,51301623439,"-1,600.45",THERA EAST ANGLIA,CARE ESTABLISHMENT,LD - South Locality - Cost of Care,LD - South Cambs - Care,Domiciliary Care
Cambridgeshire County Council,06-Aug-21,51301623439,"-1,600.45",THERA EAST ANGLIA,CARE ESTABLISHMENT,LD - South Locality - Cost of Care,LD - South Cambs - Care,Domiciliary Care
Cambridgeshire County Council,06-Aug-21,51301623439,"-1,600.45",THERA EAST ANGLIA,CARE ESTABLISHMENT,LD - South Locality - Cost of Care,LD - South Cambs - Care,Domiciliary Care
Cambridgeshire County Council,06-Aug-21,51301623439,"-1,600.45",THERA EAST ANGLIA,CARE ESTABLISHMENT,LD - South Locality - Cost of Care,LD - South Cambs - Care,Domiciliary Care
Cambridgeshire County Council,06-Aug-21,51301623439,"-1,600.45",THERA EAST ANGLIA,CARE ESTABLISHMENT,LD - South Locality - Cost of Care,LD - South Cambs - Care,Domiciliary Care
Cambridgeshire County Council,06-Aug-21,51301623439,"-1,600.45",THERA EAST ANGLIA,CARE ESTABLISHMENT,LD - South Locality - Cost of Care,LD - South Cambs - Care,Domiciliary Care
Cambridgeshire County Council,06-Aug-21,51301623439,"-1,600.45",THERA EAST ANGLIA,CARE ESTABLISHMENT,LD - South Locality - Cost of Care,LD - South Cambs - Care,Domiciliary Care
Cambridgeshire County Council,06-Aug-21,51301623439,"-1,600.45",THERA EAST ANGLIA,CARE ESTABLISHMENT,LD - South Locality - Cost of Care,LD - South Cambs - Care,Domiciliary Care
Cambridgeshire County Council,06-Aug-21,51301623439,"-1,600.45",THERA EAST ANGLIA,CARE ESTABLISHMENT,LD - South Locality - Cost of Care,LD - South Cambs - Care,Domiciliary Care
Cambridgeshire County Council,06-Aug-21,51301623439,"-1,600.45",THERA EAST ANGLIA,CARE ESTABLISHMENT,LD - South Locality - Cost of Care,LD - South Cambs - Care,Domiciliary Care
Cambridgeshire County Council,06-Aug-21,51301623439,"-1,600.45",THERA EAST ANGLIA,CARE ESTABLISHMENT,LD - South Locality - Cost of Care,LD - South Cambs - Care,Domiciliary Care
Cambridgeshire County Council,06-Aug-21,51301623439,"-1,600.45",THERA EAST ANGLIA,CARE ESTABLISHMENT,LD - South Locality - Cost of Care,LD - South Cambs - Care,Domiciliary Care
Cambridgeshire County Council,06-Aug-21,51301623439,"-1,600.45",THERA EAST ANGLIA,CARE ESTABLISHMENT,LD - South Locality - Cost of Care,LD - South Cambs - Care,Domiciliary Care
Cambridgeshire County Council,06-Aug-21,51301623439,"-1,600.45",THERA EAST ANGLIA,CARE ESTABLISHMENT,LD - South Locality - Cost of Care,LD - South Cambs - Care,Domiciliary Care
Cambridgeshire County Council,06-Aug-21,51301623439,"-1,600.45",THERA EAST ANGLIA,CARE ESTABLISHMENT,LD - South Locality - Cost of Care,LD - South Cambs - Care,Domiciliary Care
Cambridgeshire County Council,06-Aug-21,51301623439,"-1,600.45",THERA EAST ANGLIA,CARE ESTABLISHMENT,LD - South Locality - Cost of Care,LD - South Cambs - Care,Domiciliary Care
Cambridgeshire County Council,06-Aug-21,51301623439,"-1,600.45",THERA EAST ANGLIA,CARE ESTABLISHMENT,LD - South Locality - Cost of Care,LD - South Cambs - Care,Domiciliary Care
Cambridgeshire County Council,06-Aug-21,51301623439,"-1,600.45",THERA EAST ANGLIA,CARE ESTABLISHMENT,LD - South Locality - Cost of Care,LD - South Cambs - Care,Domiciliary Care
Cambridgeshire County Council,06-Aug-21,51301623439,"-1,600.45",THERA EAST ANGLIA,CARE ESTABLISHMENT,LD - South Locality - Cost of Care,LD - South Cambs - Care,Domiciliary Care
Cambridgeshire County Council,06-Aug-21,51301623439,"-1,600.45",THERA EAST ANGLIA,CARE ESTABLISHMENT,LD - South Locality - Cost of Care,LD - South Cambs - Care,Domiciliary Care
Cambridgeshire County Council,06-Aug-21,51301623439,"-1,600.45",THERA EAST ANGLIA,CARE ESTABLISHMENT,LD - South Locality - Cost of Care,LD - South Cambs - Care,Domiciliary Care
Cambridgeshire County Council,06-Aug-21,51301623439,"-1,600.45",THERA EAST ANGLIA,CARE ESTABLISHMENT,LD - South Locality - Cost of Care,LD - South Cambs - Care,Domiciliary Care
Cambridgeshire County Council,06-Aug-21,51301623439,"-1,600.45",THERA EAST ANGLIA,CARE ESTABLISHMENT,LD - South Locality - Cost of Care,LD - South Cambs - Care,Domiciliary Care
Cambridgeshire County Council,06-Aug-21,51301623439,"-1,600.45",THERA EAST ANGLIA,CARE ESTABLISHMENT,LD - South Locality - Cost of Care,LD - South Cambs - Care,Domiciliary Care
Cambridgeshire County Council,06-Aug-21,51301623439,"-1,600.45",THERA EAST ANGLIA,CARE ESTABLISHMENT,LD - South Locality - Cost of Care,LD - South Cambs - Care,Domiciliary Care
Cambridgeshire County Council,06-Aug-21,51301623439,"-1,600.45",THERA EAST ANGLIA,CARE ESTABLISHMENT,LD - South Locality - Cost of Care,LD - South Cambs - Care,Domiciliary Care
Cambridgeshire County Council,06-Aug-21,51301623439,"-1,600.45",THERA EAST ANGLIA,CARE ESTABLISHMENT,LD - South Locality - Cost of Care,LD - South Cambs - Care,Domiciliary Care
Cambridgeshire County Council,06-Aug-21,51301623439,"-1,600.45",THERA EAST ANGLIA,CARE ESTABLISHMENT,LD - South Locality - Cost of Care,LD - South Cambs - Care,Domiciliary Care
Cambridgeshire County Council,06-Aug-21,51301623439,"-1,600.45",THERA EAST ANGLIA,CARE ESTABLISHMENT,LD - South Locality - Cost of Care,LD - South Cambs - Care,Domiciliary Care
Cambridgeshire County Council,06-Aug-21,51301623439,"-1,600.45",THERA EAST ANGLIA,CARE ESTABLISHMENT,LD - South Locality - Cost of Care,LD - South Cambs - Care,Domiciliary Care
Cambridgeshire County Council,06-Aug-21,51301623439,"-1,600.45",THERA EAST ANGLIA,CARE ESTABLISHMENT,LD - South Locality - Cost of Care,LD - South Cambs - Care,Domiciliary Care
Cambridgeshire County Council,06-Aug-21,51301623439,"-1,600.45",THERA EAST ANGLIA,CARE ESTABLISHMENT,LD - South Locality - Cost of Care,LD - South Cambs - Care,Domiciliary Care
Cambridgeshire County Council,06-Aug-21,51301623439,"-1,600.45",THERA EAST ANGLIA,CARE ESTABLISHMENT,LD - South Locality - Cost of Care,LD - South Cambs - Care,Domiciliary Care
Cambridgeshire County Council,06-Aug-21,51301623439,"-1,600.45",THERA EAST ANGLIA,CARE ESTABLISHMENT,LD - South Locality - Cost of Care,LD - South Cambs - Care,Domiciliary Care
Cambridgeshire County Council,06-Aug-21,51301623439,"-1,600.45",THERA EAST ANGLIA,CARE ESTABLISHMENT,LD - South Locality - Cost of Care,LD - South Cambs - Care,Domiciliary Care
Cambridgeshire County Council,06-Aug-21,51301623439,"-1,600.45",THERA EAST ANGLIA,CARE ESTABLISHMENT,LD - South Locality - Cost of Care,LD - South Cambs - Care,Domiciliary Care
Cambridgeshire County Council,06-Aug-21,51301623439,"-1,600.45",THERA EAST ANGLIA,CARE ESTABLISHMENT,LD - South Locality - Cost of Care,LD - South Cambs - Care,Domiciliary Care
Cambridgeshire County Council,06-Aug-21,51301623439,"-1,600.45",THERA EAST ANGLIA,CARE ESTABLISHMENT,LD - South Locality - Cost of Care,LD - South Cambs - Care,Domiciliary Care
Cambridgeshire County Council,06-Aug-21,51301623439,"-1,600.45",THERA EAST ANGLIA,CARE ESTABLISHMENT,LD - South Locality - Cost of Care,LD - South Cambs - Care,Domiciliary Care
Cambridgeshire County Council,06-Aug-21,51301623439,"-1,600.45",THERA EAST ANGLIA,CARE ESTABLISHMENT,LD - South Locality - Cost of Care,LD - South Cambs - Care,Domiciliary Care
Cambridgeshire County Council,06-Aug-21,51301623439,"-1,600.45",THERA EAST ANGLIA,CARE ESTABLISHMENT,LD - South Locality - Cost of Care,LD - South Cambs - Care,Domiciliary Care
Cambridgeshire County Council,06-Aug-21,51301623439,"-1,600.45",THERA EAST ANGLIA,CARE ESTABLISHMENT,LD - South Locality - Cost of Care,LD - South Cambs - Care,Domiciliary Care
Cambridgeshire County Council,06-Aug-21,51301623439,"-1,600.45",THERA EAST ANGLIA,CARE ESTABLISHMENT,LD - South Locality - Cost of Care,LD - South Cambs - Care,Domiciliary Care
Cambridgeshire County Council,06-Aug-21,51301623439,"-1,600.45",THERA EAST ANGLIA,CARE ESTABLISHMENT,LD - South Locality - Cost of Care,LD - South Cambs - Care,Domiciliary Care
Cambridgeshire County Council,06-Aug-21,51301623439,"-1,600.45",THERA EAST ANGLIA,CARE ESTABLISHMENT,LD - South Locality - Cost of Care,LD - South Cambs - Care,Domiciliary Care
Cambridgeshire County Council,06-Aug-21,51301623439,"-1,600.45",THERA EAST ANGLIA,CARE ESTABLISHMENT,LD - South Locality - Cost of Care,LD - South Cambs - Care,Domiciliary Care
Cambridgeshire County Council,06-Aug-21,51301623439,"-1,600.45",THERA EAST ANGLIA,CARE ESTABLISHMENT,LD - South Locality - Cost of Care,LD - South Cambs - Care,Domiciliary Care
Cambridgeshire County Council,06-Aug-21,51301623439,"-1,600.45",THERA EAST ANGLIA,CARE ESTABLISHMENT,LD - South Locality - Cost of Care,LD - South Cambs - Care,Domiciliary Care
Cambridgeshire County Council,06-Aug-21,51301620274,"-1,599.56",BUCHAN HEALTHCARE LTD,CARE ESTABLISHMENT,OP - City & South Blocks,City and South - Long term blocks,Nursing Care
Cambridgeshire County Council,06-Aug-21,51301620274,"-1,599.56",BUCHAN HEALTHCARE LTD,CARE ESTABLISHMENT,OP - City & South Blocks,City and South - Long term blocks,Nursing Care
Cambridgeshire County Council,06-Aug-21,51301621265,"-1,589.18",Ambito Care and Education,COMPANY,LD - South Locality - Cost of Care,LD - South Cambs - Care,Domiciliary Care
Cambridgeshire County Council,06-Aug-21,51301621265,"-1,589.18",Ambito Care and Education,COMPANY,LD - South Locality - Cost of Care,LD - South Cambs - Care,Domiciliary Care
Cambridgeshire County Council,06-Aug-21,51301621265,"-1,589.18",Ambito Care and Education,COMPANY,LD - South Locality - Cost of Care,LD - South Cambs - Care,Domiciliary Care
Cambridgeshire County Council,06-Aug-21,51301621265,"-1,589.18",Ambito Care and Education,COMPANY,LD - South Locality - Cost of Care,LD - South Cambs - Care,Domiciliary Care
Cambridgeshire County Council,06-Aug-21,51301621265,"-1,589.18",Ambito Care and Education,COMPANY,LD - South Locality - Cost of Care,LD - South Cambs - Care,Domiciliary Care
Cambridgeshire County Council,06-Aug-21,51301621265,"-1,589.18",Ambito Care and Education,COMPANY,LD - South Locality - Cost of Care,LD - South Cambs - Care,Domiciliary Care
Cambridgeshire County Council,06-Aug-21,51301621265,"-1,589.18",Ambito Care and Education,COMPANY,LD - South Locality - Cost of Care,LD - South Cambs - Care,Domiciliary Care
Cambridgeshire County Council,06-Aug-21,51301621265,"-1,589.18",Ambito Care and Education,COMPANY,LD - South Locality - Cost of Care,LD - South Cambs - Care,Domiciliary Care
Cambridgeshire County Council,06-Aug-21,51301621265,"-1,589.18",Ambito Care and Education,COMPANY,LD - South Locality - Cost of Care,LD - South Cambs - Care,Domiciliary Care
Cambridgeshire County Council,06-Aug-21,51301621265,"-1,589.18",Ambito Care and Education,COMPANY,LD - South Locality - Cost of Care,LD - South Cambs - Care,Domiciliary Care
Cambridgeshire County Council,06-Aug-21,51301621265,"-1,589.18",Ambito Care and Education,COMPANY,LD - South Locality - Cost of Care,LD - South Cambs - Care,Domiciliary Care
Cambridgeshire County Council,06-Aug-21,51301621265,"-1,589.18",Ambito Care and Education,COMPANY,LD - South Locality - Cost of Care,LD - South Cambs - Care,Domiciliary Care
Cambridgeshire County Council,06-Aug-21,51301621265,"-1,589.18",Ambito Care and Education,COMPANY,LD - South Locality - Cost of Care,LD - South Cambs - Care,Domiciliary Care
Cambridgeshire County Council,06-Aug-21,51301621265,"-1,589.18",Ambito Care and Education,COMPANY,LD - South Locality - Cost of Care,LD - South Cambs - Care,Domiciliary Care
Cambridgeshire County Council,06-Aug-21,51301621265,"-1,589.18",Ambito Care and Education,COMPANY,LD - South Locality - Cost of Care,LD - South Cambs - Care,Domiciliary Care
Cambridgeshire County Council,06-Aug-21,51301621265,"-1,589.18",Ambito Care and Education,COMPANY,LD - South Locality - Cost of Care,LD - South Cambs - Care,Domiciliary Care
Cambridgeshire County Council,06-Aug-21,51301621265,"-1,589.18",Ambito Care and Education,COMPANY,LD - South Locality - Cost of Care,LD - South Cambs - Care,Domiciliary Care
Cambridgeshire County Council,06-Aug-21,51301621265,"-1,589.18",Ambito Care and Education,COMPANY,LD - South Locality - Cost of Care,LD - South Cambs - Care,Domiciliary Care
Cambridgeshire County Council,06-Aug-21,51301621265,"-1,589.18",Ambito Care and Education,COMPANY,LD - South Locality - Cost of Care,LD - South Cambs - Care,Domiciliary Care
Cambridgeshire County Council,06-Aug-21,51301621265,"-1,589.18",Ambito Care and Education,COMPANY,LD - South Locality - Cost of Care,LD - South Cambs - Care,Domiciliary Care
Cambridgeshire County Council,06-Aug-21,51301621265,"-1,589.18",Ambito Care and Education,COMPANY,LD - South Locality - Cost of Care,LD - South Cambs - Care,Domiciliary Care
Cambridgeshire County Council,06-Aug-21,51301621265,"-1,589.18",Ambito Care and Education,COMPANY,LD - South Locality - Cost of Care,LD - South Cambs - Care,Domiciliary Care
Cambridgeshire County Council,06-Aug-21,51301621265,"-1,589.18",Ambito Care and Education,COMPANY,LD - South Locality - Cost of Care,LD - South Cambs - Care,Domiciliary Care
Cambridgeshire County Council,06-Aug-21,51301621265,"-1,589.18",Ambito Care and Education,COMPANY,LD - South Locality - Cost of Care,LD - South Cambs - Care,Domiciliary Care
Cambridgeshire County Council,06-Aug-21,51301621265,"-1,589.18",Ambito Care and Education,COMPANY,LD - South Locality - Cost of Care,LD - South Cambs - Care,Domiciliary Care
Cambridgeshire County Council,06-Aug-21,51301621265,"-1,589.18",Ambito Care and Education,COMPANY,LD - South Locality - Cost of Care,LD - South Cambs - Care,Domiciliary Care
Cambridgeshire County Council,06-Aug-21,51301621265,"-1,589.18",Ambito Care and Education,COMPANY,LD - South Locality - Cost of Care,LD - South Cambs - Care,Domiciliary Care
Cambridgeshire County Council,06-Aug-21,51301621265,"-1,589.18",Ambito Care and Education,COMPANY,LD - South Locality - Cost of Care,LD - South Cambs - Care,Domiciliary Care
Cambridgeshire County Council,06-Aug-21,51301621265,"-1,589.18",Ambito Care and Education,COMPANY,LD - South Locality - Cost of Care,LD - South Cambs - Care,Domiciliary Care
Cambridgeshire County Council,06-Aug-21,51301621265,"-1,589.18",Ambito Care and Education,COMPANY,LD - South Locality - Cost of Care,LD - South Cambs - Care,Domiciliary Care
Cambridgeshire County Council,06-Aug-21,51301621265,"-1,589.18",Ambito Care and Education,COMPANY,LD - South Locality - Cost of Care,LD - South Cambs - Care,Domiciliary Care
Cambridgeshire County Council,06-Aug-21,51301621265,"-1,589.18",Ambito Care and Education,COMPANY,LD - South Locality - Cost of Care,LD - South Cambs - Care,Domiciliary Care
Cambridgeshire County Council,06-Aug-21,51301621265,"-1,589.18",Ambito Care and Education,COMPANY,LD - South Locality - Cost of Care,LD - South Cambs - Care,Domiciliary Care
Cambridgeshire County Council,06-Aug-21,51301621265,"-1,589.18",Ambito Care and Education,COMPANY,LD - South Locality - Cost of Care,LD - South Cambs - Care,Domiciliary Care
Cambridgeshire County Council,06-Aug-21,51301621265,"-1,589.18",Ambito Care and Education,COMPANY,LD - South Locality - Cost of Care,LD - South Cambs - Care,Domiciliary Care
Cambridgeshire County Council,06-Aug-21,51301621265,"-1,589.18",Ambito Care and Education,COMPANY,LD - South Locality - Cost of Care,LD - South Cambs - Care,Domiciliary Care
Cambridgeshire County Council,06-Aug-21,51301621265,"-1,589.18",Ambito Care and Education,COMPANY,LD - South Locality - Cost of Care,LD - South Cambs - Care,Domiciliary Care
Cambridgeshire County Council,06-Aug-21,51301621265,"-1,589.18",Ambito Care and Education,COMPANY,LD - South Locality - Cost of Care,LD - South Cambs - Care,Domiciliary Care
Cambridgeshire County Council,06-Aug-21,51301621265,"-1,589.18",Ambito Care and Education,COMPANY,LD - South Locality - Cost of Care,LD - South Cambs - Care,Domiciliary Care
Cambridgeshire County Council,06-Aug-21,51301621265,"-1,589.18",Ambito Care and Education,COMPANY,LD - South Locality - Cost of Care,LD - South Cambs - Care,Domiciliary Care
Cambridgeshire County Council,06-Aug-21,51301621265,"-1,589.18",Ambito Care and Education,COMPANY,LD - South Locality - Cost of Care,LD - South Cambs - Care,Domiciliary Care
Cambridgeshire County Council,06-Aug-21,51301621265,"-1,589.18",Ambito Care and Education,COMPANY,LD - South Locality - Cost of Care,LD - South Cambs - Care,Domiciliary Care
Cambridgeshire County Council,06-Aug-21,51301621265,"-1,589.18",Ambito Care and Education,COMPANY,LD - South Locality - Cost of Care,LD - South Cambs - Care,Domiciliary Care
Cambridgeshire County Council,06-Aug-21,51301621265,"-1,589.18",Ambito Care and Education,COMPANY,LD - South Locality - Cost of Care,LD - South Cambs - Care,Domiciliary Care
Cambridgeshire County Council,06-Aug-21,51301621265,"-1,589.18",Ambito Care and Education,COMPANY,LD - South Locality - Cost of Care,LD - South Cambs - Care,Domiciliary Care
Cambridgeshire County Council,06-Aug-21,51301621265,"-1,589.18",Ambito Care and Education,COMPANY,LD - South Locality - Cost of Care,LD - South Cambs - Care,Domiciliary Care
Cambridgeshire County Council,06-Aug-21,51301621265,"-1,589.18",Ambito Care and Education,COMPANY,LD - South Locality - Cost of Care,LD - South Cambs - Care,Domiciliary Care
Cambridgeshire County Council,06-Aug-21,51301621265,"-1,589.18",Ambito Care and Education,COMPANY,LD - South Locality - Cost of Care,LD - South Cambs - Care,Domiciliary Care
Cambridgeshire County Council,06-Aug-21,51301621265,"-1,589.18",Ambito Care and Education,COMPANY,LD - South Locality - Cost of Care,LD - South Cambs - Care,Domiciliary Care
Cambridgeshire County Council,06-Aug-21,51301621265,"-1,589.18",Ambito Care and Education,COMPANY,LD - South Locality - Cost of Care,LD - South Cambs - Care,Domiciliary Care
Cambridgeshire County Council,06-Aug-21,51301621265,"-1,589.18",Ambito Care and Education,COMPANY,LD - South Locality - Cost of Care,LD - South Cambs - Care,Domiciliary Care
Cambridgeshire County Council,06-Aug-21,51301621265,"-1,589.18",Ambito Care and Education,COMPANY,LD - South Locality - Cost of Care,LD - South Cambs - Care,Domiciliary Care
Cambridgeshire County Council,06-Aug-21,51301621265,"-1,589.18",Ambito Care and Education,COMPANY,LD - South Locality - Cost of Care,LD - South Cambs - Care,Domiciliary Care
Cambridgeshire County Council,06-Aug-21,51301621265,"-1,589.18",Ambito Care and Education,COMPANY,LD - South Locality - Cost of Care,LD - South Cambs - Care,Domiciliary Care
Cambridgeshire County Council,02-Aug-21,51301615135,"-1,582.82",Redacted Personal Data ,SERVICE USER,LD - South Locality - Cost of Care,LD - South Cambs - Care,Direct Payments
Cambridgeshire County Council,06-Aug-21,51301622903,"-1,576.05",AUGUSTA CARE LTD,CARE ESTABLISHMENT,LD - Fenland Locality - Cost of Care,LD - Fenland  - Special Needs,Supported Living
Cambridgeshire County Council,06-Aug-21,51301622903,"-1,576.05",AUGUSTA CARE LTD,CARE ESTABLISHMENT,LD - Fenland Locality - Cost of Care,LD - Fenland  - Special Needs,Supported Living
Cambridgeshire County Council,06-Aug-21,51301622903,"-1,576.05",AUGUSTA CARE LTD,CARE ESTABLISHMENT,LD - Fenland Locality - Cost of Care,LD - Fenland  - Special Needs,Supported Living
Cambridgeshire County Council,06-Aug-21,51301622903,"-1,576.05",AUGUSTA CARE LTD,CARE ESTABLISHMENT,LD - Fenland Locality - Cost of Care,LD - Fenland  - Special Needs,Supported Living
Cambridgeshire County Council,06-Aug-21,51301622903,"-1,576.05",AUGUSTA CARE LTD,CARE ESTABLISHMENT,LD - Fenland Locality - Cost of Care,LD - Fenland  - Special Needs,Supported Living
Cambridgeshire County Council,06-Aug-21,51301622903,"-1,576.05",AUGUSTA CARE LTD,CARE ESTABLISHMENT,LD - Fenland Locality - Cost of Care,LD - Fenland  - Special Needs,Supported Living
Cambridgeshire County Council,06-Aug-21,51301622903,"-1,576.05",AUGUSTA CARE LTD,CARE ESTABLISHMENT,LD - Fenland Locality - Cost of Care,LD - Fenland  - Special Needs,Supported Living
Cambridgeshire County Council,06-Aug-21,51301623475,"-1,549.50",THERA EAST ANGLIA,CARE ESTABLISHMENT,LD - Hunts Locality - Cost of Care,LD - Huntingdonshire - Care,Domiciliary Care
Cambridgeshire County Council,06-Aug-21,51301623475,"-1,549.50",THERA EAST ANGLIA,CARE ESTABLISHMENT,LD - Hunts Locality - Cost of Care,LD - Huntingdonshire - Care,Domiciliary Care
Cambridgeshire County Council,06-Aug-21,51301623475,"-1,549.50",THERA EAST ANGLIA,CARE ESTABLISHMENT,LD - Hunts Locality - Cost of Care,LD - Huntingdonshire - Care,Domiciliary Care
Cambridgeshire County Council,06-Aug-21,51301623475,"-1,549.50",THERA EAST ANGLIA,CARE ESTABLISHMENT,LD - Hunts Locality - Cost of Care,LD - Huntingdonshire - Care,Domiciliary Care
Cambridgeshire County Council,06-Aug-21,51301623475,"-1,549.50",THERA EAST ANGLIA,CARE ESTABLISHMENT,LD - Hunts Locality - Cost of Care,LD - Huntingdonshire - Care,Domiciliary Care
Cambridgeshire County Council,06-Aug-21,51301623475,"-1,549.50",THERA EAST ANGLIA,CARE ESTABLISHMENT,LD - Hunts Locality - Cost of Care,LD - Huntingdonshire - Care,Domiciliary Care
Cambridgeshire County Council,06-Aug-21,51301623475,"-1,549.50",THERA EAST ANGLIA,CARE ESTABLISHMENT,LD - Hunts Locality - Cost of Care,LD - Huntingdonshire - Care,Domiciliary Care
Cambridgeshire County Council,06-Aug-21,51301623475,"-1,549.50",THERA EAST ANGLIA,CARE ESTABLISHMENT,LD - Hunts Locality - Cost of Care,LD - Huntingdonshire - Care,Domiciliary Care
Cambridgeshire County Council,06-Aug-21,51301623475,"-1,549.50",THERA EAST ANGLIA,CARE ESTABLISHMENT,LD - Hunts Locality - Cost of Care,LD - Huntingdonshire - Care,Domiciliary Care
Cambridgeshire County Council,06-Aug-21,51301623475,"-1,549.50",THERA EAST ANGLIA,CARE ESTABLISHMENT,LD - Hunts Locality - Cost of Care,LD - Huntingdonshire - Care,Domiciliary Care
Cambridgeshire County Council,06-Aug-21,51301623475,"-1,549.50",THERA EAST ANGLIA,CARE ESTABLISHMENT,LD - Hunts Locality - Cost of Care,LD - Huntingdonshire - Care,Domiciliary Care
Cambridgeshire County Council,06-Aug-21,51301623475,"-1,549.50",THERA EAST ANGLIA,CARE ESTABLISHMENT,LD - Hunts Locality - Cost of Care,LD - Huntingdonshire - Care,Domiciliary Care
Cambridgeshire County Council,06-Aug-21,51301623475,"-1,549.50",THERA EAST ANGLIA,CARE ESTABLISHMENT,LD - Hunts Locality - Cost of Care,LD - Huntingdonshire - Care,Domiciliary Care
Cambridgeshire County Council,06-Aug-21,51301623475,"-1,549.50",THERA EAST ANGLIA,CARE ESTABLISHMENT,LD - Hunts Locality - Cost of Care,LD - Huntingdonshire - Care,Domiciliary Care
Cambridgeshire County Council,06-Aug-21,51301623475,"-1,549.50",THERA EAST ANGLIA,CARE ESTABLISHMENT,LD - Hunts Locality - Cost of Care,LD - Huntingdonshire - Care,Domiciliary Care
Cambridgeshire County Council,06-Aug-21,51301623475,"-1,549.50",THERA EAST ANGLIA,CARE ESTABLISHMENT,LD - Hunts Locality - Cost of Care,LD - Huntingdonshire - Care,Domiciliary Care
Cambridgeshire County Council,06-Aug-21,51301623475,"-1,549.50",THERA EAST ANGLIA,CARE ESTABLISHMENT,LD - Hunts Locality - Cost of Care,LD - Huntingdonshire - Care,Domiciliary Care
Cambridgeshire County Council,06-Aug-21,51301623475,"-1,549.50",THERA EAST ANGLIA,CARE ESTABLISHMENT,LD - Hunts Locality - Cost of Care,LD - Huntingdonshire - Care,Domiciliary Care
Cambridgeshire County Council,06-Aug-21,51301623475,"-1,549.50",THERA EAST ANGLIA,CARE ESTABLISHMENT,LD - Hunts Locality - Cost of Care,LD - Huntingdonshire - Care,Domiciliary Care
Cambridgeshire County Council,06-Aug-21,51301623475,"-1,549.50",THERA EAST ANGLIA,CARE ESTABLISHMENT,LD - Hunts Locality - Cost of Care,LD - Huntingdonshire - Care,Domiciliary Care
Cambridgeshire County Council,06-Aug-21,51301623475,"-1,549.50",THERA EAST ANGLIA,CARE ESTABLISHMENT,LD - Hunts Locality - Cost of Care,LD - Huntingdonshire - Care,Domiciliary Care
Cambridgeshire County Council,06-Aug-21,51301623475,"-1,549.50",THERA EAST ANGLIA,CARE ESTABLISHMENT,LD - Hunts Locality - Cost of Care,LD - Huntingdonshire - Care,Domiciliary Care
Cambridgeshire County Council,06-Aug-21,51301623475,"-1,549.50",THERA EAST ANGLIA,CARE ESTABLISHMENT,LD - Hunts Locality - Cost of Care,LD - Huntingdonshire - Care,Domiciliary Care
Cambridgeshire County Council,06-Aug-21,51301623475,"-1,549.50",THERA EAST ANGLIA,CARE ESTABLISHMENT,LD - Hunts Locality - Cost of Care,LD - Huntingdonshire - Care,Domiciliary Care
Cambridgeshire County Council,06-Aug-21,51301623475,"-1,549.50",THERA EAST ANGLIA,CARE ESTABLISHMENT,LD - Hunts Locality - Cost of Care,LD - Huntingdonshire - Care,Domiciliary Care
Cambridgeshire County Council,06-Aug-21,51301623475,"-1,549.50",THERA EAST ANGLIA,CARE ESTABLISHMENT,LD - Hunts Locality - Cost of Care,LD - Huntingdonshire - Care,Domiciliary Care
Cambridgeshire County Council,06-Aug-21,51301623475,"-1,549.50",THERA EAST ANGLIA,CARE ESTABLISHMENT,LD - Hunts Locality - Cost of Care,LD - Huntingdonshire - Care,Domiciliary Care
Cambridgeshire County Council,06-Aug-21,51301623475,"-1,549.50",THERA EAST ANGLIA,CARE ESTABLISHMENT,LD - Hunts Locality - Cost of Care,LD - Huntingdonshire - Care,Domiciliary Care
Cambridgeshire County Council,06-Aug-21,51301623475,"-1,549.50",THERA EAST ANGLIA,CARE ESTABLISHMENT,LD - Hunts Locality - Cost of Care,LD - Huntingdonshire - Care,Domiciliary Care
Cambridgeshire County Council,06-Aug-21,51301623475,"-1,549.50",THERA EAST ANGLIA,CARE ESTABLISHMENT,LD - Hunts Locality - Cost of Care,LD - Huntingdonshire - Care,Domiciliary Care
Cambridgeshire County Council,06-Aug-21,51301623475,"-1,549.50",THERA EAST ANGLIA,CARE ESTABLISHMENT,LD - Hunts Locality - Cost of Care,LD - Huntingdonshire - Care,Domiciliary Care
Cambridgeshire County Council,06-Aug-21,51301623475,"-1,549.50",THERA EAST ANGLIA,CARE ESTABLISHMENT,LD - Hunts Locality - Cost of Care,LD - Huntingdonshire - Care,Domiciliary Care
Cambridgeshire County Council,06-Aug-21,51301623475,"-1,549.50",THERA EAST ANGLIA,CARE ESTABLISHMENT,LD - Hunts Locality - Cost of Care,LD - Huntingdonshire - Care,Domiciliary Care
Cambridgeshire County Council,06-Aug-21,51301623475,"-1,549.50",THERA EAST ANGLIA,CARE ESTABLISHMENT,LD - Hunts Locality - Cost of Care,LD - Huntingdonshire - Care,Domiciliary Care
Cambridgeshire County Council,06-Aug-21,51301623475,"-1,549.50",THERA EAST ANGLIA,CARE ESTABLISHMENT,LD - Hunts Locality - Cost of Care,LD - Huntingdonshire - Care,Domiciliary Care
Cambridgeshire County Council,06-Aug-21,51301623475,"-1,549.50",THERA EAST ANGLIA,CARE ESTABLISHMENT,LD - Hunts Locality - Cost of Care,LD - Huntingdonshire - Care,Domiciliary Care
Cambridgeshire County Council,06-Aug-21,51301623475,"-1,549.50",THERA EAST ANGLIA,CARE ESTABLISHMENT,LD - Hunts Locality - Cost of Care,LD - Huntingdonshire - Care,Domiciliary Care
Cambridgeshire County Council,06-Aug-21,51301623475,"-1,549.50",THERA EAST ANGLIA,CARE ESTABLISHMENT,LD - Hunts Locality - Cost of Care,LD - Huntingdonshire - Care,Domiciliary Care
Cambridgeshire County Council,06-Aug-21,51301623475,"-1,549.50",THERA EAST ANGLIA,CARE ESTABLISHMENT,LD - Hunts Locality - Cost of Care,LD - Huntingdonshire - Care,Domiciliary Care
Cambridgeshire County Council,06-Aug-21,51301623475,"-1,549.50",THERA EAST ANGLIA,CARE ESTABLISHMENT,LD - Hunts Locality - Cost of Care,LD - Huntingdonshire - Care,Domiciliary Care
Cambridgeshire County Council,06-Aug-21,51301623475,"-1,549.50",THERA EAST ANGLIA,CARE ESTABLISHMENT,LD - Hunts Locality - Cost of Care,LD - Huntingdonshire - Care,Domiciliary Care
Cambridgeshire County Council,06-Aug-21,51301623475,"-1,549.50",THERA EAST ANGLIA,CARE ESTABLISHMENT,LD - Hunts Locality - Cost of Care,LD - Huntingdonshire - Care,Domiciliary Care
Cambridgeshire County Council,06-Aug-21,51301623475,"-1,549.50",THERA EAST ANGLIA,CARE ESTABLISHMENT,LD - Hunts Locality - Cost of Care,LD - Huntingdonshire - Care,Domiciliary Care
Cambridgeshire County Council,06-Aug-21,51301623475,"-1,549.50",THERA EAST ANGLIA,CARE ESTABLISHMENT,LD - Hunts Locality - Cost of Care,LD - Huntingdonshire - Care,Domiciliary Care
Cambridgeshire County Council,06-Aug-21,51301623475,"-1,549.50",THERA EAST ANGLIA,CARE ESTABLISHMENT,LD - Hunts Locality - Cost of Care,LD - Huntingdonshire - Care,Domiciliary Care
Cambridgeshire County Council,06-Aug-21,51301623475,"-1,549.50",THERA EAST ANGLIA,CARE ESTABLISHMENT,LD - Hunts Locality - Cost of Care,LD - Huntingdonshire - Care,Domiciliary Care
Cambridgeshire County Council,06-Aug-21,51301623475,"-1,549.50",THERA EAST ANGLIA,CARE ESTABLISHMENT,LD - Hunts Locality - Cost of Care,LD - Huntingdonshire - Care,Domiciliary Care
Cambridgeshire County Council,06-Aug-21,51301623475,"-1,549.50",THERA EAST ANGLIA,CARE ESTABLISHMENT,LD - Hunts Locality - Cost of Care,LD - Huntingdonshire - Care,Domiciliary Care
Cambridgeshire County Council,06-Aug-21,51301623475,"-1,549.50",THERA EAST ANGLIA,CARE ESTABLISHMENT,LD - Hunts Locality - Cost of Care,LD - Huntingdonshire - Care,Domiciliary Care
Cambridgeshire County Council,06-Aug-21,51301623475,"-1,549.50",THERA EAST ANGLIA,CARE ESTABLISHMENT,LD - Hunts Locality - Cost of Care,LD - Huntingdonshire - Care,Domiciliary Care
Cambridgeshire County Council,06-Aug-21,51301623475,"-1,549.50",THERA EAST ANGLIA,CARE ESTABLISHMENT,LD - Hunts Locality - Cost of Care,LD - Huntingdonshire - Care,Domiciliary Care
Cambridgeshire County Council,06-Aug-21,51301623475,"-1,549.50",THERA EAST ANGLIA,CARE ESTABLISHMENT,LD - Hunts Locality - Cost of Care,LD - Huntingdonshire - Care,Domiciliary Care
Cambridgeshire County Council,06-Aug-21,51301623475,"-1,549.50",THERA EAST ANGLIA,CARE ESTABLISHMENT,LD - Hunts Locality - Cost of Care,LD - Huntingdonshire - Care,Domiciliary Care
Cambridgeshire County Council,06-Aug-21,51301623475,"-1,549.50",THERA EAST ANGLIA,CARE ESTABLISHMENT,LD - Hunts Locality - Cost of Care,LD - Huntingdonshire - Care,Domiciliary Care
Cambridgeshire County Council,06-Aug-21,51301606480,"-1,540.50",CONSENSUS (CROMER HOUSE),CARE ESTABLISHMENT,LD - South Locality - Cost of Care,LD - South Cambs - Care,Residential Care
Cambridgeshire County Council,16-Aug-21,51301614395,"-1,536.00",WATERMAN ASPEN LTD,TRADE SUPPLIER,Highways Development Management,Highways Development Management,Professional Fees and Hired Services
Cambridgeshire County Council,27-Aug-21,51301629826,"-1,498.71",HFT TRUST LTD,TRUST (OTHER),LD - Hunts Locality - Cost of Care,LD - Huntingdonshire - Care,Residential Care
Cambridgeshire County Council,27-Aug-21,51301629826,"-1,498.71",HFT TRUST LTD,TRUST (OTHER),LD - Hunts Locality - Cost of Care,LD - Huntingdonshire - Care,Residential Care
Cambridgeshire County Council,27-Aug-21,51301629826,"-1,498.71",HFT TRUST LTD,TRUST (OTHER),LD - Hunts Locality - Cost of Care,LD - Huntingdonshire - Care,Residential Care
Cambridgeshire County Council,27-Aug-21,51301629826,"-1,498.71",HFT TRUST LTD,TRUST (OTHER),LD - Hunts Locality - Cost of Care,LD - Huntingdonshire - Care,Residential Care
Cambridgeshire County Council,27-Aug-21,51301629826,"-1,498.71",HFT TRUST LTD,TRUST (OTHER),LD - Hunts Locality - Cost of Care,LD - Huntingdonshire - Care,Residential Care
Cambridgeshire County Council,27-Aug-21,51301629826,"-1,498.71",HFT TRUST LTD,TRUST (OTHER),LD - Hunts Locality - Cost of Care,LD - Huntingdonshire - Care,Residential Care
Cambridgeshire County Council,27-Aug-21,51301629826,"-1,498.71",HFT TRUST LTD,TRUST (OTHER),LD - Hunts Locality - Cost of Care,LD - Huntingdonshire - Care,Residential Care
Cambridgeshire County Council,27-Aug-21,51301629826,"-1,498.71",HFT TRUST LTD,TRUST (OTHER),LD - Hunts Locality - Cost of Care,LD - Huntingdonshire - Care,Residential Care
Cambridgeshire County Council,27-Aug-21,51301629826,"-1,498.71",HFT TRUST LTD,TRUST (OTHER),LD - Hunts Locality - Cost of Care,LD - Huntingdonshire - Care,Residential Care
Cambridgeshire County Council,27-Aug-21,51301629826,"-1,498.71",HFT TRUST LTD,TRUST (OTHER),LD - Hunts Locality - Cost of Care,LD - Huntingdonshire - Care,Residential Care
Cambridgeshire County Council,27-Aug-21,51301629826,"-1,498.71",HFT TRUST LTD,TRUST (OTHER),LD - Hunts Locality - Cost of Care,LD - Huntingdonshire - Care,Residential Care
Cambridgeshire County Council,27-Aug-21,51301629826,"-1,498.71",HFT TRUST LTD,TRUST (OTHER),LD - Hunts Locality - Cost of Care,LD - Huntingdonshire - Care,Residential Care
Cambridgeshire County Council,27-Aug-21,51301629826,"-1,498.71",HFT TRUST LTD,TRUST (OTHER),LD - Hunts Locality - Cost of Care,LD - Huntingdonshire - Care,Residential Care
Cambridgeshire County Council,27-Aug-21,51301629826,"-1,498.71",HFT TRUST LTD,TRUST (OTHER),LD - Hunts Locality - Cost of Care,LD - Huntingdonshire - Care,Residential Care
Cambridgeshire County Council,27-Aug-21,51301629826,"-1,498.71",HFT TRUST LTD,TRUST (OTHER),LD - Hunts Locality - Cost of Care,LD - Huntingdonshire - Care,Residential Care
Cambridgeshire County Council,27-Aug-21,51301629826,"-1,498.71",HFT TRUST LTD,TRUST (OTHER),LD - Hunts Locality - Cost of Care,LD - Huntingdonshire - Care,Residential Care
Cambridgeshire County Council,27-Aug-21,51301629826,"-1,498.71",HFT TRUST LTD,TRUST (OTHER),LD - Hunts Locality - Cost of Care,LD - Huntingdonshire - Care,Residential Care
Cambridgeshire County Council,27-Aug-21,51301629826,"-1,498.71",HFT TRUST LTD,TRUST (OTHER),LD - Hunts Locality - Cost of Care,LD - Huntingdonshire - Care,Residential Care
Cambridgeshire County Council,27-Aug-21,51301629826,"-1,498.71",HFT TRUST LTD,TRUST (OTHER),LD - Hunts Locality - Cost of Care,LD - Huntingdonshire - Care,Residential Care
Cambridgeshire County Council,27-Aug-21,51301629826,"-1,498.71",HFT TRUST LTD,TRUST (OTHER),LD - Hunts Locality - Cost of Care,LD - Huntingdonshire - Care,Residential Care
Cambridgeshire County Council,27-Aug-21,51301629826,"-1,498.71",HFT TRUST LTD,TRUST (OTHER),LD - Hunts Locality - Cost of Care,LD - Huntingdonshire - Care,Residential Care
Cambridgeshire County Council,27-Aug-21,51301629826,"-1,498.71",HFT TRUST LTD,TRUST (OTHER),LD - Hunts Locality - Cost of Care,LD - Huntingdonshire - Care,Residential Care
Cambridgeshire County Council,27-Aug-21,51301629826,"-1,498.71",HFT TRUST LTD,TRUST (OTHER),LD - Hunts Locality - Cost of Care,LD - Huntingdonshire - Care,Residential Care
Cambridgeshire County Council,27-Aug-21,51301629826,"-1,498.71",HFT TRUST LTD,TRUST (OTHER),LD - Hunts Locality - Cost of Care,LD - Huntingdonshire - Care,Residential Care
Cambridgeshire County Council,27-Aug-21,51301629826,"-1,498.71",HFT TRUST LTD,TRUST (OTHER),LD - Hunts Locality - Cost of Care,LD - Huntingdonshire - Care,Residential Care
Cambridgeshire County Council,27-Aug-21,51301629826,"-1,498.71",HFT TRUST LTD,TRUST (OTHER),LD - Hunts Locality - Cost of Care,LD - Huntingdonshire - Care,Residential Care
Cambridgeshire County Council,27-Aug-21,51301629826,"-1,498.71",HFT TRUST LTD,TRUST (OTHER),LD - Hunts Locality - Cost of Care,LD - Huntingdonshire - Care,Residential Care
Cambridgeshire County Council,27-Aug-21,51301629826,"-1,498.71",HFT TRUST LTD,TRUST (OTHER),LD - Hunts Locality - Cost of Care,LD - Huntingdonshire - Care,Residential Care
Cambridgeshire County Council,27-Aug-21,51301629826,"-1,498.71",HFT TRUST LTD,TRUST (OTHER),LD - Hunts Locality - Cost of Care,LD - Huntingdonshire - Care,Residential Care
Cambridgeshire County Council,27-Aug-21,51301629826,"-1,498.71",HFT TRUST LTD,TRUST (OTHER),LD - Hunts Locality - Cost of Care,LD - Huntingdonshire - Care,Residential Care
Cambridgeshire County Council,27-Aug-21,51301629826,"-1,498.71",HFT TRUST LTD,TRUST (OTHER),LD - Hunts Locality - Cost of Care,LD - Huntingdonshire - Care,Residential Care
Cambridgeshire County Council,27-Aug-21,51301629826,"-1,498.71",HFT TRUST LTD,TRUST (OTHER),LD - Hunts Locality - Cost of Care,LD - Huntingdonshire - Care,Residential Care
Cambridgeshire County Council,27-Aug-21,51301629826,"-1,498.71",HFT TRUST LTD,TRUST (OTHER),LD - Hunts Locality - Cost of Care,LD - Huntingdonshire - Care,Residential Care
Cambridgeshire County Council,27-Aug-21,51301629826,"-1,498.71",HFT TRUST LTD,TRUST (OTHER),LD - Hunts Locality - Cost of Care,LD - Huntingdonshire - Care,Residential Care
Cambridgeshire County Council,27-Aug-21,51301629826,"-1,498.71",HFT TRUST LTD,TRUST (OTHER),LD - Hunts Locality - Cost of Care,LD - Huntingdonshire - Care,Residential Care
Cambridgeshire County Council,27-Aug-21,51301629826,"-1,498.71",HFT TRUST LTD,TRUST (OTHER),LD - Hunts Locality - Cost of Care,LD - Huntingdonshire - Care,Residential Care
Cambridgeshire County Council,27-Aug-21,51301629826,"-1,498.71",HFT TRUST LTD,TRUST (OTHER),LD - Hunts Locality - Cost of Care,LD - Huntingdonshire - Care,Residential Care
Cambridgeshire County Council,27-Aug-21,51301629826,"-1,498.71",HFT TRUST LTD,TRUST (OTHER),LD - Hunts Locality - Cost of Care,LD - Huntingdonshire - Care,Residential Care
Cambridgeshire County Council,27-Aug-21,51301629826,"-1,498.71",HFT TRUST LTD,TRUST (OTHER),LD - Hunts Locality - Cost of Care,LD - Huntingdonshire - Care,Residential Care
Cambridgeshire County Council,27-Aug-21,51301629826,"-1,498.71",HFT TRUST LTD,TRUST (OTHER),LD - Hunts Locality - Cost of Care,LD - Huntingdonshire - Care,Residential Care
Cambridgeshire County Council,27-Aug-21,51301629826,"-1,498.71",HFT TRUST LTD,TRUST (OTHER),LD - Hunts Locality - Cost of Care,LD - Huntingdonshire - Care,Residential Care
Cambridgeshire County Council,27-Aug-21,51301629826,"-1,498.71",HFT TRUST LTD,TRUST (OTHER),LD - Hunts Locality - Cost of Care,LD - Huntingdonshire - Care,Residential Care
Cambridgeshire County Council,27-Aug-21,51301629826,"-1,498.71",HFT TRUST LTD,TRUST (OTHER),LD - Hunts Locality - Cost of Care,LD - Huntingdonshire - Care,Residential Care
Cambridgeshire County Council,27-Aug-21,51301629826,"-1,498.71",HFT TRUST LTD,TRUST (OTHER),LD - Hunts Locality - Cost of Care,LD - Huntingdonshire - Care,Residential Care
Cambridgeshire County Council,27-Aug-21,51301629826,"-1,498.71",HFT TRUST LTD,TRUST (OTHER),LD - Hunts Locality - Cost of Care,LD - Huntingdonshire - Care,Residential Care
Cambridgeshire County Council,27-Aug-21,51301629826,"-1,498.71",HFT TRUST LTD,TRUST (OTHER),LD - Hunts Locality - Cost of Care,LD - Huntingdonshire - Care,Residential Care
Cambridgeshire County Council,27-Aug-21,51301629826,"-1,498.71",HFT TRUST LTD,TRUST (OTHER),LD - Hunts Locality - Cost of Care,LD - Huntingdonshire - Care,Residential Care
Cambridgeshire County Council,27-Aug-21,51301629826,"-1,498.71",HFT TRUST LTD,TRUST (OTHER),LD - Hunts Locality - Cost of Care,LD - Huntingdonshire - Care,Residential Care
Cambridgeshire County Council,27-Aug-21,51301629826,"-1,498.71",HFT TRUST LTD,TRUST (OTHER),LD - Hunts Locality - Cost of Care,LD - Huntingdonshire - Care,Residential Care
Cambridgeshire County Council,27-Aug-21,51301629826,"-1,498.71",HFT TRUST LTD,TRUST (OTHER),LD - Hunts Locality - Cost of Care,LD - Huntingdonshire - Care,Residential Care
Cambridgeshire County Council,27-Aug-21,51301629826,"-1,498.71",HFT TRUST LTD,TRUST (OTHER),LD - Hunts Locality - Cost of Care,LD - Huntingdonshire - Care,Residential Care
Cambridgeshire County Council,27-Aug-21,51301629826,"-1,498.71",HFT TRUST LTD,TRUST (OTHER),LD - Hunts Locality - Cost of Care,LD - Huntingdonshire - Care,Residential Care
Cambridgeshire County Council,27-Aug-21,51301629826,"-1,498.71",HFT TRUST LTD,TRUST (OTHER),LD - Hunts Locality - Cost of Care,LD - Huntingdonshire - Care,Residential Care
Cambridgeshire County Council,27-Aug-21,51301629826,"-1,498.71",HFT TRUST LTD,TRUST (OTHER),LD - Hunts Locality - Cost of Care,LD - Huntingdonshire - Care,Residential Care
Cambridgeshire County Council,27-Aug-21,51301629826,"-1,498.71",HFT TRUST LTD,TRUST (OTHER),LD - Hunts Locality - Cost of Care,LD - Huntingdonshire - Care,Residential Care
Cambridgeshire County Council,27-Aug-21,51301629826,"-1,498.71",HFT TRUST LTD,TRUST (OTHER),LD - Hunts Locality - Cost of Care,LD - Huntingdonshire - Care,Residential Care
Cambridgeshire County Council,27-Aug-21,51301629826,"-1,498.71",HFT TRUST LTD,TRUST (OTHER),LD - Hunts Locality - Cost of Care,LD - Huntingdonshire - Care,Residential Care
Cambridgeshire County Council,27-Aug-21,51301629826,"-1,498.71",HFT TRUST LTD,TRUST (OTHER),LD - Hunts Locality - Cost of Care,LD - Huntingdonshire - Care,Residential Care
Cambridgeshire County Council,06-Aug-21,51301623442,"-1,496.53",THERA EAST ANGLIA,CARE ESTABLISHMENT,LD - South Locality - Cost of Care,LD - South Cambs - Care,Domiciliary Care
Cambridgeshire County Council,06-Aug-21,51301623646,"-1,476.01",THERA EAST ANGLIA,CARE ESTABLISHMENT,LD - South Locality - Cost of Care,LD - South Cambs - Care,Supported Living
Cambridgeshire County Council,06-Aug-21,51301623646,"-1,476.01",THERA EAST ANGLIA,CARE ESTABLISHMENT,LD - South Locality - Cost of Care,LD - South Cambs - Care,Supported Living
Cambridgeshire County Council,06-Aug-21,51301623646,"-1,476.01",THERA EAST ANGLIA,CARE ESTABLISHMENT,LD - South Locality - Cost of Care,LD - South Cambs - Care,Supported Living
Cambridgeshire County Council,06-Aug-21,51301623646,"-1,476.01",THERA EAST ANGLIA,CARE ESTABLISHMENT,LD - South Locality - Cost of Care,LD - South Cambs - Care,Supported Living
Cambridgeshire County Council,06-Aug-21,51301623646,"-1,476.01",THERA EAST ANGLIA,CARE ESTABLISHMENT,LD - South Locality - Cost of Care,LD - South Cambs - Care,Supported Living
Cambridgeshire County Council,06-Aug-21,51301623646,"-1,476.01",THERA EAST ANGLIA,CARE ESTABLISHMENT,LD - South Locality - Cost of Care,LD - South Cambs - Care,Supported Living
Cambridgeshire County Council,06-Aug-21,51301623646,"-1,476.01",THERA EAST ANGLIA,CARE ESTABLISHMENT,LD - South Locality - Cost of Care,LD - South Cambs - Care,Supported Living
Cambridgeshire County Council,06-Aug-21,51301623646,"-1,476.01",THERA EAST ANGLIA,CARE ESTABLISHMENT,LD - South Locality - Cost of Care,LD - South Cambs - Care,Supported Living
Cambridgeshire County Council,06-Aug-21,51301623646,"-1,476.01",THERA EAST ANGLIA,CARE ESTABLISHMENT,LD - South Locality - Cost of Care,LD - South Cambs - Care,Supported Living
Cambridgeshire County Council,06-Aug-21,51301623646,"-1,476.01",THERA EAST ANGLIA,CARE ESTABLISHMENT,LD - South Locality - Cost of Care,LD - South Cambs - Care,Supported Living
Cambridgeshire County Council,06-Aug-21,51301623646,"-1,476.01",THERA EAST ANGLIA,CARE ESTABLISHMENT,LD - South Locality - Cost of Care,LD - South Cambs - Care,Supported Living
Cambridgeshire County Council,06-Aug-21,51301623646,"-1,476.01",THERA EAST ANGLIA,CARE ESTABLISHMENT,LD - South Locality - Cost of Care,LD - South Cambs - Care,Supported Living
Cambridgeshire County Council,06-Aug-21,51301623646,"-1,476.01",THERA EAST ANGLIA,CARE ESTABLISHMENT,LD - South Locality - Cost of Care,LD - South Cambs - Care,Supported Living
Cambridgeshire County Council,06-Aug-21,51301623646,"-1,476.01",THERA EAST ANGLIA,CARE ESTABLISHMENT,LD - South Locality - Cost of Care,LD - South Cambs - Care,Supported Living
Cambridgeshire County Council,06-Aug-21,51301623646,"-1,476.01",THERA EAST ANGLIA,CARE ESTABLISHMENT,LD - South Locality - Cost of Care,LD - South Cambs - Care,Supported Living
Cambridgeshire County Council,06-Aug-21,51301623646,"-1,476.01",THERA EAST ANGLIA,CARE ESTABLISHMENT,LD - South Locality - Cost of Care,LD - South Cambs - Care,Supported Living
Cambridgeshire County Council,06-Aug-21,51301623646,"-1,476.01",THERA EAST ANGLIA,CARE ESTABLISHMENT,LD - South Locality - Cost of Care,LD - South Cambs - Care,Supported Living
Cambridgeshire County Council,06-Aug-21,51301623646,"-1,476.01",THERA EAST ANGLIA,CARE ESTABLISHMENT,LD - South Locality - Cost of Care,LD - South Cambs - Care,Supported Living
Cambridgeshire County Council,06-Aug-21,51301623646,"-1,476.01",THERA EAST ANGLIA,CARE ESTABLISHMENT,LD - South Locality - Cost of Care,LD - South Cambs - Care,Supported Living
Cambridgeshire County Council,06-Aug-21,51301623646,"-1,476.01",THERA EAST ANGLIA,CARE ESTABLISHMENT,LD - South Locality - Cost of Care,LD - South Cambs - Care,Supported Living
Cambridgeshire County Council,06-Aug-21,51301623646,"-1,476.01",THERA EAST ANGLIA,CARE ESTABLISHMENT,LD - South Locality - Cost of Care,LD - South Cambs - Care,Supported Living
Cambridgeshire County Council,06-Aug-21,51301623646,"-1,476.01",THERA EAST ANGLIA,CARE ESTABLISHMENT,LD - South Locality - Cost of Care,LD - South Cambs - Care,Supported Living
Cambridgeshire County Council,06-Aug-21,51301623646,"-1,476.01",THERA EAST ANGLIA,CARE ESTABLISHMENT,LD - South Locality - Cost of Care,LD - South Cambs - Care,Supported Living
Cambridgeshire County Council,06-Aug-21,51301623646,"-1,476.01",THERA EAST ANGLIA,CARE ESTABLISHMENT,LD - South Locality - Cost of Care,LD - South Cambs - Care,Supported Living
Cambridgeshire County Council,06-Aug-21,51301623646,"-1,476.01",THERA EAST ANGLIA,CARE ESTABLISHMENT,LD - South Locality - Cost of Care,LD - South Cambs - Care,Supported Living
Cambridgeshire County Council,06-Aug-21,51301623646,"-1,476.01",THERA EAST ANGLIA,CARE ESTABLISHMENT,LD - South Locality - Cost of Care,LD - South Cambs - Care,Supported Living
Cambridgeshire County Council,06-Aug-21,51301623444,"-1,466.77",THERA EAST ANGLIA,CARE ESTABLISHMENT,LD - East Locality - Cost of Care,LD - East Cambs - Care,Domiciliary Care
Cambridgeshire County Council,06-Aug-21,51301623444,"-1,466.77",THERA EAST ANGLIA,CARE ESTABLISHMENT,LD - East Locality - Cost of Care,LD - East Cambs - Care,Domiciliary Care
Cambridgeshire County Council,06-Aug-21,51301623444,"-1,466.77",THERA EAST ANGLIA,CARE ESTABLISHMENT,LD - East Locality - Cost of Care,LD - East Cambs - Care,Domiciliary Care
Cambridgeshire County Council,06-Aug-21,51301623444,"-1,466.77",THERA EAST ANGLIA,CARE ESTABLISHMENT,LD - East Locality - Cost of Care,LD - East Cambs - Care,Domiciliary Care
Cambridgeshire County Council,06-Aug-21,51301623444,"-1,466.77",THERA EAST ANGLIA,CARE ESTABLISHMENT,LD - East Locality - Cost of Care,LD - East Cambs - Care,Domiciliary Care
Cambridgeshire County Council,06-Aug-21,51301623444,"-1,466.77",THERA EAST ANGLIA,CARE ESTABLISHMENT,LD - East Locality - Cost of Care,LD - East Cambs - Care,Domiciliary Care
Cambridgeshire County Council,06-Aug-21,51301623444,"-1,466.77",THERA EAST ANGLIA,CARE ESTABLISHMENT,LD - East Locality - Cost of Care,LD - East Cambs - Care,Domiciliary Care
Cambridgeshire County Council,06-Aug-21,51301623444,"-1,466.77",THERA EAST ANGLIA,CARE ESTABLISHMENT,LD - East Locality - Cost of Care,LD - East Cambs - Care,Domiciliary Care
Cambridgeshire County Council,06-Aug-21,51301623444,"-1,466.77",THERA EAST ANGLIA,CARE ESTABLISHMENT,LD - East Locality - Cost of Care,LD - East Cambs - Care,Domiciliary Care
Cambridgeshire County Council,06-Aug-21,51301623444,"-1,466.77",THERA EAST ANGLIA,CARE ESTABLISHMENT,LD - East Locality - Cost of Care,LD - East Cambs - Care,Domiciliary Care
Cambridgeshire County Council,06-Aug-21,51301623444,"-1,466.77",THERA EAST ANGLIA,CARE ESTABLISHMENT,LD - East Locality - Cost of Care,LD - East Cambs - Care,Domiciliary Care
Cambridgeshire County Council,06-Aug-21,51301623444,"-1,466.77",THERA EAST ANGLIA,CARE ESTABLISHMENT,LD - East Locality - Cost of Care,LD - East Cambs - Care,Domiciliary Care
Cambridgeshire County Council,06-Aug-21,51301623444,"-1,466.77",THERA EAST ANGLIA,CARE ESTABLISHMENT,LD - East Locality - Cost of Care,LD - East Cambs - Care,Domiciliary Care
Cambridgeshire County Council,06-Aug-21,51301623444,"-1,466.77",THERA EAST ANGLIA,CARE ESTABLISHMENT,LD - East Locality - Cost of Care,LD - East Cambs - Care,Domiciliary Care
Cambridgeshire County Council,06-Aug-21,51301623444,"-1,466.77",THERA EAST ANGLIA,CARE ESTABLISHMENT,LD - East Locality - Cost of Care,LD - East Cambs - Care,Domiciliary Care
Cambridgeshire County Council,06-Aug-21,51301623444,"-1,466.77",THERA EAST ANGLIA,CARE ESTABLISHMENT,LD - East Locality - Cost of Care,LD - East Cambs - Care,Domiciliary Care
Cambridgeshire County Council,06-Aug-21,51301623444,"-1,466.77",THERA EAST ANGLIA,CARE ESTABLISHMENT,LD - East Locality - Cost of Care,LD - East Cambs - Care,Domiciliary Care
Cambridgeshire County Council,06-Aug-21,51301623444,"-1,466.77",THERA EAST ANGLIA,CARE ESTABLISHMENT,LD - East Locality - Cost of Care,LD - East Cambs - Care,Domiciliary Care
Cambridgeshire County Council,06-Aug-21,51301623444,"-1,466.77",THERA EAST ANGLIA,CARE ESTABLISHMENT,LD - East Locality - Cost of Care,LD - East Cambs - Care,Domiciliary Care
Cambridgeshire County Council,06-Aug-21,51301623444,"-1,466.77",THERA EAST ANGLIA,CARE ESTABLISHMENT,LD - East Locality - Cost of Care,LD - East Cambs - Care,Domiciliary Care
Cambridgeshire County Council,06-Aug-21,51301623444,"-1,466.77",THERA EAST ANGLIA,CARE ESTABLISHMENT,LD - East Locality - Cost of Care,LD - East Cambs - Care,Domiciliary Care
Cambridgeshire County Council,06-Aug-21,51301623444,"-1,466.77",THERA EAST ANGLIA,CARE ESTABLISHMENT,LD - East Locality - Cost of Care,LD - East Cambs - Care,Domiciliary Care
Cambridgeshire County Council,06-Aug-21,51301623444,"-1,466.77",THERA EAST ANGLIA,CARE ESTABLISHMENT,LD - East Locality - Cost of Care,LD - East Cambs - Care,Domiciliary Care
Cambridgeshire County Council,06-Aug-21,51301623444,"-1,466.77",THERA EAST ANGLIA,CARE ESTABLISHMENT,LD - East Locality - Cost of Care,LD - East Cambs - Care,Domiciliary Care
Cambridgeshire County Council,06-Aug-21,51301623444,"-1,466.77",THERA EAST ANGLIA,CARE ESTABLISHMENT,LD - East Locality - Cost of Care,LD - East Cambs - Care,Domiciliary Care
Cambridgeshire County Council,06-Aug-21,51301623444,"-1,466.77",THERA EAST ANGLIA,CARE ESTABLISHMENT,LD - East Locality - Cost of Care,LD - East Cambs - Care,Domiciliary Care
Cambridgeshire County Council,06-Aug-21,51301623444,"-1,466.77",THERA EAST ANGLIA,CARE ESTABLISHMENT,LD - East Locality - Cost of Care,LD - East Cambs - Care,Domiciliary Care
Cambridgeshire County Council,06-Aug-21,51301623444,"-1,466.77",THERA EAST ANGLIA,CARE ESTABLISHMENT,LD - East Locality - Cost of Care,LD - East Cambs - Care,Domiciliary Care
Cambridgeshire County Council,06-Aug-21,51301623444,"-1,466.77",THERA EAST ANGLIA,CARE ESTABLISHMENT,LD - East Locality - Cost of Care,LD - East Cambs - Care,Domiciliary Care
Cambridgeshire County Council,06-Aug-21,51301623444,"-1,466.77",THERA EAST ANGLIA,CARE ESTABLISHMENT,LD - East Locality - Cost of Care,LD - East Cambs - Care,Domiciliary Care
Cambridgeshire County Council,06-Aug-21,51301623444,"-1,466.77",THERA EAST ANGLIA,CARE ESTABLISHMENT,LD - East Locality - Cost of Care,LD - East Cambs - Care,Domiciliary Care
Cambridgeshire County Council,06-Aug-21,51301623444,"-1,466.77",THERA EAST ANGLIA,CARE ESTABLISHMENT,LD - East Locality - Cost of Care,LD - East Cambs - Care,Domiciliary Care
Cambridgeshire County Council,06-Aug-21,51301623444,"-1,466.77",THERA EAST ANGLIA,CARE ESTABLISHMENT,LD - East Locality - Cost of Care,LD - East Cambs - Care,Domiciliary Care
Cambridgeshire County Council,06-Aug-21,51301623444,"-1,466.77",THERA EAST ANGLIA,CARE ESTABLISHMENT,LD - East Locality - Cost of Care,LD - East Cambs - Care,Domiciliary Care
Cambridgeshire County Council,06-Aug-21,51301623444,"-1,466.77",THERA EAST ANGLIA,CARE ESTABLISHMENT,LD - East Locality - Cost of Care,LD - East Cambs - Care,Domiciliary Care
Cambridgeshire County Council,06-Aug-21,51301623444,"-1,466.77",THERA EAST ANGLIA,CARE ESTABLISHMENT,LD - East Locality - Cost of Care,LD - East Cambs - Care,Domiciliary Care
Cambridgeshire County Council,06-Aug-21,51301623444,"-1,466.77",THERA EAST ANGLIA,CARE ESTABLISHMENT,LD - East Locality - Cost of Care,LD - East Cambs - Care,Domiciliary Care
Cambridgeshire County Council,06-Aug-21,51301623444,"-1,466.77",THERA EAST ANGLIA,CARE ESTABLISHMENT,LD - East Locality - Cost of Care,LD - East Cambs - Care,Domiciliary Care
Cambridgeshire County Council,06-Aug-21,51301623444,"-1,466.77",THERA EAST ANGLIA,CARE ESTABLISHMENT,LD - East Locality - Cost of Care,LD - East Cambs - Care,Domiciliary Care
Cambridgeshire County Council,06-Aug-21,51301623444,"-1,466.77",THERA EAST ANGLIA,CARE ESTABLISHMENT,LD - East Locality - Cost of Care,LD - East Cambs - Care,Domiciliary Care
Cambridgeshire County Council,06-Aug-21,51301623444,"-1,466.77",THERA EAST ANGLIA,CARE ESTABLISHMENT,LD - East Locality - Cost of Care,LD - East Cambs - Care,Domiciliary Care
Cambridgeshire County Council,06-Aug-21,51301623444,"-1,466.77",THERA EAST ANGLIA,CARE ESTABLISHMENT,LD - East Locality - Cost of Care,LD - East Cambs - Care,Domiciliary Care
Cambridgeshire County Council,06-Aug-21,51301623444,"-1,466.77",THERA EAST ANGLIA,CARE ESTABLISHMENT,LD - East Locality - Cost of Care,LD - East Cambs - Care,Domiciliary Care
Cambridgeshire County Council,06-Aug-21,51301623444,"-1,466.77",THERA EAST ANGLIA,CARE ESTABLISHMENT,LD - East Locality - Cost of Care,LD - East Cambs - Care,Domiciliary Care
Cambridgeshire County Council,06-Aug-21,51301623444,"-1,466.77",THERA EAST ANGLIA,CARE ESTABLISHMENT,LD - East Locality - Cost of Care,LD - East Cambs - Care,Domiciliary Care
Cambridgeshire County Council,06-Aug-21,51301623444,"-1,466.77",THERA EAST ANGLIA,CARE ESTABLISHMENT,LD - East Locality - Cost of Care,LD - East Cambs - Care,Domiciliary Care
Cambridgeshire County Council,06-Aug-21,51301623444,"-1,466.77",THERA EAST ANGLIA,CARE ESTABLISHMENT,LD - East Locality - Cost of Care,LD - East Cambs - Care,Domiciliary Care
Cambridgeshire County Council,06-Aug-21,51301623444,"-1,466.77",THERA EAST ANGLIA,CARE ESTABLISHMENT,LD - East Locality - Cost of Care,LD - East Cambs - Care,Domiciliary Care
Cambridgeshire County Council,06-Aug-21,51301623444,"-1,466.77",THERA EAST ANGLIA,CARE ESTABLISHMENT,LD - East Locality - Cost of Care,LD - East Cambs - Care,Domiciliary Care
Cambridgeshire County Council,06-Aug-21,51301623444,"-1,466.77",THERA EAST ANGLIA,CARE ESTABLISHMENT,LD - East Locality - Cost of Care,LD - East Cambs - Care,Domiciliary Care
Cambridgeshire County Council,06-Aug-21,51301623444,"-1,466.77",THERA EAST ANGLIA,CARE ESTABLISHMENT,LD - East Locality - Cost of Care,LD - East Cambs - Care,Domiciliary Care
Cambridgeshire County Council,06-Aug-21,51301623444,"-1,466.77",THERA EAST ANGLIA,CARE ESTABLISHMENT,LD - East Locality - Cost of Care,LD - East Cambs - Care,Domiciliary Care
Cambridgeshire County Council,06-Aug-21,51301623444,"-1,466.77",THERA EAST ANGLIA,CARE ESTABLISHMENT,LD - East Locality - Cost of Care,LD - East Cambs - Care,Domiciliary Care
Cambridgeshire County Council,06-Aug-21,51301623444,"-1,466.77",THERA EAST ANGLIA,CARE ESTABLISHMENT,LD - East Locality - Cost of Care,LD - East Cambs - Care,Domiciliary Care
Cambridgeshire County Council,06-Aug-21,51301606480,"-1,435.83",CONSENSUS (CROMER HOUSE),CARE ESTABLISHMENT,LD - South Locality - Cost of Care,LD - South Cambs - Care,Residential Care
Cambridgeshire County Council,06-Aug-21,51301606480,"-1,435.83",CONSENSUS (CROMER HOUSE),CARE ESTABLISHMENT,LD - South Locality - Cost of Care,LD - South Cambs - Care,Residential Care
Cambridgeshire County Council,06-Aug-21,51301606480,"-1,435.83",CONSENSUS (CROMER HOUSE),CARE ESTABLISHMENT,LD - South Locality - Cost of Care,LD - South Cambs - Care,Residential Care
Cambridgeshire County Council,06-Aug-21,51301606480,"-1,435.83",CONSENSUS (CROMER HOUSE),CARE ESTABLISHMENT,LD - South Locality - Cost of Care,LD - South Cambs - Care,Residential Care
Cambridgeshire County Council,06-Aug-21,51301606480,"-1,435.83",CONSENSUS (CROMER HOUSE),CARE ESTABLISHMENT,LD - South Locality - Cost of Care,LD - South Cambs - Care,Residential Care
Cambridgeshire County Council,06-Aug-21,51301606480,"-1,435.83",CONSENSUS (CROMER HOUSE),CARE ESTABLISHMENT,LD - South Locality - Cost of Care,LD - South Cambs - Care,Residential Care
Cambridgeshire County Council,06-Aug-21,51301606480,"-1,435.83",CONSENSUS (CROMER HOUSE),CARE ESTABLISHMENT,LD - South Locality - Cost of Care,LD - South Cambs - Care,Residential Care
Cambridgeshire County Council,06-Aug-21,51301606480,"-1,435.83",CONSENSUS (CROMER HOUSE),CARE ESTABLISHMENT,LD - South Locality - Cost of Care,LD - South Cambs - Care,Residential Care
Cambridgeshire County Council,06-Aug-21,51301606480,"-1,435.83",CONSENSUS (CROMER HOUSE),CARE ESTABLISHMENT,LD - South Locality - Cost of Care,LD - South Cambs - Care,Residential Care
Cambridgeshire County Council,06-Aug-21,51301606480,"-1,435.83",CONSENSUS (CROMER HOUSE),CARE ESTABLISHMENT,LD - South Locality - Cost of Care,LD - South Cambs - Care,Residential Care
Cambridgeshire County Council,06-Aug-21,51301606480,"-1,435.83",CONSENSUS (CROMER HOUSE),CARE ESTABLISHMENT,LD - South Locality - Cost of Care,LD - South Cambs - Care,Residential Care
Cambridgeshire County Council,06-Aug-21,51301606480,"-1,435.83",CONSENSUS (CROMER HOUSE),CARE ESTABLISHMENT,LD - South Locality - Cost of Care,LD - South Cambs - Care,Residential Care
Cambridgeshire County Council,06-Aug-21,51301606480,"-1,435.83",CONSENSUS (CROMER HOUSE),CARE ESTABLISHMENT,LD - South Locality - Cost of Care,LD - South Cambs - Care,Residential Care
Cambridgeshire County Council,06-Aug-21,51301622271,"-1,429.06",CARETECH COMMUNITY SERVICES,CARE ESTABLISHMENT,LD - Fenland Locality - Cost of Care,LD - Fenland  - Care,Supported Living
Cambridgeshire County Council,06-Aug-21,51301623473,"-1,428.58",THERA EAST ANGLIA,CARE ESTABLISHMENT,LD - East Locality - Cost of Care,LD - East Cambs - Care,Domiciliary Care
Cambridgeshire County Council,06-Aug-21,51301623473,"-1,428.58",THERA EAST ANGLIA,CARE ESTABLISHMENT,LD - East Locality - Cost of Care,LD - East Cambs - Care,Domiciliary Care
Cambridgeshire County Council,06-Aug-21,51301623473,"-1,428.58",THERA EAST ANGLIA,CARE ESTABLISHMENT,LD - East Locality - Cost of Care,LD - East Cambs - Care,Domiciliary Care
Cambridgeshire County Council,06-Aug-21,51301623473,"-1,428.58",THERA EAST ANGLIA,CARE ESTABLISHMENT,LD - East Locality - Cost of Care,LD - East Cambs - Care,Domiciliary Care
Cambridgeshire County Council,06-Aug-21,51301623473,"-1,428.58",THERA EAST ANGLIA,CARE ESTABLISHMENT,LD - East Locality - Cost of Care,LD - East Cambs - Care,Domiciliary Care
Cambridgeshire County Council,06-Aug-21,51301623473,"-1,428.58",THERA EAST ANGLIA,CARE ESTABLISHMENT,LD - East Locality - Cost of Care,LD - East Cambs - Care,Domiciliary Care
Cambridgeshire County Council,06-Aug-21,51301623473,"-1,428.58",THERA EAST ANGLIA,CARE ESTABLISHMENT,LD - East Locality - Cost of Care,LD - East Cambs - Care,Domiciliary Care
Cambridgeshire County Council,06-Aug-21,51301623473,"-1,428.58",THERA EAST ANGLIA,CARE ESTABLISHMENT,LD - East Locality - Cost of Care,LD - East Cambs - Care,Domiciliary Care
Cambridgeshire County Council,06-Aug-21,51301623473,"-1,428.58",THERA EAST ANGLIA,CARE ESTABLISHMENT,LD - East Locality - Cost of Care,LD - East Cambs - Care,Domiciliary Care
Cambridgeshire County Council,06-Aug-21,51301623473,"-1,428.58",THERA EAST ANGLIA,CARE ESTABLISHMENT,LD - East Locality - Cost of Care,LD - East Cambs - Care,Domiciliary Care
Cambridgeshire County Council,06-Aug-21,51301623473,"-1,428.58",THERA EAST ANGLIA,CARE ESTABLISHMENT,LD - East Locality - Cost of Care,LD - East Cambs - Care,Domiciliary Care
Cambridgeshire County Council,06-Aug-21,51301623473,"-1,428.58",THERA EAST ANGLIA,CARE ESTABLISHMENT,LD - East Locality - Cost of Care,LD - East Cambs - Care,Domiciliary Care
Cambridgeshire County Council,06-Aug-21,51301623473,"-1,428.58",THERA EAST ANGLIA,CARE ESTABLISHMENT,LD - East Locality - Cost of Care,LD - East Cambs - Care,Domiciliary Care
Cambridgeshire County Council,06-Aug-21,51301623473,"-1,428.58",THERA EAST ANGLIA,CARE ESTABLISHMENT,LD - East Locality - Cost of Care,LD - East Cambs - Care,Domiciliary Care
Cambridgeshire County Council,06-Aug-21,51301623473,"-1,428.58",THERA EAST ANGLIA,CARE ESTABLISHMENT,LD - East Locality - Cost of Care,LD - East Cambs - Care,Domiciliary Care
Cambridgeshire County Council,06-Aug-21,51301623473,"-1,428.58",THERA EAST ANGLIA,CARE ESTABLISHMENT,LD - East Locality - Cost of Care,LD - East Cambs - Care,Domiciliary Care
Cambridgeshire County Council,06-Aug-21,51301623473,"-1,428.58",THERA EAST ANGLIA,CARE ESTABLISHMENT,LD - East Locality - Cost of Care,LD - East Cambs - Care,Domiciliary Care
Cambridgeshire County Council,06-Aug-21,51301623473,"-1,428.58",THERA EAST ANGLIA,CARE ESTABLISHMENT,LD - East Locality - Cost of Care,LD - East Cambs - Care,Domiciliary Care
Cambridgeshire County Council,06-Aug-21,51301623473,"-1,428.58",THERA EAST ANGLIA,CARE ESTABLISHMENT,LD - East Locality - Cost of Care,LD - East Cambs - Care,Domiciliary Care
Cambridgeshire County Council,06-Aug-21,51301623473,"-1,428.58",THERA EAST ANGLIA,CARE ESTABLISHMENT,LD - East Locality - Cost of Care,LD - East Cambs - Care,Domiciliary Care
Cambridgeshire County Council,06-Aug-21,51301623473,"-1,428.58",THERA EAST ANGLIA,CARE ESTABLISHMENT,LD - East Locality - Cost of Care,LD - East Cambs - Care,Domiciliary Care
Cambridgeshire County Council,06-Aug-21,51301623473,"-1,428.58",THERA EAST ANGLIA,CARE ESTABLISHMENT,LD - East Locality - Cost of Care,LD - East Cambs - Care,Domiciliary Care
Cambridgeshire County Council,06-Aug-21,51301623473,"-1,428.58",THERA EAST ANGLIA,CARE ESTABLISHMENT,LD - East Locality - Cost of Care,LD - East Cambs - Care,Domiciliary Care
Cambridgeshire County Council,06-Aug-21,51301623473,"-1,428.58",THERA EAST ANGLIA,CARE ESTABLISHMENT,LD - East Locality - Cost of Care,LD - East Cambs - Care,Domiciliary Care
Cambridgeshire County Council,06-Aug-21,51301623473,"-1,428.58",THERA EAST ANGLIA,CARE ESTABLISHMENT,LD - East Locality - Cost of Care,LD - East Cambs - Care,Domiciliary Care
Cambridgeshire County Council,06-Aug-21,51301623473,"-1,428.58",THERA EAST ANGLIA,CARE ESTABLISHMENT,LD - East Locality - Cost of Care,LD - East Cambs - Care,Domiciliary Care
Cambridgeshire County Council,06-Aug-21,51301623473,"-1,428.58",THERA EAST ANGLIA,CARE ESTABLISHMENT,LD - East Locality - Cost of Care,LD - East Cambs - Care,Domiciliary Care
Cambridgeshire County Council,06-Aug-21,51301623473,"-1,428.58",THERA EAST ANGLIA,CARE ESTABLISHMENT,LD - East Locality - Cost of Care,LD - East Cambs - Care,Domiciliary Care
Cambridgeshire County Council,06-Aug-21,51301623473,"-1,428.58",THERA EAST ANGLIA,CARE ESTABLISHMENT,LD - East Locality - Cost of Care,LD - East Cambs - Care,Domiciliary Care
Cambridgeshire County Council,06-Aug-21,51301623473,"-1,428.58",THERA EAST ANGLIA,CARE ESTABLISHMENT,LD - East Locality - Cost of Care,LD - East Cambs - Care,Domiciliary Care
Cambridgeshire County Council,06-Aug-21,51301623473,"-1,428.58",THERA EAST ANGLIA,CARE ESTABLISHMENT,LD - East Locality - Cost of Care,LD - East Cambs - Care,Domiciliary Care
Cambridgeshire County Council,06-Aug-21,51301623473,"-1,428.58",THERA EAST ANGLIA,CARE ESTABLISHMENT,LD - East Locality - Cost of Care,LD - East Cambs - Care,Domiciliary Care
Cambridgeshire County Council,06-Aug-21,51301623473,"-1,428.58",THERA EAST ANGLIA,CARE ESTABLISHMENT,LD - East Locality - Cost of Care,LD - East Cambs - Care,Domiciliary Care
Cambridgeshire County Council,06-Aug-21,51301623473,"-1,428.58",THERA EAST ANGLIA,CARE ESTABLISHMENT,LD - East Locality - Cost of Care,LD - East Cambs - Care,Domiciliary Care
Cambridgeshire County Council,06-Aug-21,51301623473,"-1,428.58",THERA EAST ANGLIA,CARE ESTABLISHMENT,LD - East Locality - Cost of Care,LD - East Cambs - Care,Domiciliary Care
Cambridgeshire County Council,06-Aug-21,51301623473,"-1,428.58",THERA EAST ANGLIA,CARE ESTABLISHMENT,LD - East Locality - Cost of Care,LD - East Cambs - Care,Domiciliary Care
Cambridgeshire County Council,06-Aug-21,51301623473,"-1,428.58",THERA EAST ANGLIA,CARE ESTABLISHMENT,LD - East Locality - Cost of Care,LD - East Cambs - Care,Domiciliary Care
Cambridgeshire County Council,06-Aug-21,51301623473,"-1,428.58",THERA EAST ANGLIA,CARE ESTABLISHMENT,LD - East Locality - Cost of Care,LD - East Cambs - Care,Domiciliary Care
Cambridgeshire County Council,06-Aug-21,51301623473,"-1,428.58",THERA EAST ANGLIA,CARE ESTABLISHMENT,LD - East Locality - Cost of Care,LD - East Cambs - Care,Domiciliary Care
Cambridgeshire County Council,06-Aug-21,51301623473,"-1,428.58",THERA EAST ANGLIA,CARE ESTABLISHMENT,LD - East Locality - Cost of Care,LD - East Cambs - Care,Domiciliary Care
Cambridgeshire County Council,06-Aug-21,51301623473,"-1,428.58",THERA EAST ANGLIA,CARE ESTABLISHMENT,LD - East Locality - Cost of Care,LD - East Cambs - Care,Domiciliary Care
Cambridgeshire County Council,06-Aug-21,51301623473,"-1,428.58",THERA EAST ANGLIA,CARE ESTABLISHMENT,LD - East Locality - Cost of Care,LD - East Cambs - Care,Domiciliary Care
Cambridgeshire County Council,06-Aug-21,51301623473,"-1,428.58",THERA EAST ANGLIA,CARE ESTABLISHMENT,LD - East Locality - Cost of Care,LD - East Cambs - Care,Domiciliary Care
Cambridgeshire County Council,06-Aug-21,51301623473,"-1,428.58",THERA EAST ANGLIA,CARE ESTABLISHMENT,LD - East Locality - Cost of Care,LD - East Cambs - Care,Domiciliary Care
Cambridgeshire County Council,06-Aug-21,51301623473,"-1,428.58",THERA EAST ANGLIA,CARE ESTABLISHMENT,LD - East Locality - Cost of Care,LD - East Cambs - Care,Domiciliary Care
Cambridgeshire County Council,06-Aug-21,51301623473,"-1,428.58",THERA EAST ANGLIA,CARE ESTABLISHMENT,LD - East Locality - Cost of Care,LD - East Cambs - Care,Domiciliary Care
Cambridgeshire County Council,06-Aug-21,51301623473,"-1,428.58",THERA EAST ANGLIA,CARE ESTABLISHMENT,LD - East Locality - Cost of Care,LD - East Cambs - Care,Domiciliary Care
Cambridgeshire County Council,06-Aug-21,51301623473,"-1,428.58",THERA EAST ANGLIA,CARE ESTABLISHMENT,LD - East Locality - Cost of Care,LD - East Cambs - Care,Domiciliary Care
Cambridgeshire County Council,06-Aug-21,51301623473,"-1,428.58",THERA EAST ANGLIA,CARE ESTABLISHMENT,LD - East Locality - Cost of Care,LD - East Cambs - Care,Domiciliary Care
Cambridgeshire County Council,06-Aug-21,51301623473,"-1,428.58",THERA EAST ANGLIA,CARE ESTABLISHMENT,LD - East Locality - Cost of Care,LD - East Cambs - Care,Domiciliary Care
Cambridgeshire County Council,06-Aug-21,51301623473,"-1,428.58",THERA EAST ANGLIA,CARE ESTABLISHMENT,LD - East Locality - Cost of Care,LD - East Cambs - Care,Domiciliary Care
Cambridgeshire County Council,06-Aug-21,51301623473,"-1,428.58",THERA EAST ANGLIA,CARE ESTABLISHMENT,LD - East Locality - Cost of Care,LD - East Cambs - Care,Domiciliary Care
Cambridgeshire County Council,06-Aug-21,51301623473,"-1,428.58",THERA EAST ANGLIA,CARE ESTABLISHMENT,LD - East Locality - Cost of Care,LD - East Cambs - Care,Domiciliary Care
Cambridgeshire County Council,06-Aug-21,51301623473,"-1,428.58",THERA EAST ANGLIA,CARE ESTABLISHMENT,LD - East Locality - Cost of Care,LD - East Cambs - Care,Domiciliary Care
Cambridgeshire County Council,06-Aug-21,51301623455,"-1,427.46",THERA EAST ANGLIA,CARE ESTABLISHMENT,LD - East Locality - Cost of Care,LD - East Cambs - Care,Domiciliary Care
Cambridgeshire County Council,06-Aug-21,51301623455,"-1,427.46",THERA EAST ANGLIA,CARE ESTABLISHMENT,LD - East Locality - Cost of Care,LD - East Cambs - Care,Domiciliary Care
Cambridgeshire County Council,06-Aug-21,51301623455,"-1,427.46",THERA EAST ANGLIA,CARE ESTABLISHMENT,LD - East Locality - Cost of Care,LD - East Cambs - Care,Domiciliary Care
Cambridgeshire County Council,06-Aug-21,51301623455,"-1,427.46",THERA EAST ANGLIA,CARE ESTABLISHMENT,LD - East Locality - Cost of Care,LD - East Cambs - Care,Domiciliary Care
Cambridgeshire County Council,06-Aug-21,51301623455,"-1,427.46",THERA EAST ANGLIA,CARE ESTABLISHMENT,LD - East Locality - Cost of Care,LD - East Cambs - Care,Domiciliary Care
Cambridgeshire County Council,06-Aug-21,51301623455,"-1,427.46",THERA EAST ANGLIA,CARE ESTABLISHMENT,LD - East Locality - Cost of Care,LD - East Cambs - Care,Domiciliary Care
